{"text_format":"1","workbook":"xlsx","n_sheets":4,"sheets":["Sıvılaşma Potansiyeli Analizi","Oturma-Yanal Yay. ve Muk. Kaybı","Killerin sıvılaşma duyarlılığı","Tablolar"],"not_rendered":{"charts":4,"images":7,"macros":1,"external_links":0,"defined_names":9,"comments":3,"pivot_tables":0},"unopened":[],"bounds":{"document_bytes":16777216,"sheet_cells":100000,"rows_first":2000,"rows_last":500,"rows_between":2000,"halvings":0,"cell_chars":16384,"cell_head_chars":4096},"cells_cut":0,"cells_raw":0,"read":"whole","date_system":"1900"}

{"sheet":"Sıvılaşma Potansiyeli Analizi","index":0,"n_rows":36,"n_cols":120,"rows_kept":36,"cut":false,"hidden":false,"merged":[[33,56,33,89],[27,119,27,123],[24,115,24,118],[25,115,25,118],[17,119,17,123],[25,119,25,123],[22,94,22,97],[23,94,23,97],[22,119,22,123],[23,119,23,123],[24,119,24,123],[20,98,20,101],[22,98,22,101],[23,98,23,101],[20,102,20,106],[27,107,27,110],[17,115,17,118],[18,115,18,118],[19,115,19,118],[20,107,20,110],[24,111,24,114],[26,102,26,106],[33,90,33,93],[33,97,33,99],[29,102,29,106],[30,102,30,106],[31,102,31,106],[27,102,27,106],[27,98,27,101],[33,94,33,96],[28,102,28,106],[27,90,27,93],[28,90,28,93],[29,90,29,93],[29,98,29,101],[32,1,32,3],[30,94,30,97],[32,5,32,89],[31,72,31,75],[31,76,31,79],[30,72,30,75],[30,76,30,79],[30,80,30,89],[31,68,31,71],[31,25,31,28],[31,29,31,31],[31,32,31,34],[31,35,31,37],[31,38,31,40],[31,41,31,43],[31,44,31,47],[31,50,31,55],[31,56,31,60],[31,80,31,89],[30,25,30,28],[30,29,30,31],[30,68,30,71],[30,61,30,63],[30,90,30,93],[30,119,30,123],[31,119,31,123],[31,94,31,97],[24,102,24,106],[25,102,25,106],[28,94,28,97],[29,94,29,97],[28,119,28,123],[29,119,29,123],[26,111,26,114],[27,111,27,114],[26,115,26,118],[27,115,27,118],[28,111,28,114],[26,119,26,123],[28,115,28,118],[29,115,29,118],[28,98,28,101],[27,94,27,97],[30,107,30,110],[30,115,30,118],[31,115,31,118],[30,98,30,101],[31,98,31,101],[29,111,29,114],[27,76,27,79],[28,76,28,79],[29,80,29,89],[28,80,28,89],[28,107,28,110],[24,107,24,110],[25,107,25,110],[22,102,22,106],[26,76,26,79],[25,111,25,114],[22,111,22,114],[23,111,23,114],[24,94,24,97],[25,90,25,93],[26,90,26,93],[29,76,29,79],[24,76,24,79],[22,76,22,79],[23,76,23,79],[26,98,26,101],[26,107,26,110],[25,76,25,79],[26,94,26,97],[21,90,21,93],[24,98,24,101],[25,98,25,101],[23,80,23,89],[23,102,23,106],[22,90,22,93],[23,90,23,93],[24,90,24,93],[20,115,20,118],[22,107,22,110],[21,111,21,114],[20,90,20,93],[23,107,23,110],[22,80,22,89],[20,80,20,89],[21,80,21,89],[22,115,22,118],[23,115,23,118],[25,94,25,97],[25,80,25,89],[24,80,24,89],[29,61,29,63],[26,80,26,89],[27,80,27,89],[29,72,29,75],[29,68,29,71],[28,68,28,71],[28,61,28,63],[26,68,26,71],[26,72,26,75],[29,64,29,67],[26,64,26,67],[27,68,27,71],[28,64,28,67],[29,107,29,110],[20,76,20,79],[21,76,21,79],[20,72,20,75],[20,68,20,71],[24,72,24,75],[25,72,25,75],[25,68,25,71],[26,61,26,63],[25,64,25,67],[27,61,27,63],[27,64,27,67],[27,72,27,75],[28,72,28,75],[22,72,22,75],[23,72,23,75],[21,61,21,63],[22,61,22,63],[23,61,23,63],[21,64,21,67],[22,64,22,67],[21,72,21,75],[24,68,24,71],[24,64,24,67],[22,68,22,71],[21,68,21,71],[23,68,23,71],[23,64,23,67],[18,50,18,55],[18,35,18,37],[19,29,19,31],[18,32,18,34],[19,50,19,55],[19,32,19,34],[19,44,19,47],[18,44,18,47],[18,41,18,43],[20,61,20,63],[22,38,22,40],[21,38,21,40],[21,41,21,43],[18,64,18,67],[18,56,18,60],[18,68,18,71],[18,61,18,63],[5,181,5,183],[5,185,5,194],[20,119,20,123],[16,115,16,118],[16,98,16,101],[16,107,16,110],[11,90,12,106],[11,107,12,123],[5,90,6,101],[7,90,7,101],[7,102,7,112],[17,111,17,114],[20,94,20,97],[8,114,8,123],[17,94,17,97],[16,90,16,93],[7,119,7,123],[5,113,6,118],[7,113,7,118],[21,204,21,206],[16,94,16,97],[16,111,16,114],[21,119,21,123],[21,98,21,101],[16,204,16,206],[18,204,18,206],[19,204,19,206],[18,94,18,97],[21,102,21,106],[21,115,21,118],[17,98,17,101],[18,98,18,101],[19,98,19,101],[17,102,17,106],[17,107,17,110],[18,107,18,110],[21,94,21,97],[21,107,21,110],[19,94,19,97],[20,111,20,114],[20,204,20,206],[19,207,19,209],[16,207,16,209],[8,100,8,113],[19,107,19,110],[16,102,16,106],[18,102,18,106],[19,102,19,106],[10,90,10,123],[17,90,17,93],[18,90,18,93],[19,119,19,123],[16,119,16,123],[18,119,18,123],[18,111,18,114],[19,111,19,114],[19,90,19,93],[8,83,8,99],[19,80,19,89],[15,76,15,79],[16,76,16,89],[17,72,17,75],[18,80,18,89],[7,254,7,264],[8,232,8,241],[6,195,7,204],[6,180,7,180],[18,207,18,209],[17,80,17,89],[17,76,17,79],[8,72,8,82],[13,90,15,93],[13,94,15,97],[13,98,15,101],[13,102,15,106],[13,107,15,110],[13,111,15,114],[13,115,15,118],[13,119,15,123],[18,76,18,79],[18,72,18,75],[10,76,11,89],[12,76,14,89],[22,1,22,3],[23,50,23,55],[25,6,25,10],[21,6,21,10],[21,11,21,15],[22,50,22,55],[25,56,25,60],[24,61,24,63],[25,61,25,63],[23,56,23,60],[24,56,24,60],[21,50,21,55],[21,56,21,60],[21,29,21,31],[22,29,22,31],[21,32,21,34],[23,32,23,34],[22,32,22,34],[21,44,21,47],[22,6,22,10],[22,11,22,15],[24,21,24,24],[21,35,21,37],[23,29,23,31],[19,76,19,79],[20,64,20,67],[20,50,20,55],[20,44,20,47],[20,29,20,31],[20,35,20,37],[19,41,19,43],[20,41,20,43],[20,38,20,40],[20,56,20,60],[19,64,19,67],[19,56,19,60],[19,61,19,63],[19,72,19,75],[19,68,19,71],[19,25,19,28],[18,38,18,40],[19,38,19,40],[18,29,18,31],[20,32,20,34],[19,35,19,37],[24,35,24,37],[24,41,24,43],[22,41,22,43],[23,41,23,43],[23,38,23,40],[26,56,26,60],[24,50,24,55],[22,56,22,60],[25,50,25,55],[22,44,22,47],[23,44,23,47],[24,44,24,47],[25,11,25,15],[23,11,23,15],[24,29,24,31],[25,35,25,37],[26,50,26,55],[25,44,25,47],[26,44,26,47],[26,21,26,24],[23,6,23,10],[28,21,28,24],[25,41,25,43],[26,32,26,34],[26,35,26,37],[26,38,26,40],[22,21,22,24],[22,25,22,28],[23,25,23,28],[24,25,24,28],[26,29,26,31],[25,25,25,28],[22,35,22,37],[23,35,23,37],[24,32,24,34],[25,29,25,31],[25,38,25,40],[26,25,26,28],[27,25,27,28],[25,32,25,34],[26,41,26,43],[24,38,24,40],[27,29,27,31],[25,21,25,24],[30,1,30,3],[30,6,30,10],[31,90,31,93],[31,64,31,67],[30,50,30,55],[30,38,30,40],[23,21,23,24],[29,1,29,3],[26,1,26,3],[29,6,29,10],[29,11,29,15],[27,1,27,3],[28,1,28,3],[28,6,28,10],[27,6,27,10],[27,11,27,15],[26,11,26,15],[28,11,28,15],[24,1,24,3],[25,1,25,3],[23,1,23,3],[24,11,24,15],[26,6,26,10],[24,6,24,10],[57,117,57,136],[35,1,36,123],[33,1,33,3],[33,107,33,110],[33,100,33,106],[33,117,33,123],[33,114,33,116],[33,111,33,113],[29,25,29,28],[29,29,29,31],[30,44,30,47],[30,41,30,43],[33,6,33,20],[30,56,30,60],[30,11,30,15],[31,107,31,110],[30,111,30,114],[31,111,31,114],[31,61,31,63],[30,64,30,67],[31,1,31,3],[31,21,31,24],[31,6,31,10],[31,11,31,15],[30,32,30,34],[30,35,30,37],[29,21,29,24],[27,21,27,24],[28,25,28,28],[28,29,28,31],[30,21,30,24],[27,35,27,37],[27,56,27,60],[29,56,29,60],[29,32,29,34],[29,35,29,37],[29,38,29,40],[29,41,29,43],[29,44,29,47],[29,50,29,55],[28,56,28,60],[28,32,28,34],[28,35,28,37],[28,38,28,40],[28,41,28,43],[28,44,28,47],[27,44,27,47],[27,50,27,55],[28,50,28,55],[27,38,27,40],[27,41,27,43],[27,32,27,34],[19,1,19,3],[20,1,20,3],[21,1,21,3],[19,21,19,24],[17,29,17,31],[18,25,18,28],[17,21,17,24],[17,25,17,28],[20,25,20,28],[20,21,20,24],[21,21,21,24],[17,6,17,10],[19,6,19,10],[18,6,18,10],[17,11,17,15],[21,25,21,28],[20,6,20,10],[19,11,19,15],[20,11,20,15],[17,1,17,3],[18,1,18,3],[16,21,16,24],[16,25,16,28],[16,29,16,31],[16,6,16,10],[18,21,18,24],[18,11,18,15],[16,11,16,15],[16,1,16,3],[16,64,16,67],[16,68,16,71],[17,64,17,67],[17,68,17,71],[16,56,16,60],[16,61,16,63],[16,72,16,75],[17,61,17,63],[13,56,15,60],[13,61,15,63],[13,64,15,67],[13,68,15,71],[13,72,15,75],[17,32,17,34],[16,32,16,34],[17,35,17,37],[16,35,16,37],[17,56,17,60],[17,44,17,47],[17,38,17,40],[16,38,16,40],[16,41,16,43],[16,44,16,47],[17,41,17,43],[17,50,17,55],[16,48,16,55],[6,1,8,11],[5,25,6,36],[7,68,7,74],[12,29,12,31],[12,32,12,34],[10,56,11,67],[12,38,12,40],[12,41,12,43],[12,44,12,47],[10,21,11,55],[7,25,7,40],[7,18,7,24],[10,1,11,20],[8,12,8,17],[12,64,12,67],[12,56,12,60],[12,35,12,37],[12,68,12,71],[12,72,12,75],[12,48,12,55],[12,1,15,3],[12,61,12,63],[10,68,11,75],[12,4,15,4],[1,12,3,123],[5,102,6,112],[8,18,8,24],[7,12,7,17],[4,12,4,17],[5,12,5,17],[6,12,6,17],[8,25,8,38],[6,46,6,56],[4,113,4,118],[4,119,4,123],[4,18,4,112],[5,75,6,89],[5,46,5,56],[8,39,8,55],[8,56,8,71],[5,37,5,45],[6,37,6,45],[7,75,7,89],[5,119,6,123],[7,41,7,48],[7,49,7,67],[5,65,5,74],[5,57,5,64],[12,5,15,5],[12,6,15,10],[12,11,15,15],[12,16,15,16],[12,17,15,17],[12,18,15,18],[12,19,15,19],[12,20,15,20],[6,65,6,74],[6,57,6,64],[12,21,15,24],[12,25,15,28],[13,29,15,31],[13,32,15,34],[13,35,15,37],[13,38,15,40],[13,41,15,43],[13,44,15,47],[13,50,15,55],[14,48,15,48],[14,49,15,49],[5,22,6,24],[5,18,5,21],[6,18,6,21]]}
[]
[null,null,null,null,null,null,null,null,null,null,null,null,"TÜRKİYE BİNA DEPREM YÖNETMELİĞİ (2018) İLE UYUMLU BASİTLEŞTİRİLMİŞ ZEMİN SIVILAŞMA POTANSİYELİ ANALİZİ"]
[]
[]
[null,null,null,null,null,null,null,null,null,null,null,null,"PROJE ADI:",null,null,null,null,null,"ANKARA ÇANKAYA İLÇESİ ",null,null,null,null,null,null,null,null,null,null,null,null,null,null,null,null,null,null,null,null,null,null,null,null,null,null,null,null,null,null,null,null,null,null,null,null,null,null,null,null,null,null,null,null,null,null,null,null,null,null,null,null,null,null,null,null,null,null,null,null,null,null,null,null,null,null,null,null,null,null,null,null,null,null,null,null,null,null,null,null,null,null,null,null,null,null,null,null,null,null,null,null,null,null,"Sayfa:",null,null,null,null,null,"1/2"]
[null,null,null,null,null,null,null,null,null,null,null,null,"Ada No:",null,null,null,null,null,145,null,null,null,"Parsel Sorgu",null,null,"Koordinatlar :",null,null,null,null,null,null,null,null,null,null,null,"X",null,null,null,null,null,null,null,null,"Y",null,null,null,null,null,null,null,null,null,null,"Kot",null,null,null,null,null,null,null,"Datum",null,null,null,null,null,null,null,null,null,"Yerel Zemin Sınıfı ",null,null,null,null,null,null,null,null,null,null,null,null,null,null,"Mw ",null,null,null,null,null,null,null,null,null,null,null,"DTS                                     [Deprem tasarım sınıfı]",null,null,null,null,null,null,null,null,null,null,"SDS  ",null,null,null,null,null,"P.G.A."]
[null,"TMMOB                                                        JEOLOJİ MÜHENDİSLERİ       ODASI ",null,null,null,null,null,null,null,null,null,null,"Parsel No:",null,null,null,null,null,24,null,null,null,null,null,null,null,null,null,null,null,null,null,null,null,null,null,null,1234567.8500000001,null,null,null,null,null,null,null,null,12345678.85,null,null,null,null,null,null,null,null,null,null,865.3,null,null,null,null,null,null,null,"ITRF-6°"]
[null,null,null,null,null,null,null,null,null,null,null,null,"Sondaj Kuyu No:",null,null,null,null,null,"SK-3",null,null,null,null,null,null,"Yeraltı Suyu Seviyesi :",null,null,null,null,null,null,null,null,null,null,null,null,null,null,null,1.9999999999999998,null,null,null,null,null,null,null,"SPT Klavuz Tij Boyu (yerden):",null,null,null,null,null,null,null,null,null,null,null,null,null,null,null,null,null,null,1,null,null,null,null,null,null,"ZD",null,null,null,null,null,null,null,null,null,null,null,null,null,null,6.9999999999999982,null,null,null,null,null,null,null,null,null,null,null,"DTS - 2",null,null,null,null,null,null,null,null,null,null,0.75,null,null,null,null,null,{"$f":"$DJ$8*0.4","v":0.30000000000000004}]
[null,null,null,null,null,null,null,null,null,null,null,null,"SPT Verileri :",null,null,null,null,null,"Numune Alıcı Tipi :",null,null,null,null,null,null,"Standart (iç tüpü olan)",null,null,null,null,null,null,null,null,null,null,null,null,null,"Sondaj Delgi Çapı :",null,null,null,null,null,null,null,null,null,null,null,null,null,null,null,null,"Çap 65mm-115mm arasında",null,null,null,null,null,null,null,null,null,null,null,null,null,null,null,"Tokmak Tipi :",null,null,null,null,null,null,null,null,null,null,"Otomatik darbeli tokmak",null,null,null,null,null,null,null,null,null,null,null,null,null,null,null,null,"Enerji Oranı (%) :",null,null,null,null,null,null,null,null,null,null,null,null,null,60]
[]
[null,"Arazi ve Laboratuvar Deneylerinden Alınan Veriler                                                                     [Veri girişi ve seçimi  yapınız]",null,null,null,null,null,null,null,null,null,null,null,null,null,null,null,null,null,null,null,"Ham SPT-N Verilerinin Düzeltilmesi                                                                              [TBDY-2018, Madde 16B.2'e göre]",null,null,null,null,null,null,null,null,null,null,null,null,null,null,null,null,null,null,null,null,null,null,null,null,null,null,null,null,null,null,null,null,null,null,"Sıvılaşma Direncinin Hesabı",null,null,null,null,null,null,null,null,null,null,null," Deprem Kayma Gerilmesi",null,null,null,null,null,null,null,"Sıvılaşmaya Karşı Güvenlik Koşulu",null,null,null,null,null,null,null,null,null,null,null,null,null,"Sıvılaşma Potansiyeli (Sondaj Noktalarındaki)                   Bilgi amaçlı verilmiştir. TBDY-2018'de yer almamaktadır."]
[null,null,null,null,null,null,null,null,null,null,null,null,null,null,null,null,null,null,null,null,null,null,null,null,null,null,null,null,null,null,null,null,null,null,null,null,null,null,null,null,null,null,null,null,null,null,null,null,null,null,null,null,null,null,null,null,null,null,null,null,null,null,null,null,null,null,null,null,null,null,null,null,null,null,null,null,null,null,null,null,null,null,null,null,null,null,null,null,null,null,"Iwasaki vd.                                  [1982]",null,null,null,null,null,null,null,null,null,null,null,null,null,null,null,null,"Sönmez ve Gökçeoğlu      [2005]"]
[null,"Sıra No",null,null," Derinlik (m)","SPT - N  [darbe/30 cm]","Zemin Tipi (USCS)",null,null,null,null,"Zemin Tipi                                                       (TS-EN ISO 14688-2)",null,null,null,null,"Plastisite İndisi (PI)","Kil İçeriği (%)","γn  (kN/m3)","γdoygun  (kN/m3)","İnce Dane İçeriği     (IDI) (%)","Toplam gerilme                  σvo (kN/m2)",null,null,null,"Efektif gerilme                         σ'vo (kN/m2)",null,null,null,"Cn",null,null,"Cr",null,null,"Cs",null,null,"Cb",null,null,"Ce",null,null,"N1,60 ",null,null,null,"N1,60f ",null,null,null,null,null,null,null,"CRRM=7,5",null,null,null,null,"CM",null,null,"τR",null,null,null,"rd",null,null,null,"τdeprem",null,null,null,"TBDY-2018'e göre                         FSL = τR /τdeprem ≥ 1.10             "]
[null,null,null,null,null,null,null,null,null,null,null,null,null,null,null,null,null,null,null,null,null,null,null,null,null,null,null,null,null,"Örtü Yükü                      Düzeltme Katsayısı",null,null,"Tij Boyu               Düzeltme Katsayısı",null,null,"Numune Alıcı Tipi Düzeltme Katsayısı",null,null,"Sondaj Delgi Çapı Düzeltme Katsayısı",null,null,"Enerji Oranı                  Düzeltme Katsayısı",null,null,"Düzeltilmiş                           SPT-N Değeri",null,null,null,null,null,"İnce Dane İçeriği Düzeltmesi Yapılmış",null,null,null,null,null,"Moment büyüklüğü 7.5 olan depr. karşı gelen tekrarlı dayanımı oranı",null,null,null,null,"Moment Büyüklüğü Düzeltme Katsayısı",null,null,"Sıvılaşma Direnci τR=CRRM7.5·CM·σvo'",null,null,null,"Gerilme Azaltma Katsayısı",null,null,null,"Zeminde Depremden Kaynaklanan Ort. Tekrarlı Kayma Geril. ",null,null,null,null,null,null,null,null,null,null,null,null,null,null,null,null,null,"Sıvılaşmaya Yatkın Tabaka Kalınlığı, m",null,null,null,"W(z)",null,null,null,"F(z)",null,null,null,"Sıvılaşma Potansiyeli İndeksi, LI",null,null,null,null,"Sıvılaşmaya Yatkın Tabaka Kalınlığı, m",null,null,null,"W(z)",null,null,null,"PL(z)",null,null,null,"Sıvılaşma Şiddeti İndeksi, LS"]
[null,null,null,null,null,null,null,null,null,null,null,null,null,null,null,null,null,null,null,null,null,null,null,null,null,null,null,null,null,null,null,null,null,null,null,null,null,null,null,null,null,null,null,null,null,null,null,null,"α","β"]
[null,null,null,null,null,null,null,null,null,null,null,null,null,null,null,null,null,null,null,null,null,null,null,null,null,null,null,null,null,null,null,null,null,null,null,null,null,null,null,null,null,null,null,null,null,null,null,null,null,null,null,null,null,null,null,null,null,null,null,null,null,null,null,null,null,null,null,null,null,null,null,null,null,null,null,null,"FSL"]
[null,"-1-",null,null,"-2-","-3-","-4-",null,null,null,null,"-5-",null,null,null,null,"-6-","-7-","-8-","-9-","-10-","-11-",null,null,null,"-12-",null,null,null,"-13-",null,null,"-14-",null,null,"-15-",null,null,"-16-",null,null,"-17-",null,null,"-18-",null,null,null,"-19-",null,null,null,null,null,null,null,"-20-",null,null,null,null,"-21-",null,null,"-22-",null,null,null,"-23-",null,null,null,"-24-",null,null,null,"-25-",null,null,null,null,null,null,null,null,null,null,null,null,null,"-26-",null,null,null,"-27-",null,null,null,"-28-",null,null,null,"-29-",null,null,null,null,"-30-",null,null,null,"-31-",null,null,null,"-32-",null,null,null,"-33-"]
[null,{"$f":"IF(E18>0,\"1-\",\"\")","v":"1-"},null,null,1.1000000000000001,8,"CH",null,null,null,null,null,null,null,null,null,null,null,18,20,null,{"$f":"IF(E18=\"\",\"\",IF(E18<$AP$8,E18*S18,(($AP$8-0)*S18+(E18-$AP$8)*T18)))","v":19.8},null,null,null,{"$f":"(IF(E18=\"\",\"\",IF($E$34<E18,\"\",(V18-MAX($E$18-$AP$8,0)*9.81))))","v":19.8},null,null,null,{"$f":"IF(E18=\"\",\"\",IF(F18=\"R\",\"-\",IF(E18<$AP$8,\"-\",IF(9.78*SQRT(1/Z18)<=1.7,(9.78*SQRT(1/Z18)),IF(9.78*SQRT(1/Z18)>1.7,1.7,1)))))","v":"-"},null,null,{"$f":"IF(E18=\"\",\"\",IF(F18=\"r\",\"-\",IF(E18<$AP$8,\"-\",IF((E18+$BQ$8)<4,0.75,IF((E18+$BQ$8)<6,0.85,IF((E18+$BQ$8)<10,0.95,1))))))","v":"-"},null,null,{"$f":"IF(E18=\"\",\"\",IF(F18=\"r\",\"-\",IF(E18<$AP$8,\"-\",IF($Z$9=\"Standart (iç tüpü olan)\",1,1.2))))","v":"-"},null,null,{"$f":"IF(E18=\"\",\"\",IF(F18=\"r\",\"-\",IF(E18<$AP$8,\"-\",IF($BE$9=\"Çap 65mm-115mm arasında\",1,IF($BE$9=\"Çap 150mm\",1.05,IF($BE$9=\"Çap 200mm\",1.15))))))","v":"-"},null,null,{"$f":"IF(F18=\"\",\"\",IF(E18<$AP$8,\"-\",IF(F18=\"r\",\"-\",$DK$9/60)))","v":"-"},null,null,{"$f":"IF(E18=\"\",\"\",IF(F18=\"R\",\"-\",IF(E18<$AP$8,\"-\",IF(PRODUCT(F18,AD18,AG18,AJ18,AM18,AP18)<30,(PRODUCT(F18,AD18,AG18,AJ18,AM18,AP18)),\">30\"))))","v":"-"},null,null,null,{"$f":"IF(E18=\"\",\"\",IF(F18=\"R\",\"-\",IF(U18=\"\",\"\",IF(AS18=\">30\",\"-\",IF(AS18=\"\",\"\",IF(U18<=5,0,IF(AND(U18>5,U18<35),EXP(1.76-(190/(U18^2))),IF(U18>=35,5))))))))","v":""},{"$f":"IF(E18=\"\",\"\",IF(F18=\"R\",\"-\",IF(U18=\"\",\"\",IF(AS18=\">30\",\"-\",IF(AS18=\"\",\"\",IF(E18=\"\",\"\",IF(U18<=5,1,IF(AND(U18>5,U18<35),(0.99+(U18^1.5)/1000),IF(U18>=35,1.2)))))))))","v":""},{"$f":"IF(E18=\"\",\"\",IF(E18<$AP$8,\"-\",IF(AS18=\"-\",\"-\",IF(AS18=\">30\",\"-\",IF(U18<=5,AS18,IF(U18>=35,(5+1.2*AS18),((EXP(1.76-(190/(U18^2))))+((0.99+(U18^1.5)/1000)*AS18))))))))","v":"-"},null,null,null,null,null,{"$f":"IF(E18=\"\",\"\",IF(AND($CY$8=\"DTS - 4\",R18>20,Q18>10),\"-\",IF(AND($CY$8=\"DTS - 4\",U18>35,AS18>20),\"-\",IF(Q18>=12,\"-\",IF(E18<$AP$8,\"-\",IF(AS18>30,\"-\",IF(AY18>=34,\"-\",IF(AS18<30,(1/(34-AY18))+AY18/135+50/(10*AY18+45)^2-1/200,2))))))))","v":"-"},null,null,null,null,{"$f":"IF(F18=\"\",\"\",IF(AND($CY$8=\"DTS - 4\",R18>20,Q18>10),\"-\",IF(AND($CY$8=\"DTS - 4\",U18>35,AS18>20),\"-\",IF(Q18>=12,\"-\",IF(E18<$AP$8,\"-\",IF(AS18>30,\"-\",IF(AY18>=34,\"-\",((10^2.24/$CM$8^2.56)))))))))","v":"-"},null,null,{"$f":"+IF(F18=\"\",\"\",IF(AND($CY$8=\"DTS - 4\",R18>20,Q18>10),\"-\",IF(AND($CY$8=\"DTS - 4\",U18>35,AS18>20),\"-\",IF(Q18>=12,\"-\",IF(E18<$AP$8,\"-\",IF(AS18>30,\"-\",IF(AY18>=34,\"-\",(PRODUCT(BE18,BJ18,Z18)))))))))","v":"-"},null,null,null,{"$f":"IF(F18=\"\",\"\",IF(AND($CY$8=\"DTS - 4\",R18>20,Q18>10),\"-\",IF(AND($CY$8=\"DTS - 4\",U18>35,AS18>20),\"-\",IF(Q18>=12,\"-\",IF(E18<$AP$8,\"-\",IF(AS18>30,\"-\",IF(AY18>=34,\"-\",IF(E18<=9.15,(1-0.00765*E18),IF(E18<=23,(1.174-0.0267*E18),IF(E18<=30,(0.744-0.008*E18),0.5))))))))))","v":"-"},null,null,null,{"$f":"+IF(F18=\"\",\"\",IF(AND($CY$8=\"DTS - 4\",R18>20,Q18>10),\"-\",IF(AND($CY$8=\"DTS - 4\",U18>35,AS18>20),\"-\",IF(Q18>=12,\"-\",IF(E18<$AP$8,\"-\",IF(AS18>30,\"-\",IF(AY18>=34,\"-\",(0.65*V18*0.4*$DJ$8*BQ18))))))))","v":"-"},null,null,null,{"$f":"IF(F18=\"\",\"\",IF(AND($CY$8=\"DTS - 4\",R18>20,Q18>10),\"-\",IF(AND($CY$8=\"DTS - 4\",U18>35,AS18>20),\"-\",IF(Q18>=12,\"-\",IF(E18<$AP$8,\"-\",IF(AS18>30,\"-\",IF(AY18>=34,\"-\",(BM18/BU18))))))))","v":"-"},null,null,null,{"$f":"+IF(F18=\"\",\"\",IF(E18<$AP$8,\"YAS yok\",IF(AS18>30,\"Sıvılaşma Yok\",IF(BY18<1.1,\"Sıvılaşma Beklenir\",IF(BY18=\"-\",\"Sıvılaşma Yok\",\"Sıvılaşma Yok\")))))","v":"YAS yok"},null,null,null,null,null,null,null,null,null,{"$f":"IF(E18=\"\",\"\",IF(BY18>1,\"-\",IF($AP$8<E18,(E18-$AP$8)+((E19-E18)/2),IF($AP$8>=E19,0,0))))","v":"-"},null,null,null,{"$f":"+IF(E18=\"\",\"\",IF(BY18=\"-\",\"-\",IF(BY18>=1,\"-\",10-0.5*E18/2)))","v":"-"},null,null,null,{"$f":"+IF(E18=\"\",\"\",IF(BY18=\"-\",\"-\",IF(BY18>=1,\"-\",(1-BY18))))","v":"-"},null,null,null,{"$f":"+IF(E18=\"\",\"\",IF(BY18=\"-\",\"-\",IF(BY18>=1,\"-\",CU18*CQ18*CM18)))","v":"-"},null,null,null,null,{"$f":"IF(E18=\"\",\"\",IF(BY18>1.411,\"-\",IF($AP$8<E18,(E18-$AP$8)+((E19-E18)/2),IF($AP$8>=E19,0,0))))","v":"-"},null,null,null,{"$f":"+IF(E18=\"\",\"\",IF(BY18=\"-\",\"-\",10-0.5*E18/2))","v":"-"},null,null,null,{"$f":"+IF(E18=\"\",\"\",IF(BY18=\"-\",\"-\",IF(BY18<=1.411,(1/(1+(BY18/0.96)^4.5)),0)))","v":"-"},null,null,null,{"$f":"+IF(E18=\"\",\"\",IF(BY18=\"-\",\"-\",IF(E18>0,DL18*DH18*DD18,\"\")))","v":"-"}]
[null,{"$f":"IF(E19>0,\"2-\",\"\")","v":"2-"},null,null,1.8,12,"GC",null,null,null,null,null,null,null,null,null,null,null,16.5,20,5,{"$f":"IF(E18=\"\",\"\",IF(E19<$AP$8,V18+((E19-E18)*S19),IF($AP$8<=E18,V18+((E19-E18)*T19),IF(AND($AP$8>E18,$AP$8<=E19),(V18+(($AP$8-E18)*S19)+(E19-$AP$8)*T19),\"-\"))))","v":31.35},null,null,null,{"$f":"(IF(E19=\"\",\"\",(V19-MAX(E19-$AP$8,0)*9.81)))","v":31.35},null,null,null,{"$f":"IF(E19=\"\",\"\",IF(F19=\"R\",\"-\",IF(E19<$AP$8,\"-\",IF(9.78*SQRT(1/Z19)<=1.7,(9.78*SQRT(1/Z19)),IF(9.78*SQRT(1/Z19)>1.7,1.7,1)))))","v":"-"},null,null,"-",null,null,"-",null,null,"-",null,null,"-",null,null,"-",null,null,null,{"$f":"IF(E19=\"\",\"\",IF(F19=\"R\",\"-\",IF(U19=\"\",\"\",IF(AS19=\">30\",\"-\",IF(AS19=\"\",\"\",IF(U19<=5,0,IF(AND(U19>5,U19<35),EXP(1.76-(190/(U19^2))),IF(U19>=35,5))))))))","v":0},1,"-",null,null,null,null,null,"-",null,null,null,null,"-",null,null,"-",null,null,null,"-",null,null,null,{"$f":"+IF(F19=\"\",\"\",IF(AND($CY$8=\"DTS - 4\",R19>20,Q19>10),\"-\",IF(AND($CY$8=\"DTS - 4\",U19>35,AS19>20),\"-\",IF(Q19>=12,\"-\",IF(E19<$AP$8,\"-\",IF(AS19>30,\"-\",IF(AY19>=34,\"-\",(0.65*V19*0.4*$DJ$8*BQ19))))))))","v":"-"},null,null,null,{"$f":"IF(F19=\"\",\"\",IF(AND($CY$8=\"DTS - 4\",R19>20,Q19>10),\"-\",IF(AND($CY$8=\"DTS - 4\",U19>35,AS19>20),\"-\",IF(Q19>=12,\"-\",IF(E19<$AP$8,\"-\",IF(AS19>30,\"-\",IF(AY19>=34,\"-\",(BM19/BU19))))))))","v":"-"},null,null,null,{"$f":"+IF(F19=\"\",\"\",IF(E19<$AP$8,\"YAS yok\",IF(AS19>30,\"Sıvılaşma Yok\",IF(BY19<1.1,\"Sıvılaşma Beklenir\",IF(BY19=\"-\",\"Sıvılaşma Yok\",\"Sıvılaşma Yok\")))))","v":"YAS yok"},null,null,null,null,null,null,null,null,null,{"$f":"IF(E19=\"\",\"\",IF(BY19>1,\"-\",IF(E20=\"\",($E$34-E19)+((E19-E18)/2),IF(AND(DD18=0,$AP$8<E19,$AP$8>=E18),((E20-E19)/2)+(E19-$AP$8),((E20-E19)/2)+((E19-E18)/2)))))","v":"-"},null,null,null,{"$f":"+IF(E19=\"\",\"\",IF(OR((E19>20),(BY19>1)),\"-\",IF(BY19>=1,\"-\",10-(0.5*(((E19-E18)/2)+E18)))))","v":"-"},null,null,null,{"$f":"+IF(E19=\"\",\"\",IF(BY19=\"-\",\"-\",IF(OR((E19>20),(BY19>=1)),\"-\",(1-BY19))))","v":"-"},null,null,null,{"$f":"+IF(E19=\"\",\"\",IF(BY19=\"-\",\"-\",IF(OR((E19>20),(BY19>=1)),\"-\",CU19*CQ19*CM19)))","v":"-"},null,null,null,null,{"$f":"IF(E19=\"\",\"\",IF(BY19=\"-\",\"-\",IF(BY19>1.411,\"-\",IF(E20=\"\",($E$34-E19)+((E19-E18)/2),IF(AND(DD18=0,$AP$8<E19,$AP$8>=E18),((E20-E19)/2)+(E19-$AP$8),((E20-E19)/2)+((E19-E18)/2))))))","v":"-"},null,null,null,{"$f":"+IF(E19=\"\",\"\",IF(OR((E19>20),(BY19>1.411)),\"-\",10-(0.5*(((E19-E18)/2)+E18))))","v":"-"},null,null,null,{"$f":"+IF(E19=\"\",\"\",IF(BY19=\"-\",\"-\",IF(OR((E19>20),(BY19>1.411)),\"-\",(1/(1+(BY19/0.96)^4.5)))))","v":"-"},null,null,null,{"$f":"+IF(E19=\"\",\"\",IF(BY19=\"-\",\"-\",IF(E19>0,IFERROR(DL19*DH19*DD19,\"-\"))))","v":"-"}]
[null,{"$f":"IF(E20>0,\"3-\",\"\")","v":"3-"},null,null,2.6,7,"SM",null,null,null,null,null,null,null,null,null,null,null,18,20,8,{"$f":"IF(E19=\"\",\"\",IF(E20<$AP$8,V19+((E20-E19)*S20),IF($AP$8<=E19,V19+((E20-E19)*T20),IF(AND($AP$8>E19,$AP$8<=E20),(V19+(($AP$8-E19)*S20)+(E20-$AP$8)*T20),\"-\"))))","v":46.95},null,null,null,{"$f":"(IF(E20=\"\",\"\",(V20-MAX(E20-$AP$8,0)*9.81)))","v":41.064},null,null,null,1.5261886840997057,null,null,0.75,null,null,1,null,null,1,null,null,1,null,null,8.0124905915234539,null,null,null,{"$f":"IF(E20=\"\",\"\",IF(F20=\"R\",\"-\",IF(U20=\"\",\"\",IF(AS20=\">30\",\"-\",IF(AS20=\"\",\"\",IF(U20<=5,0,IF(AND(U20>5,U20<35),EXP(1.76-(190/(U20^2))),IF(U20>=35,5))))))))","v":0.29857025909289908},1.0126274169979694,8.4122379105078267,null,null,null,null,null,9.9392990308916837E-2,null,null,null,null,1.1927488803792003,null,null,4.8681732504346966,null,null,null,0.98011000000000004,null,null,null,{"$f":"+IF(F20=\"\",\"\",IF(AND($CY$8=\"DTS - 4\",R20>20,Q20>10),\"-\",IF(AND($CY$8=\"DTS - 4\",U20>35,AS20>20),\"-\",IF(Q20>=12,\"-\",IF(E20<$AP$8,\"-\",IF(AS20>30,\"-\",IF(AY20>=34,\"-\",(0.65*V20*0.4*$DJ$8*BQ20))))))))","v":8.9731520775000018},null,null,null,{"$f":"IF(F20=\"\",\"\",IF(AND($CY$8=\"DTS - 4\",R20>20,Q20>10),\"-\",IF(AND($CY$8=\"DTS - 4\",U20>35,AS20>20),\"-\",IF(Q20>=12,\"-\",IF(E20<$AP$8,\"-\",IF(AS20>30,\"-\",IF(AY20>=34,\"-\",(BM20/BU20))))))))","v":0.54252655124853433},null,null,null,"Sıvılaşma Beklenir",null,null,null,null,null,null,null,null,null,0.79999999999999993,null,null,null,8.9,null,null,null,0.45747344875146567,null,null,null,3.2572109551104353,null,null,null,null,0.79999999999999993,null,null,null,8.9,null,null,null,0.92878231124511101,null,null,null,6.6129300560651911]
[null,{"$f":"IF(E21>0,\"4-\",\"\")","v":"4-"},null,null,3.4,5,"SC",null,null,null,null,null,null,null,null,null,null,null,18,19,12,{"$f":"IF(E20=\"\",\"\",IF(E21<$AP$8,V20+((E21-E20)*S21),IF($AP$8<=E20,V20+((E21-E20)*T21),IF(AND($AP$8>E20,$AP$8<=E21),(V20+(($AP$8-E20)*S21)+(E21-$AP$8)*T21),\"-\"))))","v":62.15},null,null,null,48.415999999999997,null,null,null,1.4055438577366237,null,null,0.85,null,null,1,null,null,1,null,null,1,null,null,5.973561395380651,null,null,null,1.5535700732924222,1.031569219381653,7.7157121388536183,null,null,null,null,null,9.35496420136325E-2,null,null,null,null,1.1927488803792003,null,null,5.4023168690394874,null,null,null,0.97399000000000002,null,null,null,11.804028307500001,null,null,null,0.4576672241294934,null,null,null,"Sıvılaşma Beklenir",null,null,null,null,null,null,null,null,null,2.4499999999999997,null,null,null,8.5,null,null,null,0.54233277587050654,null,null,null,11.294080057503297,null,null,null,null,2.4499999999999997,null,null,null,8.5,null,null,null,0.96556231797149938,null,null,null,20.107835271756475]
[null,{"$f":"IF(E22>0,\"5-\",\"\")","v":"5-"},null,null,7.5,10,"CH",null,null,null,null,null,null,null,null,null,null,null,18,20,10,{"$f":"IF(E21=\"\",\"\",IF(E22<$AP$8,V21+((E22-E21)*S22),IF($AP$8<=E21,V21+((E22-E21)*T22),IF(AND($AP$8>E21,$AP$8<=E22),(V21+(($AP$8-E21)*S22)+(E22-$AP$8)*T22),\"-\"))))","v":144.15},null,null,null,90.194999999999993,null,null,null,1.0297875177019939,null,null,0.95,null,null,1,null,null,1,null,null,1,null,null,{"$f":"IF(E22=\"\",\"\",IF(F22=\"R\",\"-\",IF(E22<$AP$8,\"-\",IF(PRODUCT(F22,AD22,AG22,AJ22,AM22,AP22)<30,(PRODUCT(F22,AD22,AG22,AJ22,AM22,AP22)),\">30\"))))","v":9.7829814181689425},null,null,null,0.86935823539880586,1.0216227766016839,10.86387487527124,null,null,null,null,null,0.12081380413289936,null,null,null,null,1.1927488803792003,null,null,12.997147268522797,null,null,null,0.94262500000000005,null,null,null,26.496481781250004,null,null,null,0.49052351085041451,null,null,null,"Sıvılaşma Beklenir",null,null,null,null,null,null,null,null,null,2.8,null,null,null,7.2750000000000004,null,null,null,0.50947648914958554,null,null,null,10.378036083977056,null,null,null,null,2.8,null,null,null,7.2750000000000004,null,null,null,0.95353914436819842,null,null,null,19.423592370780202]
[null,{"$f":"IF(E23>0,\"6-\",\"\")","v":"6-"},null,null,9,10,"GP-GM",null,null,null,null,null,null,null,null,null,null,null,19,20,null,174.15,null,null,null,105.48,null,null,null,0.95225616767428711,null,null,1,null,null,1,null,null,1,null,null,1,null,null,{"$f":"IF(E23=\"\",\"\",IF(F23=\"R\",\"-\",IF(E23<$AP$8,\"-\",IF(PRODUCT(F23,AD23,AG23,AJ23,AM23,AP23)<30,(PRODUCT(F23,AD23,AG23,AJ23,AM23,AP23)),\">30\"))))","v":9.5225616767428711},null,null,null,"","",9.5225616767428711,null,null,null,null,null,0.10893426026681351,null,null,null,null,1.1927488803792003,null,null,13.705144765803439,null,null,null,0.93115000000000003,null,null,null,31.621155637500006,null,null,null,0.4334169479103509,null,null,null,"Sıvılaşma Beklenir",null,null,null,null,null,null,null,null,null,1.5,null,null,null,5.875,null,null,null,0.5665830520896491,null,null,null,4.9930131465400329,null,null,null,null,1.5,null,null,null,5.875,null,null,null,0.97284197066682587,null,null,null,8.5731698665014022]
[null,{"$f":"IF(E24>0,\"7-\",\"\")","v":"7-"},null,null,10.5,15,"SM",null,null,null,null,null,null,null,null,null,null,null,19,20,null,204.15,null,null,null,120.765,null,null,null,0.88995554213289019,null,null,1,null,null,1,null,null,1,null,null,1,null,null,13.349333131993353,null,null,null,"","",13.349333131993353,null,null,null,null,null,0.14387790784355822,null,null,null,null,1.1927488803792003,null,null,20.724507432325854,null,null,null,0.89364999999999994,null,null,null,35.575536262500002,null,null,null,0.58254940359596086,null,null,null,"Sıvılaşma Beklenir",null,null,null,null,null,null,null,null,null,1.5,null,null,null,5.125,null,null,null,0.41745059640403914,null,null,null,3.2091514598560504,null,null,null,null,1.5,null,null,null,5.125,null,null,null,0.90446377878080131,null,null,null,6.9530652993774096]
[null,{"$f":"IF(E25>0,\"8-\",\"\")","v":"8-"},null,null,12,12,"GP-GM",null,null,null,null,null,null,null,null,null,null,null,19,20,null,234.15,null,null,null,136.05000000000001,null,null,null,0.83847396426730769,null,null,1,null,null,1,null,null,1,null,null,1,null,null,10.061687571207692,null,null,null,"","",10.061687571207692,null,null,null,null,null,0.11366307329808251,null,null,null,null,1.1927488803792003,null,null,18.444503039848417,null,null,null,0.85359999999999991,null,null,null,38.974735800000005,null,null,null,0.47324254189937098,null,null,null,"Sıvılaşma Beklenir",null,null,null,null,null,null,null,null,null,1.5,null,null,null,4.375,null,null,null,0.52675745810062902,null,null,null,3.4568458187853781,null,null,null,null,1.5,null,null,null,4.375,null,null,null,0.96018811154470052,null,null,null,6.3012344820120978]
[null,{"$f":"IF(E26>0,\"9-\",\"\")","v":"9-"},null,null,13.5,14,"CH",null,null,null,null,null,null,null,null,null,null,null,19,20,null,264.14999999999998,null,null,null,151.33499999999998,null,null,null,0.79500372626142513,null,null,1,null,null,1,null,null,1,null,null,1,null,null,11.130052167659951,null,null,null,"","",11.130052167659951,null,null,null,null,null,0.12321701131832324,null,null,null,null,1.1927488803792003,null,null,22.241243725352149,null,null,null,0.81354999999999988,null,null,null,41.905350337499996,null,null,null,0.53074949967543983,null,null,null,"Sıvılaşma Beklenir",null,null,null,null,null,null,null,null,null,1.5,null,null,null,3.625,null,null,null,0.46925050032456017,null,null,null,2.5515495955147958,null,null,null,null,1.5,null,null,null,3.625,null,null,null,0.9350446438116492,null,null,null,5.0843052507258424]
[null,{"$f":"IF(E27>0,\"10-\",\"\")","v":"10-"},null,null,15,16,"MH",null,null,null,null,null,null,null,null,null,null,null,19,20,null,294.14999999999998,null,null,null,166.61999999999998,null,null,null,0.75766162257145442,null,null,1,null,null,1,null,null,1,null,null,1,null,null,{"$f":"IF(E27=\"\",\"\",IF(F27=\"R\",\"-\",IF(E27<$AP$8,\"-\",IF(PRODUCT(F27,AD27,AG27,AJ27,AM27,AP27)<30,(PRODUCT(F27,AD27,AG27,AJ27,AM27,AP27)),\">30\"))))","v":12.122585961143271},null,null,null,"","",12.122585961143271,null,null,null,null,null,0.1323157338079845,null,null,null,null,1.1927488803792003,null,null,26.295875651981017,null,null,null,0.77349999999999985,null,null,null,44.367379874999997,null,null,null,0.59268488980116996,null,null,null,"Sıvılaşma Beklenir",null,null,null,null,null,null,null,null,null,1.5,null,null,null,2.875,null,null,null,0.40731511019883004,null,null,null,1.7565464127324546,null,null,null,null,1.5,null,null,null,2.875,null,null,null,0.89754290919292701,null,null,null,3.8706537958944978]
[null,{"$f":"IF(E28>0,\"11-\",\"\")","v":"11-"},null,null,16.5,20,"MH",null,null,null,null,null,null,null,null,null,null,null,19,19,null,322.64999999999998,null,null,null,180.40499999999997,null,null,null,0.72813946402601182,null,null,1,null,null,1,null,null,1,null,null,1,null,null,{"$f":"IF(E28=\"\",\"\",IF(F28=\"R\",\"-\",IF(E28<$AP$8,\"-\",IF(PRODUCT(F28,AD28,AG28,AJ28,AM28,AP28)<30,(PRODUCT(F28,AD28,AG28,AJ28,AM28,AP28)),\">30\"))))","v":14.562789280520237},null,null,null,"","",14.562789280520237,null,null,null,null,null,0.15569615664191244,null,null,null,null,1.1927488803792003,null,null,33.502366071205579,null,null,null,0.73344999999999994,null,null,null,46.146290287500001,null,null,null,0.72600345255229803,null,null,null,"Sıvılaşma Beklenir",null,null,null,null,null,null,null,null,null,1.5,null,null,null,2.125,null,null,null,0.27399654744770197,null,null,null,0.87336399498954997,null,null,null,null,1.5,null,null,null,2.125,null,null,null,0.77854429807320336,null,null,null,2.4816099501083357]
[null,{"$f":"IF(E29>0,\"12-\",\"\")","v":"12-"},null,null,18,22,"MH",null,null,null,null,null,null,null,null,null,null,null,19,19,14,351.15,null,null,null,194.18999999999997,null,null,null,0.70181948874216216,null,null,1,null,null,1,null,null,1,null,null,1,null,null,15.440028752327567,null,null,null,2.204745857525146,{"$f":"IF(E29=\"\",\"\",IF(F29=\"R\",\"-\",IF(U29=\"\",\"\",IF(AS29=\">30\",\"-\",IF(AS29=\"\",\"\",IF(E29=\"\",\"\",IF(U29<=5,1,IF(AND(U29>5,U29<35),(0.99+(U29^1.5)/1000),IF(U29>=35,1.2)))))))))","v":1.042383203414835},18.299172489193516,null,null,null,null,null,0.19520224059340316,null,null,null,null,1.1927488803792003,null,null,45.212724437810721,null,null,null,0.69339999999999991,null,null,null,47.48004495,null,null,null,0.95224687519616014,null,null,null,"Sıvılaşma Beklenir",null,null,null,null,null,null,null,null,null,1.5,null,null,null,1.375,null,null,null,4.7753124803839864E-2,null,null,null,9.8490819907919719E-2,null,null,null,null,1.5,null,null,null,1.375,null,null,null,0.50912156855449964,null,null,null,1.0500632351436554]
[null,{"$f":"IF(E30>0,\"13-\",\"\")","v":"13-"},null,null,19.5,25,null,null,null,null,null,null,null,null,null,null,null,null,19,19,16,379.65,null,null,null,207.97499999999997,null,null,null,0.67816174602264445,null,null,1,null,null,1,null,null,1,null,null,1,null,null,16.95404365056611,null,null,null,2.7671350306678164,{"$f":"IF(E30=\"\",\"\",IF(F30=\"R\",\"-\",IF(U30=\"\",\"\",IF(AS30=\">30\",\"-\",IF(AS30=\"\",\"\",IF(E30=\"\",\"\",IF(U30<=5,1,IF(AND(U30>5,U30<35),(0.99+(U30^1.5)/1000),IF(U30>=35,1.2)))))))))","v":1.054},20.636697038364495,null,null,null,null,null,0.22348754404103277,null,null,null,null,1.1927488803792003,null,null,55.438755617248574,null,null,null,0.65334999999999988,null,null,null,48.368643862499994,null,null,null,1.1461713868771501,null,null,null,"Sıvılaşma Yok",null,null,null,null,null,null,null,null,null,"-",null,null,null,"-",null,null,null,"-",null,null,null,"-",null,null,null,null,1.5,null,null,null,0.625,null,null,null,0.31053459869112721,null,null,null,0.29112618627293174]
[null,{"$f":"IF(E31>0,\"14-\",\"\")","v":"14-"},null,null,21,30,null,null,null,null,null,null,null,null,null,null,null,null,19,19,18,408.15,null,null,null,221.75999999999996,null,null,null,0.65674571568068485,null,null,1,null,null,1,null,null,1,null,null,1,null,null,19.702371470420545,null,null,null,3.2335488424157086,1.066367532368147,24.243518089128642,null,null,null,null,null,0.27768276534966618,null,null,null,null,1.1927488803792003,null,null,73.448199864860882,null,null,null,0.61329999999999996,null,null,null,48.812087025000004,null,null,null,1.5047133679664841,null,null,null,"Sıvılaşma Yok",null,null,null,null,null,null,null,null,null,"-",null,null,null,"-",null,null,null,"-",null,null,null,"-",null,null,null,null,"-",null,null,null,"-",null,null,null,"-",null,null,null,"-"]
[null,{"$f":"IF(E32>0,\"15-\",\"\")","v":""},null,null,null,null,null,null,null,null,null,null,null,null,null,null,null,null,null,null,null,408.15,null,null,null,"",null,null,null,"",null,null,"",null,null,"",null,null,"",null,null,"",null,null,"",null,null,null,"","",{"$f":"IF(E32=\"\",\"\",IF(E32<$AP$8,\"-\",IF(AS32=\"-\",\"-\",IF(AS32=\">30\",\"-\",IF(U32<=5,AS32,IF(U32>=35,(5+1.2*AS32),((EXP(1.76-(190/(U32^2))))+((0.99+(U32^1.5)/1000)*AS32))))))))","v":""},null,null,null,null,null,"",null,null,null,null,"",null,null,"",null,null,null,"",null,null,null,"",null,null,null,"",null,null,null,"",null,null,null,null,null,null,null,null,null,"",null,null,null,"",null,null,null,"",null,null,null,"",null,null,null,null,"",null,null,null,"",null,null,null,"",null,null,null,""]
[]
[null,"Þ",null,null,19.5,"Ü ","Sıvılaşmanın Bittiği Zemin Tabakası Başlangıç Derinliği, m [Derinlik değerini SPT-N sonuçlarını kullanarak elle giriniz]",null,null,null,null,null,null,null,null,null,null,null,null,null,null,"γw = 9.81 kN/m3",null,null,null,null,null,null,null,null,"N1,60 = N CN CR CS CB CE ;     N1,60f = α + β·N1,60",null,null,null,null,null,null,null,null,null,null,null,null,null,null,null,null,null,null,null,null,null,null,null,null,null,"YASS (Statik) = YASS (Depremli) kabul edilmiştir.",null,null,null,null,null,null,null,null,null,null,null,null,null,null,null,null,null,null,null,null,null,null,null,null,null,null,null,null,null,null,null,null,null,"FL<1.0",null,null,null,"LI =",null,null,{"$f":"SUM(CY18:DC32)","v":41.868288344916969},null,null,{"$f":"IF(CT34=0,\"Çok Düşük\",IF(CT34<=5,\"Düşük\",IF(CT34<=15,\"Yüksek\",IF(CT34>15,\"Çok Yüksek\"))))","v":"Çok Yüksek"},null,null,null,null,null,null,"FL≤1.41",null,null,null,"LS =",null,null,{"$f":"SUM(DP18:DT32)","v":80.749585764638041},null,null,{"$f":"IF(DK34=0,\"Sıvılaşma Yok\",IF(DK34<15,\"Çok Düşük\",IF(DK34<35,\"Düşük\",IF(DK34<65,\"Orta\",IF(DK34<85,\"Yüksek\",IF(DK34<100,\"Çok Yüksek\",\"-\"))))))","v":"Yüksek"}]
[]
[null,"NOT : Hesaplamaların sorumluluğu kullanıcıya ait olup, sıvılaşma analizi hesap cetveline ait telif hakları, 5846 sayılı Fikir ve Sanat Eserleri Kanunu gereğince TMMOB Jeoloji Mühendisleri Odasına ait olup, izin almaksızın içeriğinde herhangi bir değişiklik yapılamaz.                                                                                                                                                                                                                                                                                                                                                                          Hesap cetveli JMO logolu kullanılmak kaydıyla  ücretsiz olarak herkesin kullanımına açıktır. Ancak Oda logosunun hesap cetvelinden çıkarılarak kullanılmasının tespit edilmesi durumunda 5846 sayılı kanun gereğince ilgili kişi hakkında gerekli hukuki yollara başvurulur."]

{"sheet":"Oturma-Yanal Yay. ve Muk. Kaybı","index":1,"n_rows":40,"n_cols":202,"rows_kept":40,"cut":false,"hidden":false,"merged":[[30,8,30,9],[30,10,30,22],[39,101,39,108],[11,101,13,109],[17,89,17,94],[17,101,17,109],[20,57,20,61],[24,38,24,42],[24,43,24,47],[24,48,24,52],[22,23,22,27],[22,28,22,32],[22,33,22,37],[22,38,22,42],[22,43,22,47],[22,48,22,52],[23,23,23,27],[23,28,23,32],[14,57,14,61],[11,23,13,27],[15,85,15,88],[15,57,15,61],[16,57,16,61],[15,62,15,66],[26,116,29,121],[24,89,24,94],[25,85,25,88],[26,85,26,88],[28,85,28,88],[27,89,27,94],[28,89,28,94],[29,89,29,94],[21,89,21,94],[22,89,22,94],[23,89,23,94],[22,85,22,88],[28,95,28,100],[26,110,29,115],[21,101,21,109],[29,101,29,109],[28,101,28,109],[27,101,27,109],[26,101,26,109],[25,101,25,109],[24,101,24,109],[23,101,23,109],[22,101,22,109],[26,89,26,94],[34,3,34,155],[24,95,24,100],[21,95,21,100],[25,95,25,100],[22,95,22,100],[23,95,23,100],[26,95,26,100],[25,62,25,66],[24,53,24,56],[25,53,25,56],[24,81,24,84],[25,81,25,84],[23,4,23,7],[23,8,23,10],[22,53,22,56],[23,33,23,37],[29,122,30,154],[30,85,30,88],[21,85,21,88],[27,95,27,100],[20,110,25,115],[20,116,25,121],[29,95,29,100],[30,101,30,109],[20,62,20,66],[20,89,20,94],[20,77,20,80],[21,77,21,80],[22,77,22,80],[23,77,23,80],[24,77,24,80],[25,77,25,80],[22,81,22,84],[21,81,21,84],[20,81,20,84],[20,85,20,88],[25,89,25,94],[23,85,23,88],[24,85,24,88],[23,81,23,84],[24,74,24,76],[25,74,25,76],[21,4,21,7],[21,8,21,10],[21,62,21,66],[21,67,21,70],[21,53,21,56],[22,1,22,3],[22,4,22,7],[22,8,22,10],[21,12,21,22],[21,23,21,27],[21,28,21,32],[21,33,21,37],[21,38,21,42],[21,43,21,47],[21,48,21,52],[22,12,22,22],[22,67,22,70],[22,57,22,61],[22,62,22,66],[18,1,18,3],[18,4,18,7],[30,57,30,61],[21,57,21,61],[18,67,18,70],[20,67,20,70],[18,74,18,76],[19,74,19,76],[20,74,20,76],[21,74,21,76],[30,62,30,70],[29,71,29,73],[19,71,19,73],[20,12,20,22],[20,23,20,27],[20,28,20,32],[20,33,20,37],[20,38,20,42],[20,43,20,47],[20,48,20,52],[19,1,19,3],[19,4,19,7],[19,8,19,10],[18,12,18,22],[4,61,4,72],[4,73,4,84],[7,81,7,100],[7,67,7,80],[5,61,5,72],[5,85,5,93],[6,36,6,47],[5,94,5,103],[5,73,5,84],[7,51,7,66],[7,36,7,50],[15,53,15,56],[15,48,15,52],[16,33,16,37],[16,38,16,42],[11,57,13,61],[7,23,7,35],[5,36,5,47],[6,65,6,72],[6,48,6,64],[6,265,7,275],[7,192,7,195],[7,197,7,204],[5,206,6,215],[15,101,15,109],[14,85,14,88],[6,104,6,121],[6,93,6,103],[6,73,6,92],[7,101,7,116],[7,117,7,132],[4,122,5,132],[6,122,6,132],[6,133,6,144],[4,192,4,194],[4,196,4,205],[5,191,6,191],[7,147,7,155],[7,133,7,146],[11,77,13,80],[14,77,14,80],[11,81,13,84],[14,81,14,84],[15,81,15,84],[16,101,16,109],[15,89,15,94],[11,71,13,73],[14,71,14,73],[15,71,15,73],[16,215,16,217],[10,95,10,100],[15,95,15,100],[16,95,16,100],[11,116,13,121],[14,116,14,121],[11,110,13,115],[14,110,14,115],[14,215,14,217],[10,116,10,121],[14,101,14,109],[15,110,16,115],[10,101,10,115],[15,116,16,121],[10,122,10,155],[16,71,16,73],[10,71,10,84],[11,95,13,100],[14,95,14,100],[15,77,15,80],[10,85,10,94],[16,74,16,76],[16,89,16,94],[17,1,17,3],[17,4,17,7],[17,8,17,10],[16,12,16,22],[16,1,16,3],[16,4,16,7],[16,8,16,10],[11,1,13,3],[11,4,13,7],[11,8,13,10],[15,1,15,3],[15,4,15,7],[15,8,15,10],[14,1,14,3],[14,4,14,7],[14,8,14,10],[16,67,16,70],[11,62,13,66],[15,28,15,32],[15,33,15,37],[18,215,18,217],[19,62,19,66],[19,67,19,70],[17,28,17,32],[19,215,19,217],[18,38,18,42],[18,43,18,47],[17,38,17,42],[18,95,18,100],[17,74,17,76],[17,81,17,84],[17,71,17,73],[18,71,18,73],[17,77,17,80],[18,77,18,80],[17,110,17,121],[18,110,19,121],[17,215,17,217],[17,62,17,66],[17,95,17,100],[19,95,19,100],[18,122,18,154],[18,81,18,84],[18,62,18,66],[19,101,19,109],[18,101,18,109],[18,89,18,94],[18,23,18,27],[18,28,18,32],[19,43,19,47],[18,48,18,52],[18,53,18,56],[26,53,26,56],[20,53,20,56],[24,28,24,32],[24,33,24,37],[18,57,18,61],[19,77,19,80],[19,81,19,84],[19,85,19,88],[19,23,19,27],[19,28,19,32],[19,53,19,56],[19,89,19,94],[18,33,18,37],[18,85,18,88],[20,95,20,100],[20,101,20,109],[23,12,23,22],[24,23,24,27],[24,62,24,66],[25,1,25,3],[25,4,25,7],[25,8,25,10],[25,23,25,27],[25,28,25,32],[25,33,25,37],[25,38,25,42],[25,43,25,47],[25,48,25,52],[23,1,23,3],[24,12,24,22],[27,81,27,84],[27,85,27,88],[27,12,27,22],[26,57,26,61],[26,81,26,84],[26,71,26,73],[27,71,27,73],[26,77,26,80],[27,77,27,80],[26,12,26,22],[27,23,27,27],[27,28,27,32],[27,33,27,37],[27,38,27,42],[27,43,27,47],[27,48,27,52],[27,53,27,56],[26,74,26,76],[26,33,26,37],[26,38,26,42],[26,43,26,47],[26,62,26,66],[27,57,27,61],[27,62,27,66],[28,81,28,84],[28,62,28,66],[28,67,28,70],[28,48,28,52],[28,53,28,56],[28,71,28,73],[28,77,28,80],[28,57,28,61],[28,74,28,76],[29,77,29,80],[29,74,29,76],[54,129,54,148],[30,1,30,3],[30,4,30,7],[29,12,29,22],[29,1,29,3],[29,4,29,7],[29,8,29,10],[29,62,29,66],[29,67,29,70],[29,85,29,88],[29,57,29,61],[30,110,30,121],[30,48,30,56],[29,23,29,27],[29,28,29,32],[29,33,29,37],[30,77,30,80],[30,81,30,84],[29,53,29,56],[30,89,30,94],[30,71,30,73],[30,74,30,76],[39,14,39,25],[26,4,26,7],[26,8,26,10],[30,23,30,27],[30,28,30,32],[30,33,30,37],[11,48,13,52],[14,23,14,27],[14,28,14,32],[14,33,14,37],[14,38,14,42],[14,43,14,47],[14,48,14,52],[15,38,15,42],[29,38,29,42],[29,43,29,47],[29,48,29,52],[28,43,28,47],[26,48,26,52],[23,38,23,42],[18,8,18,10],[17,23,17,27],[15,12,15,22],[11,11,13,22],[17,12,17,22],[9,1,10,22],[20,1,20,3],[23,48,23,52],[23,53,23,56],[19,48,19,52],[10,23,10,56],[19,57,19,61],[14,11,14,22],[16,53,16,56],[16,23,16,27],[16,48,16,52],[11,53,13,56],[14,53,14,56],[9,23,9,70],[11,28,13,32],[11,33,13,37],[11,38,13,42],[11,43,13,47],[15,23,15,27],[15,43,15,47],[14,62,14,66],[16,28,16,32],[14,67,14,70],[28,1,28,3],[26,23,26,27],[26,28,26,32],[20,4,20,7],[20,8,20,10],[19,12,19,22],[19,33,19,37],[19,38,19,42],[27,1,27,3],[27,4,27,7],[27,8,27,10],[28,38,28,42],[28,12,28,22],[28,23,28,27],[28,28,28,32],[28,33,28,37],[28,4,28,7],[28,8,28,10],[26,1,26,3],[24,1,24,3],[24,4,24,7],[24,8,24,10],[25,12,25,22],[21,1,21,3],[1,23,2,155],[4,145,5,155],[6,145,6,155],[9,101,9,155],[3,23,3,35],[17,43,17,47],[17,48,17,52],[17,53,17,56],[16,77,16,80],[10,57,10,70],[11,67,13,70],[9,71,9,100],[11,74,13,76],[14,74,14,76],[15,74,15,76],[17,57,17,61],[17,85,17,88],[15,67,15,70],[16,85,16,88],[16,62,16,66],[16,81,16,84],[11,89,13,94],[14,89,14,94],[11,85,13,88],[27,74,27,76],[25,71,25,73],[22,74,22,76],[23,74,23,76],[25,57,25,61],[23,62,23,66],[23,67,23,70],[23,57,23,61],[24,57,24,61],[25,67,25,70],[27,67,27,70],[23,71,23,73],[24,71,24,73],[24,67,24,70],[22,71,22,73],[5,1,7,22],[16,43,16,47],[17,67,17,70],[23,43,23,47],[3,145,3,150],[3,36,3,144],[3,151,3,155],[17,33,17,37],[32,1,33,155],[17,122,17,154],[4,104,5,121],[4,133,5,144],[4,94,4,103],[4,85,4,93],[4,48,5,60],[4,36,4,47],[4,23,4,35],[5,23,5,35],[6,23,6,35],[29,81,29,84],[30,38,30,47],[20,71,20,73],[21,71,21,73],[26,67,26,70]]}
[]
[null,null,null,null,null,null,null,null,null,null,null,null,null,null,null,null,null,null,null,null,null,null,null,"SIVILAŞMA SONRASI OTURMA, YANAL YAYILMA VE KAYMA DAYANIMI KAYBI HESAPLARI"]
[]
[null,null,null,null,null,null,null,null,null,null,null,null,null,null,null,null,null,null,null,null,null,null,null,"PROJE ADI :",null,null,null,null,null,null,null,null,null,null,null,null,{"$f":"'Sıvılaşma Potansiyeli Analizi'!S5","v":"ANKARA ÇANKAYA İLÇESİ "},null,null,null,null,null,null,null,null,null,null,null,null,null,null,null,null,null,null,null,null,null,null,null,null,null,null,null,null,null,null,null,null,null,null,null,null,null,null,null,null,null,null,null,null,null,null,null,null,null,null,null,null,null,null,null,null,null,null,null,null,null,null,null,null,null,null,null,null,null,null,null,null,null,null,null,null,null,null,null,null,null,null,null,null,null,null,null,null,null,null,null,null,null,null,null,null,null,null,null,null,null,null,null,null,null,null,null,null,"Sayfa:",null,null,null,null,null,"2/2"]
[null,null,null,null,null,null,null,null,null,null,null,null,null,null,null,null,null,null,null,null,null,null,null,"Ada No :",null,null,null,null,null,null,null,null,null,null,null,null,{"$f":"'Sıvılaşma Potansiyeli Analizi'!S6","v":145},null,null,null,null,null,null,null,null,null,null,null,"Koordinatlar:",null,null,null,null,null,null,null,null,null,null,null,null,"X",null,null,null,null,null,null,null,null,null,null,null,"Y",null,null,null,null,null,null,null,null,null,null,null,"Kot",null,null,null,null,null,null,null,null,"Datum",null,null,null,null,null,null,null,null,null,"Yerel Zemin Sınıfı",null,null,null,null,null,null,null,null,null,null,null,null,null,null,null,null,null,"Mw ",null,null,null,null,null,null,null,null,null,null,"DTS",null,null,null,null,null,null,null,null,null,null,null,"SDS  "]
[null,"TMMOB                                                    JEOLOJİ MÜHENDİSLERİ                            ODASI ",null,null,null,null,null,null,null,null,null,null,null,null,null,null,null,null,null,null,null,null,null,"Parsel No :",null,null,null,null,null,null,null,null,null,null,null,null,{"$f":"'Sıvılaşma Potansiyeli Analizi'!S7","v":24},null,null,null,null,null,null,null,null,null,null,null,null,null,null,null,null,null,null,null,null,null,null,null,null,{"$f":"'Sıvılaşma Potansiyeli Analizi'!AL7","v":1234567.8500000001},null,null,null,null,null,null,null,null,null,null,null,{"$f":"'Sıvılaşma Potansiyeli Analizi'!AU7","v":12345678.85},null,null,null,null,null,null,null,null,null,null,null,{"$f":"'Sıvılaşma Potansiyeli Analizi'!BF7","v":865.3},null,null,null,null,null,null,null,null,{"$f":"'Sıvılaşma Potansiyeli Analizi'!BN7","v":"ITRF-6°"}]
[null,null,null,null,null,null,null,null,null,null,null,null,null,null,null,null,null,null,null,null,null,null,null,"Sondaj Kuyu No :",null,null,null,null,null,null,null,null,null,null,null,null,{"$f":"'Sıvılaşma Potansiyeli Analizi'!S8","v":"SK-3"},null,null,null,null,null,null,null,null,null,null,null,"Yeraltı Suyu Seviyesi :",null,null,null,null,null,null,null,null,null,null,null,null,null,null,null,null,{"$f":"'Sıvılaşma Potansiyeli Analizi'!AP8","v":1.9999999999999998},null,null,null,null,null,null,null,{"$f":"'Sıvılaşma Potansiyeli Analizi'!AX8","v":"SPT Klavuz Tij Boyu (yerden):"},null,null,null,null,null,null,null,null,null,null,null,null,null,null,null,null,null,null,null,{"$f":"'Sıvılaşma Potansiyeli Analizi'!BQ8","v":1},null,null,null,null,null,null,null,null,null,null,{"$f":"'Sıvılaşma Potansiyeli Analizi'!BX8","v":"ZD"},null,null,null,null,null,null,null,null,null,null,null,null,null,null,null,null,null,{"$f":"'Sıvılaşma Potansiyeli Analizi'!CM8","v":6.9999999999999982},null,null,null,null,null,null,null,null,null,null,{"$f":"'Sıvılaşma Potansiyeli Analizi'!CY8","v":"DTS - 2"},null,null,null,null,null,null,null,null,null,null,null,{"$f":"'Sıvılaşma Potansiyeli Analizi'!DJ8","v":0.75}]
[null,null,null,null,null,null,null,null,null,null,null,null,null,null,null,null,null,null,null,null,null,null,null,"SPT Verileri :",null,null,null,null,null,null,null,null,null,null,null,null,"Numune Alıcı Tipi :",null,null,null,null,null,null,null,null,null,null,null,null,null,null,{"$f":"'Sıvılaşma Potansiyeli Analizi'!Z9","v":"Standart (iç tüpü olan)"},null,null,null,null,null,null,null,null,null,null,null,null,null,null,null,"Sondaj Delgi Çapı :",null,null,null,null,null,null,null,null,null,null,null,null,null,{"$f":"'Sıvılaşma Potansiyeli Analizi'!BE9","v":"Çap 65mm-115mm arasında"},null,null,null,null,null,null,null,null,null,null,null,null,null,null,null,null,null,null,null,"Tokmak Tipi :",null,null,null,null,null,null,null,null,null,null,null,null,null,null,null,{"$f":"'Sıvılaşma Potansiyeli Analizi'!CF9","v":"Otomatik darbeli tokmak"},null,null,null,null,null,null,null,null,null,null,null,null,null,null,null,"Enerji Oranı (%) :",null,null,null,null,null,null,null,null,null,null,null,null,null,{"$f":"'Sıvılaşma Potansiyeli Analizi'!DK9","v":60}]
[]
[null,"Sıvılaşma Potansiyeli Analizi Sayfasından Alınan Veriler       [Veri girişi yapılamaz]",null,null,null,null,null,null,null,null,null,null,null,null,null,null,null,null,null,null,null,null,null,"Sıvılaşma Kaynaklı Düşey ve Yanal Yer Değiştirme Tahmini*",null,null,null,null,null,null,null,null,null,null,null,null,null,null,null,null,null,null,null,null,null,null,null,null,null,null,null,null,null,null,null,null,null,null,null,null,null,null,null,null,null,null,null,null,null,null,null,"Sıvılaşma Sonrası Kayma Dayanımı Kaybı*",null,null,null,null,null,null,null,null,null,null,null,null,null,null,null,null,null,null,null,null,null,null,null,null,null,null,null,null,null,"Kapak Tabakası Etkisi  [Renkli hücrelerde veri girişi ve seçimi yapınız]                                             Bilgi amaçlı verilmiştir. TBDY-2018'de yer almamaktadır."]
[null,null,null,null,null,null,null,null,null,null,null,null,null,null,null,null,null,null,null,null,null,null,null,"Ishihara ve Yoshimine                                                               [1992]",null,null,null,null,null,null,null,null,null,null,null,null,null,null,null,null,null,null,null,null,null,null,null,null,null,null,null,null,null,null,null,null,null,"Tokimatsu ve Seed                                        [1987]",null,null,null,null,null,null,null,null,null,null,null,null,null,"Idriss ve Boulanger                        [2008]",null,null,null,null,null,null,null,null,null,null,null,null,null,"Kramer ve Wang         [2015]",null,null,null,null,null,null,null,null,null,"Weber vd.  [2015]",null,null,null,null,null,"Ishihara                             [1985]",null,null,null,null,null,null,null,null,null,null,null,null,null,null,"Sönmez vd. [2008]",null,null,null,null,null,"Kırmızı dairenin (işaretçi) konumu otomatik olarak belirlenmektedir. Bu dairenin konumuna göre hasar seçimini elle yapınız."]
[null,"Sıra No",null,null," Derinlik (m)",null,null,null,"SPT - N",null,null,"TBDY-2018'e göre                             Sıvılaşmaya Karşı                                 Güvenlik Koşulu                                            τR /τdeprem ≥ 1.10",null,null,null,null,null,null,null,null,null,null,null,"Limit Kesme Birim Deformasyonu, glim  ",null,null,null,null,"Parametre                                              Fα",null,null,null,null,"Maks. Kesme Birim Deformasyonu, gmax  ",null,null,null,null,"Sıvılaşan Zemin  Tabakası Kalınlığı                                        ΔHi (m)",null,null,null,null,"Yanal Yer Değiştirme                                    ΔLDli (m)",null,null,null,null,"Hacimsel Birim Deformasyon                                     Ɛν   (%) ",null,null,null,null,"Dinamik Oturma                                      ΔSi (m)    ",null,null,null,"CSRM,7,5 ",null,null,null,null,"ε                 (%)",null,null,null,null,"ΔH              (m)",null,null,null,"ΔN1,60",null,null,"f            ( °)",null,null,"Durum-1                                  cu,r / σ'vo                                                 ",null,null,null,"Durum-2                                  cu,r / σ'vo                                                 ",null,null,null,"σ'vo             (atm)",null,null,null,"cu,r          (kPa)                                                    ",null,null,null,null,null,"cu,r          (kPa)                                                    ",null,null,null,null,null,"Sıvılaşmaya Yatkın Kum Zemin Kalınlığı, H2 (m)                                                    ",null,null,null,null,null,null,null,null,"Örtü Zemin Tabakası Kalınlığı, H1  (m)                                                    ",null,null,null,null,null,"Sıvılaşma Şiddeti İndeksi          LS                            "]
[null,null,null,null,null,null,null,null,null,null,null,null,null,null,null,null,null,null,null,null,null,null,null,null,null,null,null,null,null,null,null,null,null,null,null,null,null,null,null,null,null,null,null,null,null,null,null,null,null,null,null,null,null,null,null,null,null,null,null,null,null,null,null,null,null,null,null,null,null,null,null,null,null,null,null,null,null,null,null,null,null,null,null,null,null,null,null,null,null,null,null,null,null,null,null,null,null,null,null,null,null,null,null,null,null,null,null,null,null,null,null,null,null,null,null,null,null,null,null,null,null,null,null,null,null,null,null,null,null,null,null,null,null,null,null,null,null,null,null,null,null,null,null,null,null,null,null,null,null,null,null,null,null,null,null,null,null,null,null,null,null,null,null,null,null,null,null,null,null,null,null,null,null,null,null,null,null,null,null,null,null,null,null,null,null,null,null,null,null,null,null,null,null,null,null,null,null,null,null,null,null,"Sıvılaşmayan zemin"]
[null,null,null,null,null,null,null,null,null,null,null,null,null,null,null,null,null,null,null,null,null,null,null,null,null,null,null,null,null,null,null,null,null,null,null,null,null,null,null,null,null,null,null,null,null,null,null,null,null,null,null,null,null,null,null,null,null,null,null,null,null,null,null,null,null,null,null,null,null,null,null,null,null,null,null,null,null,null,null,null,null,null,null,null,null,null,null,null,null,null,null,null,null,null,null,null,null,null,null,null,null,null,null,null,null,null,null,null,null,null,null,null,null,null,null,null,null,null,null,null,null,null,null,null,null,null,null,null,null,null,null,null,null,null,null,null,null,null,null,null,null,null,null,null,null,null,null,null,null,null,null,null,null,null,null,null,null,null,null,null,null,null,null,null,null,null,null,null,null,null,null,null,null,null,null,null,null,null,null,null,null,null,null,null,null,null,null,null,null,null,null,null,null,null,null,null,null,null,null,null,null,"Sıvılaşabilir zeminler"]
[null,"-1-",null,null,"-2-",null,null,null,"-3-",null,null,"-4-",null,null,null,null,null,null,null,null,null,null,null,"-5-",null,null,null,null,"-6-",null,null,null,null,"-7-",null,null,null,null,"-8-",null,null,null,null,"-9-",null,null,null,null,"-10-",null,null,null,null,"-11-",null,null,null,"-12-",null,null,null,null,"-13-",null,null,null,null,"-14-",null,null,null,"-15-",null,null,"-16-",null,null,"-17-",null,null,null,"-18-",null,null,null,"-19-",null,null,null,"-20-",null,null,null,null,null,"-21-",null,null,null,null,null,"-22-",null,null,null,null,null,null,null,null,"-23-",null,null,null,null,null,"-24-"]
[null,{"$f":"+IF('Sıvılaşma Potansiyeli Analizi'!B18=\"\",\"\",'Sıvılaşma Potansiyeli Analizi'!B18)","v":"1-"},null,null,{"$f":"+IF('Sıvılaşma Potansiyeli Analizi'!E18=\"\",\"\",'Sıvılaşma Potansiyeli Analizi'!E18)","v":1.1000000000000001},null,null,null,{"$f":"+IF('Sıvılaşma Potansiyeli Analizi'!F18=\"\",\"\",'Sıvılaşma Potansiyeli Analizi'!F18)","v":8},null,null,{"$f":"+IF('Sıvılaşma Potansiyeli Analizi'!BY18=\"\",\"\",'Sıvılaşma Potansiyeli Analizi'!BY18)","v":"-"},{"$f":"+IF('Sıvılaşma Potansiyeli Analizi'!CC18=\"\",\"\",'Sıvılaşma Potansiyeli Analizi'!CC18)","v":"YAS yok"},null,null,null,null,null,null,null,null,null,null,{"$f":"IF(E16=\"\",\"\",IF(L16=\"-\",\"-\",IF('Sıvılaşma Potansiyeli Analizi'!AS18>30,0,MAX(0,MIN(0.5,1.859*(1.1-SQRT('Sıvılaşma Potansiyeli Analizi'!AY18/46))^3)))))","v":"-"},null,null,null,null,{"$f":"IF(E16=\"\",\"\", IF(L16=\"-\",\"-\",IF('Sıvılaşma Potansiyeli Analizi'!AY18>30,0,0.032+0.69*SQRT(MAX(7,'Sıvılaşma Potansiyeli Analizi'!AY18))-0.13*MAX(7,'Sıvılaşma Potansiyeli Analizi'!AY18))))","v":"-"},null,null,null,null,{"$f":"IF(E16=\"\",\"\",IF(L16=\"-\",\"-\",IF(L16>2,0,IF(L16<AC16,X16, MIN(X16,0.035*(1-AC16)*(2-L16)/(L16-AC16))))))","v":"-"},null,null,null,null,{"$f":"IF('Sıvılaşma Potansiyeli Analizi'!E18=\"\",\"\",IF('Sıvılaşma Potansiyeli Analizi'!BY18=\"-\",\"-\",IF('Sıvılaşma Potansiyeli Analizi'!BY18>1.1,0,IF('Sıvılaşma Potansiyeli Analizi'!$AP$8<'Sıvılaşma Potansiyeli Analizi'!E18,('Sıvılaşma Potansiyeli Analizi'!E18-'Sıvılaşma Potansiyeli Analizi'!$AP$8)+(('Sıvılaşma Potansiyeli Analizi'!E19-'Sıvılaşma Potansiyeli Analizi'!E18)/2),IF('Sıvılaşma Potansiyeli Analizi'!$AP$8>='Sıvılaşma Potansiyeli Analizi'!E19,0,0)))))","v":"-"},null,null,null,null,{"$f":"IF(E16=\"\",\"\",IF(L16=\"-\",\"-\",IF(L16<2,AH16*AM16)))","v":"-"},null,null,null,null,{"$f":"IF(E16=\"\",\"\",IF(L16=\"-\",\"-\",IF(L16>2,0,IF('Sıvılaşma Potansiyeli Analizi'!AY18>30,0,1.5*EXP(-0.369*SQRT('Sıvılaşma Potansiyeli Analizi'!AY18))*MIN(0.08,AH16)))))","v":"-"},null,null,null,null,{"$f":"IF(E16=\"\",\"\",IF(L16=\"-\",\"-\",IF(L16>2,0,PRODUCT(AW16*AM16))))","v":"-"},null,null,null,{"$f":"IF(E16=\"\",\"\",IF(L16=\"-\",\"-\",(0.65*$EP$7*0.4*('Sıvılaşma Potansiyeli Analizi'!V18/'Sıvılaşma Potansiyeli Analizi'!Z18)*'Sıvılaşma Potansiyeli Analizi'!BQ18)/(2.5-0.2*$DS$7)))","v":"-"},null,null,null,null,{"$f":"IF(E16=\"\",\"\",IF(L16=\"-\",\"-\",IF((BF16/'Sıvılaşma Potansiyeli Analizi'!AS18)>0.01,('Sıvılaşma Potansiyeli Analizi'!AS18^(-0.6)*10*0.01),\"-\")))","v":"-"},null,null,null,null,{"$f":"IF(E16=\"\",\"\",IF(BK16=\"-\",\"-\",PRODUCT(AM16,BK16)))","v":"-"},null,null,null,{"$f":"IF(E16=\"\",\"\",IF(L16=\"-\",\"-\",IF('Sıvılaşma Potansiyeli Analizi'!U18<10,1,IF('Sıvılaşma Potansiyeli Analizi'!U18<25,2,IF('Sıvılaşma Potansiyeli Analizi'!U18<50,4,5)))))","v":"-"},null,null,{"$f":"IF(E16=\"\",\"\",IF(L16=\"-\",\"-\",DEGREES(ATAN((I16/(12.2+(20.3*'Sıvılaşma Potansiyeli Analizi'!Z18/100)))^0.34))))","v":"-"},null,null,{"$f":"IF(E16=\"\",\"\",IF(L16>=1.1,\"-\",IF(((EXP(('Sıvılaşma Potansiyeli Analizi'!AS18+BT16)/16+(('Sıvılaşma Potansiyeli Analizi'!AS18+BT16-16)/21.2)^3-3))*(1+EXP(('Sıvılaşma Potansiyeli Analizi'!AS18+BT16)/2.4-6.6)))<=TAN(RADIANS(BW16)),((EXP(('Sıvılaşma Potansiyeli Analizi'!AS18+BT16)/16+(('Sıvılaşma Potansiyeli Analizi'!AS18+BT16-16)/21.2)^3-3))*(1+EXP(('Sıvılaşma Potansiyeli Analizi'!AS18+BT16)/2.4-6.6))),TAN(RADIANS(BW16)))))","v":"-"},null,null,null,{"$f":"IF(E16=\"\",\"\",IF(L16>=1.1,\"-\",IF(((EXP(('Sıvılaşma Potansiyeli Analizi'!AS18+BT16)/16+(('Sıvılaşma Potansiyeli Analizi'!AS18+BT16-16)/21.2)^3-3)))<=TAN(RADIANS(BW16)),((EXP(('Sıvılaşma Potansiyeli Analizi'!AS18+BT16)/16+(('Sıvılaşma Potansiyeli Analizi'!AS18+BT16-16)/21.2)^3-3))),TAN(RADIANS(BW16)))))","v":"-"},null,null,null,{"$f":"IF(E16=\"\",\"\",IF(L16=\"-\",\"-\",('Sıvılaşma Potansiyeli Analizi'!Z18*9.87*0.001)))","v":"-"},null,null,null,{"$f":"IF(E16=\"\",\"\",IF(L16>=1.1,\"-\",EXP(-8.444+0.109*'Sıvılaşma Potansiyeli Analizi'!AS18+5.379*(CH16^0.1))*101.33))","v":"-"},null,null,null,null,null,{"$f":"IF(E16=\"\",\"\",IF(L16>=1.1,\"-\",(EXP((0.1292*'Sıvılaşma Potansiyeli Analizi'!AY18)+(4.322*('Sıvılaşma Potansiyeli Analizi'!Z18*0.01)^0.12)))*0.04788))","v":"-"},null,null,null,null,null,{"$f":"IF(L16=\"-\",\"-\",IF(L16<=1,AM16,\"-\"))","v":"-"},null,null,null,null,null,null,null,null,1,null,null,null,null,null,{"$f":"IF('Sıvılaşma Potansiyeli Analizi'!DK34=\"\",\"\",'Sıvılaşma Potansiyeli Analizi'!DK34)","v":80.749585764638041}]
[null,{"$f":"+IF('Sıvılaşma Potansiyeli Analizi'!B19=\"\",\"\",'Sıvılaşma Potansiyeli Analizi'!B19)","v":"2-"},null,null,{"$f":"+IF('Sıvılaşma Potansiyeli Analizi'!E19=\"\",\"\",'Sıvılaşma Potansiyeli Analizi'!E19)","v":1.8},null,null,null,{"$f":"+IF('Sıvılaşma Potansiyeli Analizi'!F19=\"\",\"\",'Sıvılaşma Potansiyeli Analizi'!F19)","v":12},null,null,{"$f":"+IF('Sıvılaşma Potansiyeli Analizi'!BY19=\"\",\"\",'Sıvılaşma Potansiyeli Analizi'!BY19)","v":"-"},{"$f":"+IF('Sıvılaşma Potansiyeli Analizi'!CC19=\"\",\"\",'Sıvılaşma Potansiyeli Analizi'!CC19)","v":"YAS yok"},null,null,null,null,null,null,null,null,null,null,{"$f":"IF(E17=\"\",\"\",IF(L17=\"-\",\"-\",IF('Sıvılaşma Potansiyeli Analizi'!AS19>30,0,MAX(0,MIN(0.5,1.859*(1.1-SQRT('Sıvılaşma Potansiyeli Analizi'!AY19/46))^3)))))","v":"-"},null,null,null,null,{"$f":"IF(E17=\"\",\"\", IF(L17=\"-\",\"-\",IF('Sıvılaşma Potansiyeli Analizi'!AY19>30,0,0.032+0.69*SQRT(MAX(7,'Sıvılaşma Potansiyeli Analizi'!AY19))-0.13*MAX(7,'Sıvılaşma Potansiyeli Analizi'!AY19))))","v":"-"},null,null,null,null,{"$f":"IF(E17=\"\",\"\",IF(L17=\"-\",\"-\",IF(L17>2,0,IF(L17<AC17,X17,MIN(X17,0.035*(1-AC17)*(2-L17)/(L17-AC17))))))","v":"-"},null,null,null,null,{"$f":"IF('Sıvılaşma Potansiyeli Analizi'!E19=\"\",\"\",IF('Sıvılaşma Potansiyeli Analizi'!BY19=\"-\",\"-\",IF('Sıvılaşma Potansiyeli Analizi'!BY19>1.1,0,IF('Sıvılaşma Potansiyeli Analizi'!E20=\"\",('Sıvılaşma Potansiyeli Analizi'!$E$34-'Sıvılaşma Potansiyeli Analizi'!E19)+(('Sıvılaşma Potansiyeli Analizi'!E19-'Sıvılaşma Potansiyeli Analizi'!E18)/2),IF(AND(AM16=0,'Sıvılaşma Potansiyeli Analizi'!$AP$8<'Sıvılaşma Potansiyeli Analizi'!E19,'Sıvılaşma Potansiyeli Analizi'!$AP$8>='Sıvılaşma Potansiyeli Analizi'!E18),(('Sıvılaşma Potansiyeli Analizi'!E20-'Sıvılaşma Potansiyeli Analizi'!E19)/2)+('Sıvılaşma Potansiyeli Analizi'!E19-'Sıvılaşma Potansiyeli Analizi'!$AP$8),(('Sıvılaşma Potansiyeli Analizi'!E20-'Sıvılaşma Potansiyeli Analizi'!E19)/2)+(('Sıvılaşma Potansiyeli Analizi'!E19-'Sıvılaşma Potansiyeli Analizi'!E18)/2))))))","v":"-"},null,null,null,null,{"$f":"IF(E17=\"\",\"\",IF(L17=\"-\",\"-\",IF(L17<2,PRODUCT(AH17,AM17),0)))","v":"-"},null,null,null,null,{"$f":"IF(E17=\"\",\"\",IF(L17=\"-\",\"-\",IF(L17>2,0,IF('Sıvılaşma Potansiyeli Analizi'!AY19>30,0,1.5*EXP(-0.369*SQRT('Sıvılaşma Potansiyeli Analizi'!AY19))*MIN(0.08,AH17)))))","v":"-"},null,null,null,null,{"$f":"IF(E17=\"\",\"\",IF(L17=\"-\",\"-\",IF(L17>2,0,PRODUCT(AW17,AM17))))","v":"-"},null,null,null,{"$f":"IF(E17=\"\",\"\",IF(L17=\"-\",\"-\",(0.65*$EP$7*0.4*('Sıvılaşma Potansiyeli Analizi'!V19/'Sıvılaşma Potansiyeli Analizi'!Z19)*'Sıvılaşma Potansiyeli Analizi'!BQ19)/(2.5-0.2*$DS$7)))","v":"-"},null,null,null,null,{"$f":"IF(E17=\"\",\"\",IF(L17=\"-\",\"-\",IF((BF17/'Sıvılaşma Potansiyeli Analizi'!AS19)>0.01,('Sıvılaşma Potansiyeli Analizi'!AS19^(-0.6)*10*0.01),\"-\")))","v":"-"},null,null,null,null,{"$f":"IF(E17=\"\",\"\",IF(AM17=\"-\",\"-\",PRODUCT(AM17,BK17)))","v":"-"},null,null,null,{"$f":"IF(E17=\"\",\"\",IF(L17=\"-\",\"-\",IF('Sıvılaşma Potansiyeli Analizi'!U19<10,1,IF('Sıvılaşma Potansiyeli Analizi'!U19<25,2,IF('Sıvılaşma Potansiyeli Analizi'!U19<50,4,5)))))","v":"-"},null,null,{"$f":"IF(E17=\"\",\"\",IF(L17=\"-\",\"-\",DEGREES(ATAN((I17/(12.2+(20.3*'Sıvılaşma Potansiyeli Analizi'!Z19/100)))^0.34))))","v":"-"},null,null,{"$f":"IF(E17=\"\",\"\",IF(L17>=1.1,\"-\",IF(((EXP(('Sıvılaşma Potansiyeli Analizi'!AS19+BT17)/16+(('Sıvılaşma Potansiyeli Analizi'!AS19+BT17-16)/21.2)^3-3))*(1+EXP(('Sıvılaşma Potansiyeli Analizi'!AS19+BT17)/2.4-6.6)))<=TAN(RADIANS(BW17)),((EXP(('Sıvılaşma Potansiyeli Analizi'!AS19+BT17)/16+(('Sıvılaşma Potansiyeli Analizi'!AS19+BT17-16)/21.2)^3-3))*(1+EXP(('Sıvılaşma Potansiyeli Analizi'!AS19+BT17)/2.4-6.6))),TAN(RADIANS(BW17)))))","v":"-"},null,null,null,{"$f":"IF(E17=\"\",\"\",IF(L17>=1.1,\"-\",IF(((EXP(('Sıvılaşma Potansiyeli Analizi'!AS19+BT17)/16+(('Sıvılaşma Potansiyeli Analizi'!AS19+BT17-16)/21.2)^3-3)))<=TAN(RADIANS(BW17)),((EXP(('Sıvılaşma Potansiyeli Analizi'!AS19+BT17)/16+(('Sıvılaşma Potansiyeli Analizi'!AS19+BT17-16)/21.2)^3-3))),TAN(RADIANS(BW17)))))","v":"-"},null,null,null,{"$f":"IF(E17=\"\",\"\",IF(L17=\"-\",\"-\",('Sıvılaşma Potansiyeli Analizi'!Z19*9.87*0.001)))","v":"-"},null,null,null,{"$f":"IF(E17=\"\",\"\",IF(L17>=1.1,\"-\",EXP(-8.444+0.109*'Sıvılaşma Potansiyeli Analizi'!AS19+5.379*(CH17^0.1))*101.33))","v":"-"},null,null,null,null,null,{"$f":"IF(E17=\"\",\"\",IF(L17>=1.1,\"-\",(EXP((0.1292*'Sıvılaşma Potansiyeli Analizi'!AY19)+(4.322*('Sıvılaşma Potansiyeli Analizi'!Z19*0.01)^0.12)))*0.04788))","v":"-"},null,null,null,null,null,{"$f":"IF(L17=\"-\",\"-\",IF(L17<=1,AM17,\"-\"))","v":"-"}]
[null,{"$f":"+IF('Sıvılaşma Potansiyeli Analizi'!B20=\"\",\"\",'Sıvılaşma Potansiyeli Analizi'!B20)","v":"3-"},null,null,{"$f":"+IF('Sıvılaşma Potansiyeli Analizi'!E20=\"\",\"\",'Sıvılaşma Potansiyeli Analizi'!E20)","v":2.6},null,null,null,{"$f":"+IF('Sıvılaşma Potansiyeli Analizi'!F20=\"\",\"\",'Sıvılaşma Potansiyeli Analizi'!F20)","v":7},null,null,{"$f":"+IF('Sıvılaşma Potansiyeli Analizi'!BY20=\"\",\"\",'Sıvılaşma Potansiyeli Analizi'!BY20)","v":0.54252655124853433},{"$f":"+IF('Sıvılaşma Potansiyeli Analizi'!CC20=\"\",\"\",'Sıvılaşma Potansiyeli Analizi'!CC20)","v":"Sıvılaşma Beklenir"},null,null,null,null,null,null,null,null,null,null,{"$f":"IF(E18=\"\",\"\",IF(L18=\"-\",\"-\",IF('Sıvılaşma Potansiyeli Analizi'!AS20>30,0,MAX(0,MIN(0.5,1.859*(1.1-SQRT('Sıvılaşma Potansiyeli Analizi'!AY20/46))^3)))))","v":0.5},null,null,null,null,{"$f":"IF(E18=\"\",\"\", IF(L18=\"-\",\"-\",IF('Sıvılaşma Potansiyeli Analizi'!AY20>30,0,0.032+0.69*SQRT(MAX(7,'Sıvılaşma Potansiyeli Analizi'!AY20))-0.13*MAX(7,'Sıvılaşma Potansiyeli Analizi'!AY20))))","v":0.9396752881061381},null,null,null,null,{"$f":"IF(E18=\"\",\"\",IF(L18=\"-\",\"-\",IF(L18>2,0,IF(L18<AC18,X18,MIN(X18,0.035*(1-AC18)*(2-L18)/(L18-AC18))))))","v":0.5},null,null,null,null,{"$f":"IF('Sıvılaşma Potansiyeli Analizi'!E20=\"\",\"\",IF('Sıvılaşma Potansiyeli Analizi'!BY20=\"-\",\"-\",IF('Sıvılaşma Potansiyeli Analizi'!BY20>1.1,0,IF('Sıvılaşma Potansiyeli Analizi'!E21=\"\",('Sıvılaşma Potansiyeli Analizi'!$E$34-'Sıvılaşma Potansiyeli Analizi'!E20)+(('Sıvılaşma Potansiyeli Analizi'!E20-'Sıvılaşma Potansiyeli Analizi'!E19)/2),IF(AND(AM17=0,'Sıvılaşma Potansiyeli Analizi'!$AP$8<'Sıvılaşma Potansiyeli Analizi'!E20,'Sıvılaşma Potansiyeli Analizi'!$AP$8>='Sıvılaşma Potansiyeli Analizi'!E19),(('Sıvılaşma Potansiyeli Analizi'!E21-'Sıvılaşma Potansiyeli Analizi'!E20)/2)+('Sıvılaşma Potansiyeli Analizi'!E20-'Sıvılaşma Potansiyeli Analizi'!$AP$8),(('Sıvılaşma Potansiyeli Analizi'!E21-'Sıvılaşma Potansiyeli Analizi'!E20)/2)+(('Sıvılaşma Potansiyeli Analizi'!E20-'Sıvılaşma Potansiyeli Analizi'!E19)/2))))))","v":0.79999999999999993},null,null,null,null,{"$f":"IF(E18=\"\",\"\",IF(L18=\"-\",\"-\",IF(L18<2,PRODUCT(AH18,AM18),0)))","v":0.39999999999999997},null,null,null,null,{"$f":"IF(E18=\"\",\"\",IF(L18=\"-\",\"-\",IF(L18>2,0,IF('Sıvılaşma Potansiyeli Analizi'!AY20>30,0,1.5*EXP(-0.369*SQRT('Sıvılaşma Potansiyeli Analizi'!AY20))*MIN(0.08,AH18)))))","v":4.1151047186982044E-2},null,null,null,null,{"$f":"IF(E18=\"\",\"\",IF(L18=\"-\",\"-\",IF(L18>2,0,PRODUCT(AW18,AM18))))","v":3.2920837749585631E-2},null,null,null,{"$f":"IF(E18=\"\",\"\",IF(L18=\"-\",\"-\",(0.65*$EP$7*0.4*('Sıvılaşma Potansiyeli Analizi'!V20/'Sıvılaşma Potansiyeli Analizi'!Z20)*'Sıvılaşma Potansiyeli Analizi'!BQ20)/(2.5-0.2*$DS$7)))","v":0.19865115379761969},null,null,null,null,{"$f":"IF(E18=\"\",\"\",IF(L18=\"-\",\"-\",IF((BF18/'Sıvılaşma Potansiyeli Analizi'!AS20)>0.01,('Sıvılaşma Potansiyeli Analizi'!AS20^(-0.6)*10*0.01),\"-\")))","v":2.8690590078521511E-2},null,null,null,null,2.2952472062817208E-2,null,null,null,{"$f":"IF(E18=\"\",\"\",IF(L18=\"-\",\"-\",IF('Sıvılaşma Potansiyeli Analizi'!U20<10,1,IF('Sıvılaşma Potansiyeli Analizi'!U20<25,2,IF('Sıvılaşma Potansiyeli Analizi'!U20<50,4,5)))))","v":1},null,null,{"$f":"IF(E18=\"\",\"\",IF(L18=\"-\",\"-\",DEGREES(ATAN((I18/(12.2+(20.3*'Sıvılaşma Potansiyeli Analizi'!Z20/100)))^0.34))))","v":34.743256403947733},null,null,{"$f":"IF(E18=\"\",\"\",IF(L18>=1.1,\"-\",IF(((EXP(('Sıvılaşma Potansiyeli Analizi'!AS20+BT18)/16+(('Sıvılaşma Potansiyeli Analizi'!AS20+BT18-16)/21.2)^3-3))*(1+EXP(('Sıvılaşma Potansiyeli Analizi'!AS20+BT18)/2.4-6.6)))<=TAN(RADIANS(BW18)),((EXP(('Sıvılaşma Potansiyeli Analizi'!AS20+BT18)/16+(('Sıvılaşma Potansiyeli Analizi'!AS20+BT18-16)/21.2)^3-3))*(1+EXP(('Sıvılaşma Potansiyeli Analizi'!AS20+BT18)/2.4-6.6))),TAN(RADIANS(BW18)))))","v":8.9277374312605975E-2},null,null,null,{"$f":"IF(E18=\"\",\"\",IF(L18>=1.1,\"-\",IF(((EXP(('Sıvılaşma Potansiyeli Analizi'!AS20+BT18)/16+(('Sıvılaşma Potansiyeli Analizi'!AS20+BT18-16)/21.2)^3-3)))<=TAN(RADIANS(BW18)),((EXP(('Sıvılaşma Potansiyeli Analizi'!AS20+BT18)/16+(('Sıvılaşma Potansiyeli Analizi'!AS20+BT18-16)/21.2)^3-3))),TAN(RADIANS(BW18)))))","v":8.4371496506109075E-2},null,null,null,{"$f":"IF(E18=\"\",\"\",IF(L18=\"-\",\"-\",('Sıvılaşma Potansiyeli Analizi'!Z20*9.87*0.001)))","v":0.40530168},null,null,null,{"$f":"IF(E18=\"\",\"\",IF(L18>=1.1,\"-\",EXP(-8.444+0.109*'Sıvılaşma Potansiyeli Analizi'!AS20+5.379*(CH18^0.1))*101.33))","v":7.1152794305731799},null,null,null,null,null,{"$f":"IF(E18=\"\",\"\",IF(L18>=1.1,\"-\",(EXP((0.1292*'Sıvılaşma Potansiyeli Analizi'!AY20)+(4.322*('Sıvılaşma Potansiyeli Analizi'!Z20*0.01)^0.12)))*0.04788))","v":6.9032380325433254},null,null,null,null,null,{"$f":"IF(L18=\"-\",\"-\",IF(L18<=1,AM18,\"-\"))","v":0.79999999999999993},null,null,null,null,null,null,null,null,"amaks = 0.4 x SDS"]
[null,{"$f":"+IF('Sıvılaşma Potansiyeli Analizi'!B21=\"\",\"\",'Sıvılaşma Potansiyeli Analizi'!B21)","v":"4-"},null,null,{"$f":"+IF('Sıvılaşma Potansiyeli Analizi'!E21=\"\",\"\",'Sıvılaşma Potansiyeli Analizi'!E21)","v":3.4},null,null,null,{"$f":"+IF('Sıvılaşma Potansiyeli Analizi'!F21=\"\",\"\",'Sıvılaşma Potansiyeli Analizi'!F21)","v":5},null,null,{"$f":"+IF('Sıvılaşma Potansiyeli Analizi'!BY21=\"\",\"\",'Sıvılaşma Potansiyeli Analizi'!BY21)","v":0.4576672241294934},{"$f":"+IF('Sıvılaşma Potansiyeli Analizi'!CC21=\"\",\"\",'Sıvılaşma Potansiyeli Analizi'!CC21)","v":"Sıvılaşma Beklenir"},null,null,null,null,null,null,null,null,null,null,{"$f":"IF(E19=\"\",\"\",IF(L19=\"-\",\"-\",IF('Sıvılaşma Potansiyeli Analizi'!AS21>30,0,MAX(0,MIN(0.5,1.859*(1.1-SQRT('Sıvılaşma Potansiyeli Analizi'!AY21/46))^3)))))","v":0.5},null,null,null,null,{"$f":"IF(E19=\"\",\"\", IF(L19=\"-\",\"-\",IF('Sıvılaşma Potansiyeli Analizi'!AY21>30,0,0.032+0.69*SQRT(MAX(7,'Sıvılaşma Potansiyeli Analizi'!AY21))-0.13*MAX(7,'Sıvılaşma Potansiyeli Analizi'!AY21))))","v":0.94558220247029978},null,null,null,null,0.5,null,null,null,null,{"$f":"IF('Sıvılaşma Potansiyeli Analizi'!E21=\"\",\"\",IF('Sıvılaşma Potansiyeli Analizi'!BY21=\"-\",\"-\",IF('Sıvılaşma Potansiyeli Analizi'!BY21>1.1,0,IF('Sıvılaşma Potansiyeli Analizi'!E22=\"\",('Sıvılaşma Potansiyeli Analizi'!$E$34-'Sıvılaşma Potansiyeli Analizi'!E21)+(('Sıvılaşma Potansiyeli Analizi'!E21-'Sıvılaşma Potansiyeli Analizi'!E20)/2),IF(AND(AM18=0,'Sıvılaşma Potansiyeli Analizi'!$AP$8<'Sıvılaşma Potansiyeli Analizi'!E21,'Sıvılaşma Potansiyeli Analizi'!$AP$8>='Sıvılaşma Potansiyeli Analizi'!E20),(('Sıvılaşma Potansiyeli Analizi'!E22-'Sıvılaşma Potansiyeli Analizi'!E21)/2)+('Sıvılaşma Potansiyeli Analizi'!E21-'Sıvılaşma Potansiyeli Analizi'!$AP$8),(('Sıvılaşma Potansiyeli Analizi'!E22-'Sıvılaşma Potansiyeli Analizi'!E21)/2)+(('Sıvılaşma Potansiyeli Analizi'!E21-'Sıvılaşma Potansiyeli Analizi'!E20)/2))))))","v":2.4499999999999997},null,null,null,null,{"$f":"IF(E19=\"\",\"\",IF(L19=\"-\",\"-\",IF(L19<2,PRODUCT(AH19,AM19),0)))","v":1.2249999999999999},null,null,null,null,{"$f":"IF(E19=\"\",\"\",IF(L19=\"-\",\"-\",IF(L19>2,0,IF('Sıvılaşma Potansiyeli Analizi'!AY21>30,0,1.5*EXP(-0.369*SQRT('Sıvılaşma Potansiyeli Analizi'!AY21))*MIN(0.08,AH19)))))","v":4.3056540303644496E-2},null,null,null,null,0.105488523743929,null,null,null,{"$f":"IF(E19=\"\",\"\",IF(L19=\"-\",\"-\",(0.65*$EP$7*0.4*('Sıvılaşma Potansiyeli Analizi'!V21/'Sıvılaşma Potansiyeli Analizi'!Z21)*'Sıvılaşma Potansiyeli Analizi'!BQ21)/(2.5-0.2*$DS$7)))","v":0.2216402599347323},null,null,null,null,{"$f":"IF(E19=\"\",\"\",IF(L19=\"-\",\"-\",IF((BF19/'Sıvılaşma Potansiyeli Analizi'!AS21)>0.01,('Sıvılaşma Potansiyeli Analizi'!AS21^(-0.6)*10*0.01),\"-\")))","v":3.42184238157403E-2},null,null,null,null,8.3835138348563723E-2,null,null,null,{"$f":"IF(E19=\"\",\"\",IF(L19=\"-\",\"-\",IF('Sıvılaşma Potansiyeli Analizi'!U21<10,1,IF('Sıvılaşma Potansiyeli Analizi'!U21<25,2,IF('Sıvılaşma Potansiyeli Analizi'!U21<50,4,5)))))","v":2},null,null,{"$f":"IF(E19=\"\",\"\",IF(L19=\"-\",\"-\",DEGREES(ATAN((I19/(12.2+(20.3*'Sıvılaşma Potansiyeli Analizi'!Z21/100)))^0.34))))","v":31.131879079688687},null,null,{"$f":"IF(E19=\"\",\"\",IF(L19>=1.1,\"-\",IF(((EXP(('Sıvılaşma Potansiyeli Analizi'!AS21+BT19)/16+(('Sıvılaşma Potansiyeli Analizi'!AS21+BT19-16)/21.2)^3-3))*(1+EXP(('Sıvılaşma Potansiyeli Analizi'!AS21+BT19)/2.4-6.6)))<=TAN(RADIANS(BW19)),((EXP(('Sıvılaşma Potansiyeli Analizi'!AS21+BT19)/16+(('Sıvılaşma Potansiyeli Analizi'!AS21+BT19-16)/21.2)^3-3))*(1+EXP(('Sıvılaşma Potansiyeli Analizi'!AS21+BT19)/2.4-6.6))),TAN(RADIANS(BW19)))))","v":8.0548091919386333E-2},null,null,null,{"$f":"IF(E19=\"\",\"\",IF(L19>=1.1,\"-\",IF(((EXP(('Sıvılaşma Potansiyeli Analizi'!AS21+BT19)/16+(('Sıvılaşma Potansiyeli Analizi'!AS21+BT19-16)/21.2)^3-3)))<=TAN(RADIANS(BW19)),((EXP(('Sıvılaşma Potansiyeli Analizi'!AS21+BT19)/16+(('Sıvılaşma Potansiyeli Analizi'!AS21+BT19-16)/21.2)^3-3))),TAN(RADIANS(BW19)))))","v":7.7620588581009717E-2},null,null,null,{"$f":"IF(E19=\"\",\"\",IF(L19=\"-\",\"-\",('Sıvılaşma Potansiyeli Analizi'!Z21*9.87*0.001)))","v":0.47786591999999989},null,null,null,{"$f":"IF(E19=\"\",\"\",IF(L19>=1.1,\"-\",EXP(-8.444+0.109*'Sıvılaşma Potansiyeli Analizi'!AS21+5.379*(CH19^0.1))*101.33))","v":6.1818188004632333},null,null,null,null,null,{"$f":"IF(E19=\"\",\"\",IF(L19>=1.1,\"-\",(EXP((0.1292*'Sıvılaşma Potansiyeli Analizi'!AY21)+(4.322*('Sıvılaşma Potansiyeli Analizi'!Z21*0.01)^0.12)))*0.04788))","v":6.8177496094354355},null,null,null,null,null,2.4499999999999997,null,null,null,null,null,null,null,null,{"$f":"0.4*$EP$7","v":0.30000000000000004},null,null,null,null,null,null,null,null,null,null,null,"Abak No:1"]
[null,{"$f":"+IF('Sıvılaşma Potansiyeli Analizi'!B22=\"\",\"\",'Sıvılaşma Potansiyeli Analizi'!B22)","v":"5-"},null,null,{"$f":"+IF('Sıvılaşma Potansiyeli Analizi'!E22=\"\",\"\",'Sıvılaşma Potansiyeli Analizi'!E22)","v":7.5},null,null,null,{"$f":"+IF('Sıvılaşma Potansiyeli Analizi'!F22=\"\",\"\",'Sıvılaşma Potansiyeli Analizi'!F22)","v":10},null,null,{"$f":"+IF('Sıvılaşma Potansiyeli Analizi'!BY22=\"\",\"\",'Sıvılaşma Potansiyeli Analizi'!BY22)","v":0.49052351085041451},{"$f":"+IF('Sıvılaşma Potansiyeli Analizi'!CC22=\"\",\"\",'Sıvılaşma Potansiyeli Analizi'!CC22)","v":"Sıvılaşma Beklenir"},null,null,null,null,null,null,null,null,null,null,{"$f":"IF(E20=\"\",\"\",IF(L20=\"-\",\"-\",IF('Sıvılaşma Potansiyeli Analizi'!AS22>30,0,MAX(0,MIN(0.5,1.859*(1.1-SQRT('Sıvılaşma Potansiyeli Analizi'!AY22/46))^3)))))","v":0.43036669940906197},null,null,null,null,{"$f":"IF(E20=\"\",\"\", IF(L20=\"-\",\"-\",IF('Sıvılaşma Potansiyeli Analizi'!AY22>30,0,0.032+0.69*SQRT(MAX(7,'Sıvılaşma Potansiyeli Analizi'!AY22))-0.13*MAX(7,'Sıvılaşma Potansiyeli Analizi'!AY22))))","v":0.89396336313115787},null,null,null,null,0.43036669940906197,null,null,null,null,{"$f":"IF('Sıvılaşma Potansiyeli Analizi'!E22=\"\",\"\",IF('Sıvılaşma Potansiyeli Analizi'!BY22=\"-\",\"-\",IF('Sıvılaşma Potansiyeli Analizi'!BY22>1.1,0,IF('Sıvılaşma Potansiyeli Analizi'!E23=\"\",('Sıvılaşma Potansiyeli Analizi'!$E$34-'Sıvılaşma Potansiyeli Analizi'!E22)+(('Sıvılaşma Potansiyeli Analizi'!E22-'Sıvılaşma Potansiyeli Analizi'!E21)/2),IF(AND(AM19=0,'Sıvılaşma Potansiyeli Analizi'!$AP$8<'Sıvılaşma Potansiyeli Analizi'!E22,'Sıvılaşma Potansiyeli Analizi'!$AP$8>='Sıvılaşma Potansiyeli Analizi'!E21),(('Sıvılaşma Potansiyeli Analizi'!E23-'Sıvılaşma Potansiyeli Analizi'!E22)/2)+('Sıvılaşma Potansiyeli Analizi'!E22-'Sıvılaşma Potansiyeli Analizi'!$AP$8),(('Sıvılaşma Potansiyeli Analizi'!E23-'Sıvılaşma Potansiyeli Analizi'!E22)/2)+(('Sıvılaşma Potansiyeli Analizi'!E22-'Sıvılaşma Potansiyeli Analizi'!E21)/2))))))","v":2.8},null,null,null,null,1.2050267583453735,null,null,null,null,{"$f":"IF(E20=\"\",\"\",IF(L20=\"-\",\"-\",IF(L20>2,0,IF('Sıvılaşma Potansiyeli Analizi'!AY22>30,0,1.5*EXP(-0.369*SQRT('Sıvılaşma Potansiyeli Analizi'!AY22))*MIN(0.08,AH20)))))","v":3.5561132290269797E-2},null,null,null,null,9.9571170412755428E-2,null,null,null,{"$f":"IF(E20=\"\",\"\",IF(L20=\"-\",\"-\",(0.65*$EP$7*0.4*('Sıvılaşma Potansiyeli Analizi'!V22/'Sıvılaşma Potansiyeli Analizi'!Z22)*'Sıvılaşma Potansiyeli Analizi'!BQ22)/(2.5-0.2*$DS$7)))","v":0.26706259449223657},null,null,null,null,{"$f":"IF(E20=\"\",\"\",IF(L20=\"-\",\"-\",IF((BF20/'Sıvılaşma Potansiyeli Analizi'!AS22)>0.01,('Sıvılaşma Potansiyeli Analizi'!AS22^(-0.6)*10*0.01),\"-\")))","v":2.5451727384413664E-2},null,null,null,null,7.1264836676358259E-2,null,null,null,{"$f":"IF(E20=\"\",\"\",IF(L20=\"-\",\"-\",IF('Sıvılaşma Potansiyeli Analizi'!U22<10,1,IF('Sıvılaşma Potansiyeli Analizi'!U22<25,2,IF('Sıvılaşma Potansiyeli Analizi'!U22<50,4,5)))))","v":2},null,null,{"$f":"IF(E20=\"\",\"\",IF(L20=\"-\",\"-\",DEGREES(ATAN((I20/(12.2+(20.3*'Sıvılaşma Potansiyeli Analizi'!Z22/100)))^0.34))))","v":34.386610573257663},null,null,{"$f":"IF(E20=\"\",\"\",IF(L20>=1.1,\"-\",IF(((EXP(('Sıvılaşma Potansiyeli Analizi'!AS22+BT20)/16+(('Sıvılaşma Potansiyeli Analizi'!AS22+BT20-16)/21.2)^3-3))*(1+EXP(('Sıvılaşma Potansiyeli Analizi'!AS22+BT20)/2.4-6.6)))<=TAN(RADIANS(BW20)),((EXP(('Sıvılaşma Potansiyeli Analizi'!AS22+BT20)/16+(('Sıvılaşma Potansiyeli Analizi'!AS22+BT20-16)/21.2)^3-3))*(1+EXP(('Sıvılaşma Potansiyeli Analizi'!AS22+BT20)/2.4-6.6))),TAN(RADIANS(BW20)))))","v":0.1221918222977063},null,null,null,{"$f":"IF(E20=\"\",\"\",IF(L20>=1.1,\"-\",IF(((EXP(('Sıvılaşma Potansiyeli Analizi'!AS22+BT20)/16+(('Sıvılaşma Potansiyeli Analizi'!AS22+BT20-16)/21.2)^3-3)))<=TAN(RADIANS(BW20)),((EXP(('Sıvılaşma Potansiyeli Analizi'!AS22+BT20)/16+(('Sıvılaşma Potansiyeli Analizi'!AS22+BT20-16)/21.2)^3-3))),TAN(RADIANS(BW20)))))","v":0.10316410753189512},null,null,null,{"$f":"IF(E20=\"\",\"\",IF(L20=\"-\",\"-\",('Sıvılaşma Potansiyeli Analizi'!Z22*9.87*0.001)))","v":0.89022464999999995},null,null,null,{"$f":"IF(E20=\"\",\"\",IF(L20>=1.1,\"-\",EXP(-8.444+0.109*'Sıvılaşma Potansiyeli Analizi'!AS22+5.379*(CH20^0.1))*101.33))","v":12.904059623896941},null,null,null,null,null,{"$f":"IF(E20=\"\",\"\",IF(L20>=1.1,\"-\",(EXP((0.1292*'Sıvılaşma Potansiyeli Analizi'!AY22)+(4.322*('Sıvılaşma Potansiyeli Analizi'!Z22*0.01)^0.12)))*0.04788))","v":13.920514179420257},null,null,null,null,null,2.8]
[null,{"$f":"+IF('Sıvılaşma Potansiyeli Analizi'!B23=\"\",\"\",'Sıvılaşma Potansiyeli Analizi'!B23)","v":"6-"},null,null,{"$f":"+IF('Sıvılaşma Potansiyeli Analizi'!E23=\"\",\"\",'Sıvılaşma Potansiyeli Analizi'!E23)","v":9},null,null,null,{"$f":"+IF('Sıvılaşma Potansiyeli Analizi'!F23=\"\",\"\",'Sıvılaşma Potansiyeli Analizi'!F23)","v":10},null,null,{"$f":"+IF('Sıvılaşma Potansiyeli Analizi'!BY23=\"\",\"\",'Sıvılaşma Potansiyeli Analizi'!BY23)","v":0.4334169479103509},{"$f":"+IF('Sıvılaşma Potansiyeli Analizi'!CC23=\"\",\"\",'Sıvılaşma Potansiyeli Analizi'!CC23)","v":"Sıvılaşma Beklenir"},null,null,null,null,null,null,null,null,null,null,{"$f":"IF(E21=\"\",\"\",IF(L21=\"-\",\"-\",IF('Sıvılaşma Potansiyeli Analizi'!AS23>30,0,MAX(0,MIN(0.5,1.859*(1.1-SQRT('Sıvılaşma Potansiyeli Analizi'!AY23/46))^3)))))","v":0.49886946654311293},null,null,null,null,{"$f":"IF(E21=\"\",\"\", IF(L21=\"-\",\"-\",IF('Sıvılaşma Potansiyeli Analizi'!AY23>30,0,0.032+0.69*SQRT(MAX(7,'Sıvılaşma Potansiyeli Analizi'!AY23))-0.13*MAX(7,'Sıvılaşma Potansiyeli Analizi'!AY23))))","v":0.92331370664161416},null,null,null,null,0.49886946654311293,null,null,null,null,{"$f":"IF('Sıvılaşma Potansiyeli Analizi'!E23=\"\",\"\",IF('Sıvılaşma Potansiyeli Analizi'!BY23=\"-\",\"-\",IF('Sıvılaşma Potansiyeli Analizi'!BY23>1.1,0,IF('Sıvılaşma Potansiyeli Analizi'!E24=\"\",('Sıvılaşma Potansiyeli Analizi'!$E$34-'Sıvılaşma Potansiyeli Analizi'!E23)+(('Sıvılaşma Potansiyeli Analizi'!E23-'Sıvılaşma Potansiyeli Analizi'!E22)/2),IF(AND(AM20=0,'Sıvılaşma Potansiyeli Analizi'!$AP$8<'Sıvılaşma Potansiyeli Analizi'!E23,'Sıvılaşma Potansiyeli Analizi'!$AP$8>='Sıvılaşma Potansiyeli Analizi'!E22),(('Sıvılaşma Potansiyeli Analizi'!E24-'Sıvılaşma Potansiyeli Analizi'!E23)/2)+('Sıvılaşma Potansiyeli Analizi'!E23-'Sıvılaşma Potansiyeli Analizi'!$AP$8),(('Sıvılaşma Potansiyeli Analizi'!E24-'Sıvılaşma Potansiyeli Analizi'!E23)/2)+(('Sıvılaşma Potansiyeli Analizi'!E23-'Sıvılaşma Potansiyeli Analizi'!E22)/2))))))","v":1.5},null,null,null,null,0.74830419981466934,null,null,null,null,{"$f":"IF(E21=\"\",\"\",IF(L21=\"-\",\"-\",IF(L21>2,0,IF('Sıvılaşma Potansiyeli Analizi'!AY23>30,0,1.5*EXP(-0.369*SQRT('Sıvılaşma Potansiyeli Analizi'!AY23))*MIN(0.08,AH21)))))","v":3.8428817152692231E-2},null,null,null,null,5.764322572903835E-2,null,null,null,{"$f":"IF(E21=\"\",\"\",IF(L21=\"-\",\"-\",(0.65*$EP$7*0.4*('Sıvılaşma Potansiyeli Analizi'!V23/'Sıvılaşma Potansiyeli Analizi'!Z23)*'Sıvılaşma Potansiyeli Analizi'!BQ23)/(2.5-0.2*$DS$7)))","v":0.27253038609215019},null,null,null,null,{"$f":"IF(E21=\"\",\"\",IF(L21=\"-\",\"-\",IF((BF21/'Sıvılaşma Potansiyeli Analizi'!AS23)>0.01,('Sıvılaşma Potansiyeli Analizi'!AS23^(-0.6)*10*0.01),\"-\")))","v":2.5867098894209805E-2},null,null,null,null,3.8800648341314706E-2,null,null,null,{"$f":"IF(E21=\"\",\"\",IF(L21=\"-\",\"-\",IF('Sıvılaşma Potansiyeli Analizi'!U23<10,1,IF('Sıvılaşma Potansiyeli Analizi'!U23<25,2,IF('Sıvılaşma Potansiyeli Analizi'!U23<50,4,5)))))","v":1},null,null,{"$f":"IF(E21=\"\",\"\",IF(L21=\"-\",\"-\",DEGREES(ATAN((I21/(12.2+(20.3*'Sıvılaşma Potansiyeli Analizi'!Z23/100)))^0.34))))","v":33.512575096253507},null,null,{"$f":"IF(E21=\"\",\"\",IF(L21>=1.1,\"-\",IF(((EXP(('Sıvılaşma Potansiyeli Analizi'!AS23+BT21)/16+(('Sıvılaşma Potansiyeli Analizi'!AS23+BT21-16)/21.2)^3-3))*(1+EXP(('Sıvılaşma Potansiyeli Analizi'!AS23+BT21)/2.4-6.6)))<=TAN(RADIANS(BW21)),((EXP(('Sıvılaşma Potansiyeli Analizi'!AS23+BT21)/16+(('Sıvılaşma Potansiyeli Analizi'!AS23+BT21-16)/21.2)^3-3))*(1+EXP(('Sıvılaşma Potansiyeli Analizi'!AS23+BT21)/2.4-6.6))),TAN(RADIANS(BW21)))))","v":0.10476356987208782},null,null,null,{"$f":"IF(E21=\"\",\"\",IF(L21>=1.1,\"-\",IF(((EXP(('Sıvılaşma Potansiyeli Analizi'!AS23+BT21)/16+(('Sıvılaşma Potansiyeli Analizi'!AS23+BT21-16)/21.2)^3-3)))<=TAN(RADIANS(BW21)),((EXP(('Sıvılaşma Potansiyeli Analizi'!AS23+BT21)/16+(('Sıvılaşma Potansiyeli Analizi'!AS23+BT21-16)/21.2)^3-3))),TAN(RADIANS(BW21)))))","v":9.4459194154264431E-2},null,null,null,{"$f":"IF(E21=\"\",\"\",IF(L21=\"-\",\"-\",('Sıvılaşma Potansiyeli Analizi'!Z23*9.87*0.001)))","v":1.0410876},null,null,null,{"$f":"IF(E21=\"\",\"\",IF(L21>=1.1,\"-\",EXP(-8.444+0.109*'Sıvılaşma Potansiyeli Analizi'!AS23+5.379*(CH21^0.1))*101.33))","v":13.640515594014897},null,null,null,null,null,{"$f":"IF(E21=\"\",\"\",IF(L21>=1.1,\"-\",(EXP((0.1292*'Sıvılaşma Potansiyeli Analizi'!AY23)+(4.322*('Sıvılaşma Potansiyeli Analizi'!Z23*0.01)^0.12)))*0.04788))","v":12.692564976628404},null,null,null,null,null,1.5,null,null,null,null,null,null,null,null,"Sıvılaşma etkisinin yüzeyde görünebilirliği                          [Abak No:1]",null,null,null,null,null,"Yüzeysel Hasar Durumu             [Abak No:2]",null,null,null,null,null,null,null,null,null,null,null,null,null,null,null,null,null,null,null,null,null,null,null,null,null,null,null,null,null,null,null,null,null,null,null,null,null,null,null,null,null,null,null,null,null,null,null,null,null,null,null,null,null,null,null,null,null,null,null,null,"Abak-1 için açıklama"]
[null,{"$f":"+IF('Sıvılaşma Potansiyeli Analizi'!B24=\"\",\"\",'Sıvılaşma Potansiyeli Analizi'!B24)","v":"7-"},null,null,{"$f":"+IF('Sıvılaşma Potansiyeli Analizi'!E24=\"\",\"\",'Sıvılaşma Potansiyeli Analizi'!E24)","v":10.5},null,null,null,{"$f":"+IF('Sıvılaşma Potansiyeli Analizi'!F24=\"\",\"\",'Sıvılaşma Potansiyeli Analizi'!F24)","v":15},null,null,{"$f":"+IF('Sıvılaşma Potansiyeli Analizi'!BY24=\"\",\"\",'Sıvılaşma Potansiyeli Analizi'!BY24)","v":0.58254940359596086},{"$f":"+IF('Sıvılaşma Potansiyeli Analizi'!CC24=\"\",\"\",'Sıvılaşma Potansiyeli Analizi'!CC24)","v":"Sıvılaşma Beklenir"},null,null,null,null,null,null,null,null,null,null,{"$f":"IF(E22=\"\",\"\",IF(L22=\"-\",\"-\",IF('Sıvılaşma Potansiyeli Analizi'!AS24>30,0,MAX(0,MIN(0.5,1.859*(1.1-SQRT('Sıvılaşma Potansiyeli Analizi'!AY24/46))^3)))))","v":0.32874057040640536},null,null,null,null,{"$f":"IF(E22=\"\",\"\", IF(L22=\"-\",\"-\",IF('Sıvılaşma Potansiyeli Analizi'!AY24>30,0,0.032+0.69*SQRT(MAX(7,'Sıvılaşma Potansiyeli Analizi'!AY24))-0.13*MAX(7,'Sıvılaşma Potansiyeli Analizi'!AY24))))","v":0.81762169936934037},null,null,null,null,0.32874057040640536,null,null,null,null,{"$f":"IF('Sıvılaşma Potansiyeli Analizi'!E24=\"\",\"\",IF('Sıvılaşma Potansiyeli Analizi'!BY24=\"-\",\"-\",IF('Sıvılaşma Potansiyeli Analizi'!BY24>1.1,0,IF('Sıvılaşma Potansiyeli Analizi'!E25=\"\",('Sıvılaşma Potansiyeli Analizi'!$E$34-'Sıvılaşma Potansiyeli Analizi'!E24)+(('Sıvılaşma Potansiyeli Analizi'!E24-'Sıvılaşma Potansiyeli Analizi'!E23)/2),IF(AND(AM21=0,'Sıvılaşma Potansiyeli Analizi'!$AP$8<'Sıvılaşma Potansiyeli Analizi'!E24,'Sıvılaşma Potansiyeli Analizi'!$AP$8>='Sıvılaşma Potansiyeli Analizi'!E23),(('Sıvılaşma Potansiyeli Analizi'!E25-'Sıvılaşma Potansiyeli Analizi'!E24)/2)+('Sıvılaşma Potansiyeli Analizi'!E24-'Sıvılaşma Potansiyeli Analizi'!$AP$8),(('Sıvılaşma Potansiyeli Analizi'!E25-'Sıvılaşma Potansiyeli Analizi'!E24)/2)+(('Sıvılaşma Potansiyeli Analizi'!E24-'Sıvılaşma Potansiyeli Analizi'!E23)/2))))))","v":1.5},null,null,null,null,0.49311085560960805,null,null,null,null,{"$f":"IF(E22=\"\",\"\",IF(L22=\"-\",\"-\",IF(L22>2,0,IF('Sıvılaşma Potansiyeli Analizi'!AY24>30,0,1.5*EXP(-0.369*SQRT('Sıvılaşma Potansiyeli Analizi'!AY24))*MIN(0.08,AH22)))))","v":3.1164700665254889E-2},null,null,null,null,4.6747050997882331E-2,null,null,null,{"$f":"IF(E22=\"\",\"\",IF(L22=\"-\",\"-\",(0.65*$EP$7*0.4*('Sıvılaşma Potansiyeli Analizi'!V24/'Sıvılaşma Potansiyeli Analizi'!Z24)*'Sıvılaşma Potansiyeli Analizi'!BQ24)/(2.5-0.2*$DS$7)))","v":0.26780438539537715},null,null,null,null,{"$f":"IF(E22=\"\",\"\",IF(L22=\"-\",\"-\",IF((BF22/'Sıvılaşma Potansiyeli Analizi'!AS24)>0.01,('Sıvılaşma Potansiyeli Analizi'!AS24^(-0.6)*10*0.01),\"-\")))","v":2.1121475676101894E-2},null,null,null,null,3.1682213514152839E-2,null,null,null,{"$f":"IF(E22=\"\",\"\",IF(L22=\"-\",\"-\",IF('Sıvılaşma Potansiyeli Analizi'!U24<10,1,IF('Sıvılaşma Potansiyeli Analizi'!U24<25,2,IF('Sıvılaşma Potansiyeli Analizi'!U24<50,4,5)))))","v":1},null,null,{"$f":"IF(E22=\"\",\"\",IF(L22=\"-\",\"-\",DEGREES(ATAN((I22/(12.2+(20.3*'Sıvılaşma Potansiyeli Analizi'!Z24/100)))^0.34))))","v":36.412619881124336},null,null,{"$f":"IF(E22=\"\",\"\",IF(L22>=1.1,\"-\",IF(((EXP(('Sıvılaşma Potansiyeli Analizi'!AS24+BT22)/16+(('Sıvılaşma Potansiyeli Analizi'!AS24+BT22-16)/21.2)^3-3))*(1+EXP(('Sıvılaşma Potansiyeli Analizi'!AS24+BT22)/2.4-6.6)))<=TAN(RADIANS(BW22)),((EXP(('Sıvılaşma Potansiyeli Analizi'!AS24+BT22)/16+(('Sıvılaşma Potansiyeli Analizi'!AS24+BT22-16)/21.2)^3-3))*(1+EXP(('Sıvılaşma Potansiyeli Analizi'!AS24+BT22)/2.4-6.6))),TAN(RADIANS(BW22)))))","v":0.18757425197296917},null,null,null,{"$f":"IF(E22=\"\",\"\",IF(L22>=1.1,\"-\",IF(((EXP(('Sıvılaşma Potansiyeli Analizi'!AS24+BT22)/16+(('Sıvılaşma Potansiyeli Analizi'!AS24+BT22-16)/21.2)^3-3)))<=TAN(RADIANS(BW22)),((EXP(('Sıvılaşma Potansiyeli Analizi'!AS24+BT22)/16+(('Sıvılaşma Potansiyeli Analizi'!AS24+BT22-16)/21.2)^3-3))),TAN(RADIANS(BW22)))))","v":0.12201165445809049},null,null,null,{"$f":"IF(E22=\"\",\"\",IF(L22=\"-\",\"-\",('Sıvılaşma Potansiyeli Analizi'!Z24*9.87*0.001)))","v":1.1919505500000001},null,null,null,{"$f":"IF(E22=\"\",\"\",IF(L22>=1.1,\"-\",EXP(-8.444+0.109*'Sıvılaşma Potansiyeli Analizi'!AS24+5.379*(CH22^0.1))*101.33))","v":22.281224653058761},null,null,null,null,null,{"$f":"IF(E22=\"\",\"\",IF(L22>=1.1,\"-\",(EXP((0.1292*'Sıvılaşma Potansiyeli Analizi'!AY24)+(4.322*('Sıvılaşma Potansiyeli Analizi'!Z24*0.01)^0.12)))*0.04788))","v":22.346008499808018},null,null,null,null,null,1.5]
[null,{"$f":"+IF('Sıvılaşma Potansiyeli Analizi'!B25=\"\",\"\",'Sıvılaşma Potansiyeli Analizi'!B25)","v":"8-"},null,null,{"$f":"+IF('Sıvılaşma Potansiyeli Analizi'!E25=\"\",\"\",'Sıvılaşma Potansiyeli Analizi'!E25)","v":12},null,null,null,{"$f":"+IF('Sıvılaşma Potansiyeli Analizi'!F25=\"\",\"\",'Sıvılaşma Potansiyeli Analizi'!F25)","v":12},null,null,{"$f":"+IF('Sıvılaşma Potansiyeli Analizi'!BY25=\"\",\"\",'Sıvılaşma Potansiyeli Analizi'!BY25)","v":0.47324254189937098},{"$f":"+IF('Sıvılaşma Potansiyeli Analizi'!CC25=\"\",\"\",'Sıvılaşma Potansiyeli Analizi'!CC25)","v":"Sıvılaşma Beklenir"},null,null,null,null,null,null,null,null,null,null,{"$f":"IF(E23=\"\",\"\",IF(L23=\"-\",\"-\",IF('Sıvılaşma Potansiyeli Analizi'!AS25>30,0,MAX(0,MIN(0.5,1.859*(1.1-SQRT('Sıvılaşma Potansiyeli Analizi'!AY25/46))^3)))))","v":0.46997316384882026},null,null,null,null,{"$f":"IF(E23=\"\",\"\", IF(L23=\"-\",\"-\",IF('Sıvılaşma Potansiyeli Analizi'!AY25>30,0,0.032+0.69*SQRT(MAX(7,'Sıvılaşma Potansiyeli Analizi'!AY25))-0.13*MAX(7,'Sıvılaşma Potansiyeli Analizi'!AY25))))","v":0.91267188055217363},null,null,null,null,0.46997316384882026,null,null,null,null,{"$f":"IF('Sıvılaşma Potansiyeli Analizi'!E25=\"\",\"\",IF('Sıvılaşma Potansiyeli Analizi'!BY25=\"-\",\"-\",IF('Sıvılaşma Potansiyeli Analizi'!BY25>1.1,0,IF('Sıvılaşma Potansiyeli Analizi'!E26=\"\",('Sıvılaşma Potansiyeli Analizi'!$E$34-'Sıvılaşma Potansiyeli Analizi'!E25)+(('Sıvılaşma Potansiyeli Analizi'!E25-'Sıvılaşma Potansiyeli Analizi'!E24)/2),IF(AND(AM22=0,'Sıvılaşma Potansiyeli Analizi'!$AP$8<'Sıvılaşma Potansiyeli Analizi'!E25,'Sıvılaşma Potansiyeli Analizi'!$AP$8>='Sıvılaşma Potansiyeli Analizi'!E24),(('Sıvılaşma Potansiyeli Analizi'!E26-'Sıvılaşma Potansiyeli Analizi'!E25)/2)+('Sıvılaşma Potansiyeli Analizi'!E25-'Sıvılaşma Potansiyeli Analizi'!$AP$8),(('Sıvılaşma Potansiyeli Analizi'!E26-'Sıvılaşma Potansiyeli Analizi'!E25)/2)+(('Sıvılaşma Potansiyeli Analizi'!E25-'Sıvılaşma Potansiyeli Analizi'!E24)/2))))))","v":1.5},null,null,null,null,0.7049597457732304,null,null,null,null,{"$f":"IF(E23=\"\",\"\",IF(L23=\"-\",\"-\",IF(L23>2,0,IF('Sıvılaşma Potansiyeli Analizi'!AY25>30,0,1.5*EXP(-0.369*SQRT('Sıvılaşma Potansiyeli Analizi'!AY25))*MIN(0.08,AH23)))))","v":3.7226382561724947E-2},null,null,null,null,5.583957384258742E-2,null,null,null,{"$f":"IF(E23=\"\",\"\",IF(L23=\"-\",\"-\",(0.65*$EP$7*0.4*('Sıvılaşma Potansiyeli Analizi'!V25/'Sıvılaşma Potansiyeli Analizi'!Z25)*'Sıvılaşma Potansiyeli Analizi'!BQ25)/(2.5-0.2*$DS$7)))","v":0.26043056229327449},null,null,null,null,{"$f":"IF(E23=\"\",\"\",IF(L23=\"-\",\"-\",IF((BF23/'Sıvılaşma Potansiyeli Analizi'!AS25)>0.01,('Sıvılaşma Potansiyeli Analizi'!AS25^(-0.6)*10*0.01),\"-\")))","v":2.5026349385749224E-2},null,null,null,null,3.7539524078623834E-2,null,null,null,{"$f":"IF(E23=\"\",\"\",IF(L23=\"-\",\"-\",IF('Sıvılaşma Potansiyeli Analizi'!U25<10,1,IF('Sıvılaşma Potansiyeli Analizi'!U25<25,2,IF('Sıvılaşma Potansiyeli Analizi'!U25<50,4,5)))))","v":1},null,null,{"$f":"IF(E23=\"\",\"\",IF(L23=\"-\",\"-\",DEGREES(ATAN((I23/(12.2+(20.3*'Sıvılaşma Potansiyeli Analizi'!Z25/100)))^0.34))))","v":33.628311187249018},null,null,{"$f":"IF(E23=\"\",\"\",IF(L23>=1.1,\"-\",IF(((EXP(('Sıvılaşma Potansiyeli Analizi'!AS25+BT23)/16+(('Sıvılaşma Potansiyeli Analizi'!AS25+BT23-16)/21.2)^3-3))*(1+EXP(('Sıvılaşma Potansiyeli Analizi'!AS25+BT23)/2.4-6.6)))<=TAN(RADIANS(BW23)),((EXP(('Sıvılaşma Potansiyeli Analizi'!AS25+BT23)/16+(('Sıvılaşma Potansiyeli Analizi'!AS25+BT23-16)/21.2)^3-3))*(1+EXP(('Sıvılaşma Potansiyeli Analizi'!AS25+BT23)/2.4-6.6))),TAN(RADIANS(BW23)))))","v":0.11155087754745163},null,null,null,{"$f":"IF(E23=\"\",\"\",IF(L23>=1.1,\"-\",IF(((EXP(('Sıvılaşma Potansiyeli Analizi'!AS25+BT23)/16+(('Sıvılaşma Potansiyeli Analizi'!AS25+BT23-16)/21.2)^3-3)))<=TAN(RADIANS(BW23)),((EXP(('Sıvılaşma Potansiyeli Analizi'!AS25+BT23)/16+(('Sıvılaşma Potansiyeli Analizi'!AS25+BT23-16)/21.2)^3-3))),TAN(RADIANS(BW23)))))","v":9.8147485775311169E-2},null,null,null,{"$f":"IF(E23=\"\",\"\",IF(L23=\"-\",\"-\",('Sıvılaşma Potansiyeli Analizi'!Z25*9.87*0.001)))","v":1.3428135000000001},null,null,null,{"$f":"IF(E23=\"\",\"\",IF(L23>=1.1,\"-\",EXP(-8.444+0.109*'Sıvılaşma Potansiyeli Analizi'!AS25+5.379*(CH23^0.1))*101.33))","v":16.626896023873428},null,null,null,null,null,{"$f":"IF(E23=\"\",\"\",IF(L23>=1.1,\"-\",(EXP((0.1292*'Sıvılaşma Potansiyeli Analizi'!AY25)+(4.322*('Sıvılaşma Potansiyeli Analizi'!Z25*0.01)^0.12)))*0.04788))","v":15.573378986905603},null,null,null,null,null,1.5]
[null,{"$f":"+IF('Sıvılaşma Potansiyeli Analizi'!B26=\"\",\"\",'Sıvılaşma Potansiyeli Analizi'!B26)","v":"9-"},null,null,{"$f":"+IF('Sıvılaşma Potansiyeli Analizi'!E26=\"\",\"\",'Sıvılaşma Potansiyeli Analizi'!E26)","v":13.5},null,null,null,{"$f":"+IF('Sıvılaşma Potansiyeli Analizi'!F26=\"\",\"\",'Sıvılaşma Potansiyeli Analizi'!F26)","v":14},null,null,{"$f":"+IF('Sıvılaşma Potansiyeli Analizi'!BY26=\"\",\"\",'Sıvılaşma Potansiyeli Analizi'!BY26)","v":0.53074949967543983},{"$f":"+IF('Sıvılaşma Potansiyeli Analizi'!CC26=\"\",\"\",'Sıvılaşma Potansiyeli Analizi'!CC26)","v":"Sıvılaşma Beklenir"},null,null,null,null,null,null,null,null,null,null,{"$f":"IF(E24=\"\",\"\",IF(L24=\"-\",\"-\",IF('Sıvılaşma Potansiyeli Analizi'!AS26>30,0,MAX(0,MIN(0.5,1.859*(1.1-SQRT('Sıvılaşma Potansiyeli Analizi'!AY26/46))^3)))))","v":0.41804373847119497},null,null,null,null,{"$f":"IF(E24=\"\",\"\", IF(L24=\"-\",\"-\",IF('Sıvılaşma Potansiyeli Analizi'!AY26>30,0,0.032+0.69*SQRT(MAX(7,'Sıvılaşma Potansiyeli Analizi'!AY26))-0.13*MAX(7,'Sıvılaşma Potansiyeli Analizi'!AY26))))","v":0.8870527827975776},null,null,null,null,0.41804373847119497,null,null,null,null,{"$f":"IF('Sıvılaşma Potansiyeli Analizi'!E26=\"\",\"\",IF('Sıvılaşma Potansiyeli Analizi'!BY26=\"-\",\"-\",IF('Sıvılaşma Potansiyeli Analizi'!BY26>1.1,0,IF('Sıvılaşma Potansiyeli Analizi'!E27=\"\",('Sıvılaşma Potansiyeli Analizi'!$E$34-'Sıvılaşma Potansiyeli Analizi'!E26)+(('Sıvılaşma Potansiyeli Analizi'!E26-'Sıvılaşma Potansiyeli Analizi'!E25)/2),IF(AND(AM23=0,'Sıvılaşma Potansiyeli Analizi'!$AP$8<'Sıvılaşma Potansiyeli Analizi'!E26,'Sıvılaşma Potansiyeli Analizi'!$AP$8>='Sıvılaşma Potansiyeli Analizi'!E25),(('Sıvılaşma Potansiyeli Analizi'!E27-'Sıvılaşma Potansiyeli Analizi'!E26)/2)+('Sıvılaşma Potansiyeli Analizi'!E26-'Sıvılaşma Potansiyeli Analizi'!$AP$8),(('Sıvılaşma Potansiyeli Analizi'!E27-'Sıvılaşma Potansiyeli Analizi'!E26)/2)+(('Sıvılaşma Potansiyeli Analizi'!E26-'Sıvılaşma Potansiyeli Analizi'!E25)/2))))))","v":1.5},null,null,null,null,0.62706560770679243,null,null,null,null,{"$f":"IF(E24=\"\",\"\",IF(L24=\"-\",\"-\",IF(L24>2,0,IF('Sıvılaşma Potansiyeli Analizi'!AY26>30,0,1.5*EXP(-0.369*SQRT('Sıvılaşma Potansiyeli Analizi'!AY26))*MIN(0.08,AH24)))))","v":3.5038371926954574E-2},null,null,null,null,5.2557557890431858E-2,null,null,null,{"$f":"IF(E24=\"\",\"\",IF(L24=\"-\",\"-\",(0.65*$EP$7*0.4*('Sıvılaşma Potansiyeli Analizi'!V26/'Sıvılaşma Potansiyeli Analizi'!Z26)*'Sıvılaşma Potansiyeli Analizi'!BQ26)/(2.5-0.2*$DS$7)))","v":0.25173141067228932},null,null,null,null,{"$f":"IF(E24=\"\",\"\",IF(L24=\"-\",\"-\",IF((BF24/'Sıvılaşma Potansiyeli Analizi'!AS26)>0.01,('Sıvılaşma Potansiyeli Analizi'!AS26^(-0.6)*10*0.01),\"-\")))","v":2.3556007289808417E-2},null,null,null,null,3.5334010934712626E-2,null,null,null,{"$f":"IF(E24=\"\",\"\",IF(L24=\"-\",\"-\",IF('Sıvılaşma Potansiyeli Analizi'!U26<10,1,IF('Sıvılaşma Potansiyeli Analizi'!U26<25,2,IF('Sıvılaşma Potansiyeli Analizi'!U26<50,4,5)))))","v":1},null,null,{"$f":"IF(E24=\"\",\"\",IF(L24=\"-\",\"-\",DEGREES(ATAN((I24/(12.2+(20.3*'Sıvılaşma Potansiyeli Analizi'!Z26/100)))^0.34))))","v":34.342604734361906},null,null,{"$f":"IF(E24=\"\",\"\",IF(L24>=1.1,\"-\",IF(((EXP(('Sıvılaşma Potansiyeli Analizi'!AS26+BT24)/16+(('Sıvılaşma Potansiyeli Analizi'!AS26+BT24-16)/21.2)^3-3))*(1+EXP(('Sıvılaşma Potansiyeli Analizi'!AS26+BT24)/2.4-6.6)))<=TAN(RADIANS(BW24)),((EXP(('Sıvılaşma Potansiyeli Analizi'!AS26+BT24)/16+(('Sıvılaşma Potansiyeli Analizi'!AS26+BT24-16)/21.2)^3-3))*(1+EXP(('Sıvılaşma Potansiyeli Analizi'!AS26+BT24)/2.4-6.6))),TAN(RADIANS(BW24)))))","v":0.12812569137097868},null,null,null,{"$f":"IF(E24=\"\",\"\",IF(L24>=1.1,\"-\",IF(((EXP(('Sıvılaşma Potansiyeli Analizi'!AS26+BT24)/16+(('Sıvılaşma Potansiyeli Analizi'!AS26+BT24-16)/21.2)^3-3)))<=TAN(RADIANS(BW24)),((EXP(('Sıvılaşma Potansiyeli Analizi'!AS26+BT24)/16+(('Sıvılaşma Potansiyeli Analizi'!AS26+BT24-16)/21.2)^3-3))),TAN(RADIANS(BW24)))))","v":0.10561502892029939},null,null,null,{"$f":"IF(E24=\"\",\"\",IF(L24=\"-\",\"-\",('Sıvılaşma Potansiyeli Analizi'!Z26*9.87*0.001)))","v":1.4936764499999997},null,null,null,{"$f":"IF(E24=\"\",\"\",IF(L24>=1.1,\"-\",EXP(-8.444+0.109*'Sıvılaşma Potansiyeli Analizi'!AS26+5.379*(CH24^0.1))*101.33))","v":19.821632584284398},null,null,null,null,null,{"$f":"IF(E24=\"\",\"\",IF(L24>=1.1,\"-\",(EXP((0.1292*'Sıvılaşma Potansiyeli Analizi'!AY26)+(4.322*('Sıvılaşma Potansiyeli Analizi'!Z26*0.01)^0.12)))*0.04788))","v":18.939749303550517},null,null,null,null,null,1.5]
[null,{"$f":"+IF('Sıvılaşma Potansiyeli Analizi'!B27=\"\",\"\",'Sıvılaşma Potansiyeli Analizi'!B27)","v":"10-"},null,null,{"$f":"+IF('Sıvılaşma Potansiyeli Analizi'!E27=\"\",\"\",'Sıvılaşma Potansiyeli Analizi'!E27)","v":15},null,null,null,{"$f":"+IF('Sıvılaşma Potansiyeli Analizi'!F27=\"\",\"\",'Sıvılaşma Potansiyeli Analizi'!F27)","v":16},null,null,{"$f":"+IF('Sıvılaşma Potansiyeli Analizi'!BY27=\"\",\"\",'Sıvılaşma Potansiyeli Analizi'!BY27)","v":0.59268488980116996},{"$f":"+IF('Sıvılaşma Potansiyeli Analizi'!CC27=\"\",\"\",'Sıvılaşma Potansiyeli Analizi'!CC27)","v":"Sıvılaşma Beklenir"},null,null,null,null,null,null,null,null,null,null,{"$f":"IF(E25=\"\",\"\",IF(L25=\"-\",\"-\",IF('Sıvılaşma Potansiyeli Analizi'!AS27>30,0,MAX(0,MIN(0.5,1.859*(1.1-SQRT('Sıvılaşma Potansiyeli Analizi'!AY27/46))^3)))))","v":0.37532118996656394},null,null,null,null,{"$f":"IF(E25=\"\",\"\", IF(L25=\"-\",\"-\",IF('Sıvılaşma Potansiyeli Analizi'!AY27>30,0,0.032+0.69*SQRT(MAX(7,'Sıvılaşma Potansiyeli Analizi'!AY27))-0.13*MAX(7,'Sıvılaşma Potansiyeli Analizi'!AY27))))","v":0.85847161227241853},null,null,null,null,0.37532118996656394,null,null,null,null,{"$f":"IF('Sıvılaşma Potansiyeli Analizi'!E27=\"\",\"\",IF('Sıvılaşma Potansiyeli Analizi'!BY27=\"-\",\"-\",IF('Sıvılaşma Potansiyeli Analizi'!BY27>1.1,0,IF('Sıvılaşma Potansiyeli Analizi'!E28=\"\",('Sıvılaşma Potansiyeli Analizi'!$E$34-'Sıvılaşma Potansiyeli Analizi'!E27)+(('Sıvılaşma Potansiyeli Analizi'!E27-'Sıvılaşma Potansiyeli Analizi'!E26)/2),IF(AND(AM24=0,'Sıvılaşma Potansiyeli Analizi'!$AP$8<'Sıvılaşma Potansiyeli Analizi'!E27,'Sıvılaşma Potansiyeli Analizi'!$AP$8>='Sıvılaşma Potansiyeli Analizi'!E26),(('Sıvılaşma Potansiyeli Analizi'!E28-'Sıvılaşma Potansiyeli Analizi'!E27)/2)+('Sıvılaşma Potansiyeli Analizi'!E27-'Sıvılaşma Potansiyeli Analizi'!$AP$8),(('Sıvılaşma Potansiyeli Analizi'!E28-'Sıvılaşma Potansiyeli Analizi'!E27)/2)+(('Sıvılaşma Potansiyeli Analizi'!E27-'Sıvılaşma Potansiyeli Analizi'!E26)/2))))))","v":1.5},null,null,null,null,0.56298178494984596,null,null,null,null,{"$f":"IF(E25=\"\",\"\",IF(L25=\"-\",\"-\",IF(L25>2,0,IF('Sıvılaşma Potansiyeli Analizi'!AY27>30,0,1.5*EXP(-0.369*SQRT('Sıvılaşma Potansiyeli Analizi'!AY27))*MIN(0.08,AH25)))))","v":3.3205842494208715E-2},null,null,null,null,4.9808763741313072E-2,null,null,null,{"$f":"IF(E25=\"\",\"\",IF(L25=\"-\",\"-\",(0.65*$EP$7*0.4*('Sıvılaşma Potansiyeli Analizi'!V27/'Sıvılaşma Potansiyeli Analizi'!Z27)*'Sıvılaşma Potansiyeli Analizi'!BQ27)/(2.5-0.2*$DS$7)))","v":0.24207167029495524},null,null,null,null,{"$f":"IF(E25=\"\",\"\",IF(L25=\"-\",\"-\",IF((BF25/'Sıvılaşma Potansiyeli Analizi'!AS27)>0.01,('Sıvılaşma Potansiyeli Analizi'!AS27^(-0.6)*10*0.01),\"-\")))","v":2.2379111318954918E-2},null,null,null,null,3.3568666978432374E-2,null,null,null,{"$f":"IF(E25=\"\",\"\",IF(L25=\"-\",\"-\",IF('Sıvılaşma Potansiyeli Analizi'!U27<10,1,IF('Sıvılaşma Potansiyeli Analizi'!U27<25,2,IF('Sıvılaşma Potansiyeli Analizi'!U27<50,4,5)))))","v":1},null,null,{"$f":"IF(E25=\"\",\"\",IF(L25=\"-\",\"-\",DEGREES(ATAN((I25/(12.2+(20.3*'Sıvılaşma Potansiyeli Analizi'!Z27/100)))^0.34))))","v":34.923161165171244},null,null,{"$f":"IF(E25=\"\",\"\",IF(L25>=1.1,\"-\",IF(((EXP(('Sıvılaşma Potansiyeli Analizi'!AS27+BT25)/16+(('Sıvılaşma Potansiyeli Analizi'!AS27+BT25-16)/21.2)^3-3))*(1+EXP(('Sıvılaşma Potansiyeli Analizi'!AS27+BT25)/2.4-6.6)))<=TAN(RADIANS(BW25)),((EXP(('Sıvılaşma Potansiyeli Analizi'!AS27+BT25)/16+(('Sıvılaşma Potansiyeli Analizi'!AS27+BT25-16)/21.2)^3-3))*(1+EXP(('Sıvılaşma Potansiyeli Analizi'!AS27+BT25)/2.4-6.6))),TAN(RADIANS(BW25)))))","v":0.14912624957244822},null,null,null,{"$f":"IF(E25=\"\",\"\",IF(L25>=1.1,\"-\",IF(((EXP(('Sıvılaşma Potansiyeli Analizi'!AS27+BT25)/16+(('Sıvılaşma Potansiyeli Analizi'!AS27+BT25-16)/21.2)^3-3)))<=TAN(RADIANS(BW25)),((EXP(('Sıvılaşma Potansiyeli Analizi'!AS27+BT25)/16+(('Sıvılaşma Potansiyeli Analizi'!AS27+BT25-16)/21.2)^3-3))),TAN(RADIANS(BW25)))))","v":0.11277746707296528},null,null,null,{"$f":"IF(E25=\"\",\"\",IF(L25=\"-\",\"-\",('Sıvılaşma Potansiyeli Analizi'!Z27*9.87*0.001)))","v":1.6445393999999998},null,null,null,{"$f":"IF(E25=\"\",\"\",IF(L25>=1.1,\"-\",EXP(-8.444+0.109*'Sıvılaşma Potansiyeli Analizi'!AS27+5.379*(CH25^0.1))*101.33))","v":23.314970759706711},null,null,null,null,null,{"$f":"IF(E25=\"\",\"\",IF(L25>=1.1,\"-\",(EXP((0.1292*'Sıvılaşma Potansiyeli Analizi'!AY27)+(4.322*('Sıvılaşma Potansiyeli Analizi'!Z27*0.01)^0.12)))*0.04788))","v":22.697380167214533},null,null,null,null,null,1.5]
[null,{"$f":"+IF('Sıvılaşma Potansiyeli Analizi'!B28=\"\",\"\",'Sıvılaşma Potansiyeli Analizi'!B28)","v":"11-"},null,null,{"$f":"+IF('Sıvılaşma Potansiyeli Analizi'!E28=\"\",\"\",'Sıvılaşma Potansiyeli Analizi'!E28)","v":16.5},null,null,null,{"$f":"+IF('Sıvılaşma Potansiyeli Analizi'!F28=\"\",\"\",'Sıvılaşma Potansiyeli Analizi'!F28)","v":20},null,null,{"$f":"+IF('Sıvılaşma Potansiyeli Analizi'!BY28=\"\",\"\",'Sıvılaşma Potansiyeli Analizi'!BY28)","v":0.72600345255229803},{"$f":"+IF('Sıvılaşma Potansiyeli Analizi'!CC28=\"\",\"\",'Sıvılaşma Potansiyeli Analizi'!CC28)","v":"Sıvılaşma Beklenir"},null,null,null,null,null,null,null,null,null,null,{"$f":"IF(E26=\"\",\"\",IF(L26=\"-\",\"-\",IF('Sıvılaşma Potansiyeli Analizi'!AS28>30,0,MAX(0,MIN(0.5,1.859*(1.1-SQRT('Sıvılaşma Potansiyeli Analizi'!AY28/46))^3)))))","v":0.28842659688296446},null,null,null,null,{"$f":"IF(E26=\"\",\"\", IF(L26=\"-\",\"-\",IF('Sıvılaşma Potansiyeli Analizi'!AY28>30,0,0.032+0.69*SQRT(MAX(7,'Sıvılaşma Potansiyeli Analizi'!AY28))-0.13*MAX(7,'Sıvılaşma Potansiyeli Analizi'!AY28))))","v":0.77196176895706325},null,null,null,null,0.28842659688296446,null,null,null,null,{"$f":"IF('Sıvılaşma Potansiyeli Analizi'!E28=\"\",\"\",IF('Sıvılaşma Potansiyeli Analizi'!BY28=\"-\",\"-\",IF('Sıvılaşma Potansiyeli Analizi'!BY28>1.1,0,IF('Sıvılaşma Potansiyeli Analizi'!E29=\"\",('Sıvılaşma Potansiyeli Analizi'!$E$34-'Sıvılaşma Potansiyeli Analizi'!E28)+(('Sıvılaşma Potansiyeli Analizi'!E28-'Sıvılaşma Potansiyeli Analizi'!E27)/2),IF(AND(AM25=0,'Sıvılaşma Potansiyeli Analizi'!$AP$8<'Sıvılaşma Potansiyeli Analizi'!E28,'Sıvılaşma Potansiyeli Analizi'!$AP$8>='Sıvılaşma Potansiyeli Analizi'!E27),(('Sıvılaşma Potansiyeli Analizi'!E29-'Sıvılaşma Potansiyeli Analizi'!E28)/2)+('Sıvılaşma Potansiyeli Analizi'!E28-'Sıvılaşma Potansiyeli Analizi'!$AP$8),(('Sıvılaşma Potansiyeli Analizi'!E29-'Sıvılaşma Potansiyeli Analizi'!E28)/2)+(('Sıvılaşma Potansiyeli Analizi'!E28-'Sıvılaşma Potansiyeli Analizi'!E27)/2))))))","v":1.5},null,null,null,null,0.43263989532444669,null,null,null,null,{"$f":"IF(E26=\"\",\"\",IF(L26=\"-\",\"-\",IF(L26>2,0,IF('Sıvılaşma Potansiyeli Analizi'!AY28>30,0,1.5*EXP(-0.369*SQRT('Sıvılaşma Potansiyeli Analizi'!AY28))*MIN(0.08,AH26)))))","v":2.9351469708644329E-2},null,null,null,null,4.4027204562966493E-2,null,null,null,{"$f":"IF(E26=\"\",\"\",IF(L26=\"-\",\"-\",(0.65*$EP$7*0.4*('Sıvılaşma Potansiyeli Analizi'!V28/'Sıvılaşma Potansiyeli Analizi'!Z28)*'Sıvılaşma Potansiyeli Analizi'!BQ28)/(2.5-0.2*$DS$7)))","v":0.23253885972471025},null,null,null,null,{"$f":"IF(E26=\"\",\"\",IF(L26=\"-\",\"-\",IF((BF26/'Sıvılaşma Potansiyeli Analizi'!AS28)>0.01,('Sıvılaşma Potansiyeli Analizi'!AS28^(-0.6)*10*0.01),\"-\")))","v":2.0047178656342885E-2},null,null,null,null,3.0070767984514329E-2,null,null,null,{"$f":"IF(E26=\"\",\"\",IF(L26=\"-\",\"-\",IF('Sıvılaşma Potansiyeli Analizi'!U28<10,1,IF('Sıvılaşma Potansiyeli Analizi'!U28<25,2,IF('Sıvılaşma Potansiyeli Analizi'!U28<50,4,5)))))","v":1},null,null,{"$f":"IF(E26=\"\",\"\",IF(L26=\"-\",\"-\",DEGREES(ATAN((I26/(12.2+(20.3*'Sıvılaşma Potansiyeli Analizi'!Z28/100)))^0.34))))","v":36.437656852579998},null,null,{"$f":"IF(E26=\"\",\"\",IF(L26>=1.1,\"-\",IF(((EXP(('Sıvılaşma Potansiyeli Analizi'!AS28+BT26)/16+(('Sıvılaşma Potansiyeli Analizi'!AS28+BT26-16)/21.2)^3-3))*(1+EXP(('Sıvılaşma Potansiyeli Analizi'!AS28+BT26)/2.4-6.6)))<=TAN(RADIANS(BW26)),((EXP(('Sıvılaşma Potansiyeli Analizi'!AS28+BT26)/16+(('Sıvılaşma Potansiyeli Analizi'!AS28+BT26-16)/21.2)^3-3))*(1+EXP(('Sıvılaşma Potansiyeli Analizi'!AS28+BT26)/2.4-6.6))),TAN(RADIANS(BW26)))))","v":0.24900737613225749},null,null,null,{"$f":"IF(E26=\"\",\"\",IF(L26>=1.1,\"-\",IF(((EXP(('Sıvılaşma Potansiyeli Analizi'!AS28+BT26)/16+(('Sıvılaşma Potansiyeli Analizi'!AS28+BT26-16)/21.2)^3-3)))<=TAN(RADIANS(BW26)),((EXP(('Sıvılaşma Potansiyeli Analizi'!AS28+BT26)/16+(('Sıvılaşma Potansiyeli Analizi'!AS28+BT26-16)/21.2)^3-3))),TAN(RADIANS(BW26)))))","v":0.1316860706891399},null,null,null,{"$f":"IF(E26=\"\",\"\",IF(L26=\"-\",\"-\",('Sıvılaşma Potansiyeli Analizi'!Z28*9.87*0.001)))","v":1.7805973499999996},null,null,null,{"$f":"IF(E26=\"\",\"\",IF(L26>=1.1,\"-\",EXP(-8.444+0.109*'Sıvılaşma Potansiyeli Analizi'!AS28+5.379*(CH26^0.1))*101.33))","v":31.823168220612299},null,null,null,null,null,{"$f":"IF(E26=\"\",\"\",IF(L26>=1.1,\"-\",(EXP((0.1292*'Sıvılaşma Potansiyeli Analizi'!AY28)+(4.322*('Sıvılaşma Potansiyeli Analizi'!Z28*0.01)^0.12)))*0.04788))","v":32.51053296876934},null,null,null,null,null,1.5]
[null,{"$f":"+IF('Sıvılaşma Potansiyeli Analizi'!B29=\"\",\"\",'Sıvılaşma Potansiyeli Analizi'!B29)","v":"12-"},null,null,{"$f":"+IF('Sıvılaşma Potansiyeli Analizi'!E29=\"\",\"\",'Sıvılaşma Potansiyeli Analizi'!E29)","v":18},null,null,null,{"$f":"+IF('Sıvılaşma Potansiyeli Analizi'!F29=\"\",\"\",'Sıvılaşma Potansiyeli Analizi'!F29)","v":22},null,null,{"$f":"+IF('Sıvılaşma Potansiyeli Analizi'!BY29=\"\",\"\",'Sıvılaşma Potansiyeli Analizi'!BY29)","v":0.95224687519616014},{"$f":"+IF('Sıvılaşma Potansiyeli Analizi'!CC29=\"\",\"\",'Sıvılaşma Potansiyeli Analizi'!CC29)","v":"Sıvılaşma Beklenir"},null,null,null,null,null,null,null,null,null,null,{"$f":"IF(E27=\"\",\"\",IF(L27=\"-\",\"-\",IF('Sıvılaşma Potansiyeli Analizi'!AS29>30,0,MAX(0,MIN(0.5,1.859*(1.1-SQRT('Sıvılaşma Potansiyeli Analizi'!AY29/46))^3)))))","v":0.19212093523989787},null,null,null,null,{"$f":"IF(E27=\"\",\"\", IF(L27=\"-\",\"-\",IF('Sıvılaşma Potansiyeli Analizi'!AY29>30,0,0.032+0.69*SQRT(MAX(7,'Sıvılaşma Potansiyeli Analizi'!AY29))-0.13*MAX(7,'Sıvılaşma Potansiyeli Analizi'!AY29))))","v":0.60475728836340004},null,null,null,null,4.1710854268094635E-2,null,null,null,null,{"$f":"IF('Sıvılaşma Potansiyeli Analizi'!E29=\"\",\"\",IF('Sıvılaşma Potansiyeli Analizi'!BY29=\"-\",\"-\",IF('Sıvılaşma Potansiyeli Analizi'!BY29>1.1,0,IF('Sıvılaşma Potansiyeli Analizi'!E30=\"\",('Sıvılaşma Potansiyeli Analizi'!$E$34-'Sıvılaşma Potansiyeli Analizi'!E29)+(('Sıvılaşma Potansiyeli Analizi'!E29-'Sıvılaşma Potansiyeli Analizi'!E28)/2),IF(AND(AM26=0,'Sıvılaşma Potansiyeli Analizi'!$AP$8<'Sıvılaşma Potansiyeli Analizi'!E29,'Sıvılaşma Potansiyeli Analizi'!$AP$8>='Sıvılaşma Potansiyeli Analizi'!E28),(('Sıvılaşma Potansiyeli Analizi'!E30-'Sıvılaşma Potansiyeli Analizi'!E29)/2)+('Sıvılaşma Potansiyeli Analizi'!E29-'Sıvılaşma Potansiyeli Analizi'!$AP$8),(('Sıvılaşma Potansiyeli Analizi'!E30-'Sıvılaşma Potansiyeli Analizi'!E29)/2)+(('Sıvılaşma Potansiyeli Analizi'!E29-'Sıvılaşma Potansiyeli Analizi'!E28)/2))))))","v":1.5},null,null,null,null,6.256628140214196E-2,null,null,null,null,{"$f":"IF(E27=\"\",\"\",IF(L27=\"-\",\"-\",IF(L27>2,0,IF('Sıvılaşma Potansiyeli Analizi'!AY29>30,0,1.5*EXP(-0.369*SQRT('Sıvılaşma Potansiyeli Analizi'!AY29))*MIN(0.08,AH27)))))","v":1.2906558129593092E-2},null,null,null,null,1.9359837194389638E-2,null,null,null,{"$f":"IF(E27=\"\",\"\",IF(L27=\"-\",\"-\",(0.65*$EP$7*0.4*('Sıvılaşma Potansiyeli Analizi'!V29/'Sıvılaşma Potansiyeli Analizi'!Z29)*'Sıvılaşma Potansiyeli Analizi'!BQ29)/(2.5-0.2*$DS$7)))","v":0.22227548909456057},null,null,null,null,{"$f":"IF(E27=\"\",\"\",IF(L27=\"-\",\"-\",IF((BF27/'Sıvılaşma Potansiyeli Analizi'!AS29)>0.01,('Sıvılaşma Potansiyeli Analizi'!AS29^(-0.6)*10*0.01),\"-\")))","v":1.9355800498381009E-2},null,null,null,null,2.9033700747571514E-2,null,null,null,{"$f":"IF(E27=\"\",\"\",IF(L27=\"-\",\"-\",IF('Sıvılaşma Potansiyeli Analizi'!U29<10,1,IF('Sıvılaşma Potansiyeli Analizi'!U29<25,2,IF('Sıvılaşma Potansiyeli Analizi'!U29<50,4,5)))))","v":2},null,null,{"$f":"IF(E27=\"\",\"\",IF(L27=\"-\",\"-\",DEGREES(ATAN((I27/(12.2+(20.3*'Sıvılaşma Potansiyeli Analizi'!Z29/100)))^0.34))))","v":36.806763183382735},null,null,{"$f":"IF(E27=\"\",\"\",IF(L27>=1.1,\"-\",IF(((EXP(('Sıvılaşma Potansiyeli Analizi'!AS29+BT27)/16+(('Sıvılaşma Potansiyeli Analizi'!AS29+BT27-16)/21.2)^3-3))*(1+EXP(('Sıvılaşma Potansiyeli Analizi'!AS29+BT27)/2.4-6.6)))<=TAN(RADIANS(BW27)),((EXP(('Sıvılaşma Potansiyeli Analizi'!AS29+BT27)/16+(('Sıvılaşma Potansiyeli Analizi'!AS29+BT27-16)/21.2)^3-3))*(1+EXP(('Sıvılaşma Potansiyeli Analizi'!AS29+BT27)/2.4-6.6))),TAN(RADIANS(BW27)))))","v":0.43664266068244562},null,null,null,{"$f":"IF(E27=\"\",\"\",IF(L27>=1.1,\"-\",IF(((EXP(('Sıvılaşma Potansiyeli Analizi'!AS29+BT27)/16+(('Sıvılaşma Potansiyeli Analizi'!AS29+BT27-16)/21.2)^3-3)))<=TAN(RADIANS(BW27)),((EXP(('Sıvılaşma Potansiyeli Analizi'!AS29+BT27)/16+(('Sıvılaşma Potansiyeli Analizi'!AS29+BT27-16)/21.2)^3-3))),TAN(RADIANS(BW27)))))","v":0.14812706918795132},null,null,null,{"$f":"IF(E27=\"\",\"\",IF(L27=\"-\",\"-\",('Sıvılaşma Potansiyeli Analizi'!Z29*9.87*0.001)))","v":1.9166552999999995},null,null,null,{"$f":"IF(E27=\"\",\"\",IF(L27>=1.1,\"-\",EXP(-8.444+0.109*'Sıvılaşma Potansiyeli Analizi'!AS29+5.379*(CH27^0.1))*101.33))","v":36.522478730928398},null,null,null,null,null,{"$f":"IF(E27=\"\",\"\",IF(L27>=1.1,\"-\",(EXP((0.1292*'Sıvılaşma Potansiyeli Analizi'!AY29)+(4.322*('Sıvılaşma Potansiyeli Analizi'!Z29*0.01)^0.12)))*0.04788))","v":54.898021317133441},null,null,null,null,null,1.5,null,null,null,null,null,null,null,null,"Görülür",null,null,null,null,null,"Sıvılaşma hasarı var"]
[null,{"$f":"+IF('Sıvılaşma Potansiyeli Analizi'!B30=\"\",\"\",'Sıvılaşma Potansiyeli Analizi'!B30)","v":"13-"},null,null,{"$f":"+IF('Sıvılaşma Potansiyeli Analizi'!E30=\"\",\"\",'Sıvılaşma Potansiyeli Analizi'!E30)","v":19.5},null,null,null,{"$f":"+IF('Sıvılaşma Potansiyeli Analizi'!F30=\"\",\"\",'Sıvılaşma Potansiyeli Analizi'!F30)","v":25},null,null,{"$f":"+IF('Sıvılaşma Potansiyeli Analizi'!BY30=\"\",\"\",'Sıvılaşma Potansiyeli Analizi'!BY30)","v":1.1461713868771501},{"$f":"+IF('Sıvılaşma Potansiyeli Analizi'!CC30=\"\",\"\",'Sıvılaşma Potansiyeli Analizi'!CC30)","v":"Sıvılaşma Yok"},null,null,null,null,null,null,null,null,null,null,{"$f":"IF(E28=\"\",\"\",IF(L28=\"-\",\"-\",IF('Sıvılaşma Potansiyeli Analizi'!AS30>30,0,MAX(0,MIN(0.5,1.859*(1.1-SQRT('Sıvılaşma Potansiyeli Analizi'!AY30/46))^3)))))","v":0.14801615785326222},null,null,null,null,{"$f":"IF(E28=\"\",\"\", IF(L28=\"-\",\"-\",IF('Sıvılaşma Potansiyeli Analizi'!AY30>30,0,0.032+0.69*SQRT(MAX(7,'Sıvılaşma Potansiyeli Analizi'!AY30))-0.13*MAX(7,'Sıvılaşma Potansiyeli Analizi'!AY30))))","v":0.4837359586163994},null,null,null,null,2.3289870541191308E-2,null,null,null,null,{"$f":"IF('Sıvılaşma Potansiyeli Analizi'!E30=\"\",\"\",IF('Sıvılaşma Potansiyeli Analizi'!BY30=\"-\",\"-\",IF('Sıvılaşma Potansiyeli Analizi'!BY30>1.1,0,IF('Sıvılaşma Potansiyeli Analizi'!E31=\"\",('Sıvılaşma Potansiyeli Analizi'!$E$34-'Sıvılaşma Potansiyeli Analizi'!E30)+(('Sıvılaşma Potansiyeli Analizi'!E30-'Sıvılaşma Potansiyeli Analizi'!E29)/2),IF(AND(AM27=0,'Sıvılaşma Potansiyeli Analizi'!$AP$8<'Sıvılaşma Potansiyeli Analizi'!E30,'Sıvılaşma Potansiyeli Analizi'!$AP$8>='Sıvılaşma Potansiyeli Analizi'!E29),(('Sıvılaşma Potansiyeli Analizi'!E31-'Sıvılaşma Potansiyeli Analizi'!E30)/2)+('Sıvılaşma Potansiyeli Analizi'!E30-'Sıvılaşma Potansiyeli Analizi'!$AP$8),(('Sıvılaşma Potansiyeli Analizi'!E31-'Sıvılaşma Potansiyeli Analizi'!E30)/2)+(('Sıvılaşma Potansiyeli Analizi'!E30-'Sıvılaşma Potansiyeli Analizi'!E29)/2))))))","v":0},null,null,null,null,0,null,null,null,null,{"$f":"IF(E28=\"\",\"\",IF(L28=\"-\",\"-\",IF(L28>2,0,IF('Sıvılaşma Potansiyeli Analizi'!AY30>30,0,1.5*EXP(-0.369*SQRT('Sıvılaşma Potansiyeli Analizi'!AY30))*MIN(0.08,AH28)))))","v":6.5352070578907195E-3},null,null,null,null,0,null,null,null,{"$f":"IF(E28=\"\",\"\",IF(L28=\"-\",\"-\",(0.65*$EP$7*0.4*('Sıvılaşma Potansiyeli Analizi'!V30/'Sıvılaşma Potansiyeli Analizi'!Z30)*'Sıvılaşma Potansiyeli Analizi'!BQ30)/(2.5-0.2*$DS$7)))","v":0.2114268273612431},null,null,null,null,{"$f":"IF(E28=\"\",\"\",IF(L28=\"-\",\"-\",IF((BF28/'Sıvılaşma Potansiyeli Analizi'!AS30)>0.01,('Sıvılaşma Potansiyeli Analizi'!AS30^(-0.6)*10*0.01),\"-\")))","v":1.8299365089636466E-2},null,null,null,null,0,null,null,null,{"$f":"IF(E28=\"\",\"\",IF(L28=\"-\",\"-\",IF('Sıvılaşma Potansiyeli Analizi'!U30<10,1,IF('Sıvılaşma Potansiyeli Analizi'!U30<25,2,IF('Sıvılaşma Potansiyeli Analizi'!U30<50,4,5)))))","v":2},null,null,{"$f":"IF(E28=\"\",\"\",IF(L28=\"-\",\"-\",DEGREES(ATAN((I28/(12.2+(20.3*'Sıvılaşma Potansiyeli Analizi'!Z30/100)))^0.34))))","v":37.510459188689723},null,null,{"$f":"IF(E28=\"\",\"\",IF(L28>=1.1,\"-\",IF(((EXP(('Sıvılaşma Potansiyeli Analizi'!AS30+BT28)/16+(('Sıvılaşma Potansiyeli Analizi'!AS30+BT28-16)/21.2)^3-3))*(1+EXP(('Sıvılaşma Potansiyeli Analizi'!AS30+BT28)/2.4-6.6)))<=TAN(RADIANS(BW28)),((EXP(('Sıvılaşma Potansiyeli Analizi'!AS30+BT28)/16+(('Sıvılaşma Potansiyeli Analizi'!AS30+BT28-16)/21.2)^3-3))*(1+EXP(('Sıvılaşma Potansiyeli Analizi'!AS30+BT28)/2.4-6.6))),TAN(RADIANS(BW28)))))","v":"-"},null,null,null,{"$f":"IF(E28=\"\",\"\",IF(L28>=1.1,\"-\",IF(((EXP(('Sıvılaşma Potansiyeli Analizi'!AS30+BT28)/16+(('Sıvılaşma Potansiyeli Analizi'!AS30+BT28-16)/21.2)^3-3)))<=TAN(RADIANS(BW28)),((EXP(('Sıvılaşma Potansiyeli Analizi'!AS30+BT28)/16+(('Sıvılaşma Potansiyeli Analizi'!AS30+BT28-16)/21.2)^3-3))),TAN(RADIANS(BW28)))))","v":"-"},null,null,null,{"$f":"IF(E28=\"\",\"\",IF(L28=\"-\",\"-\",('Sıvılaşma Potansiyeli Analizi'!Z30*9.87*0.001)))","v":2.0527132499999992},null,null,null,{"$f":"IF(E28=\"\",\"\",IF(L28>=1.1,\"-\",EXP(-8.444+0.109*'Sıvılaşma Potansiyeli Analizi'!AS30+5.379*(CH28^0.1))*101.33))","v":"-"},null,null,null,null,null,{"$f":"IF(E28=\"\",\"\",IF(L28>=1.1,\"-\",(EXP((0.1292*'Sıvılaşma Potansiyeli Analizi'!AY30)+(4.322*('Sıvılaşma Potansiyeli Analizi'!Z30*0.01)^0.12)))*0.04788))","v":"-"},null,null,null,null,null,"-",null,null,null,null,null,null,null,null,null,null,null,null,null,null,null,null,null,null,null,null,null,null,null,null,null,null,null,null,null,null,null,null,null,null,null,null,null,null,null,null,null,null,null,null,null,null,null,null,null,null,null,null,null,null,null,null,null,null,null,null,null,null,null,null,null,null,null,null,null,null,null,null,null,null,null,null,"A",null,"Sıvılaşma hasarı var"]
[null,{"$f":"+IF('Sıvılaşma Potansiyeli Analizi'!B31=\"\",\"\",'Sıvılaşma Potansiyeli Analizi'!B31)","v":"14-"},null,null,{"$f":"+IF('Sıvılaşma Potansiyeli Analizi'!E31=\"\",\"\",'Sıvılaşma Potansiyeli Analizi'!E31)","v":21},null,null,null,{"$f":"+IF('Sıvılaşma Potansiyeli Analizi'!F31=\"\",\"\",'Sıvılaşma Potansiyeli Analizi'!F31)","v":30},null,null,{"$f":"+IF('Sıvılaşma Potansiyeli Analizi'!BY31=\"\",\"\",'Sıvılaşma Potansiyeli Analizi'!BY31)","v":1.5047133679664841},{"$f":"+IF('Sıvılaşma Potansiyeli Analizi'!CC31=\"\",\"\",'Sıvılaşma Potansiyeli Analizi'!CC31)","v":"Sıvılaşma Yok"},null,null,null,null,null,null,null,null,null,null,{"$f":"IF(E29=\"\",\"\",IF(L29=\"-\",\"-\",IF('Sıvılaşma Potansiyeli Analizi'!AS31>30,0,MAX(0,MIN(0.5,1.859*(1.1-SQRT('Sıvılaşma Potansiyeli Analizi'!AY31/46))^3)))))","v":9.7274130068404102E-2},null,null,null,null,{"$f":"IF(E29=\"\",\"\", IF(L29=\"-\",\"-\",IF('Sıvılaşma Potansiyeli Analizi'!AY31>30,0,0.032+0.69*SQRT(MAX(7,'Sıvılaşma Potansiyeli Analizi'!AY31))-0.13*MAX(7,'Sıvılaşma Potansiyeli Analizi'!AY31))))","v":0.2777444442322734},null,null,null,null,1.020427087983968E-2,null,null,null,null,{"$f":"IF('Sıvılaşma Potansiyeli Analizi'!E31=\"\",\"\",IF('Sıvılaşma Potansiyeli Analizi'!BY31=\"-\",\"-\",IF('Sıvılaşma Potansiyeli Analizi'!BY31>1.1,0,IF('Sıvılaşma Potansiyeli Analizi'!E32=\"\",('Sıvılaşma Potansiyeli Analizi'!$E$34-'Sıvılaşma Potansiyeli Analizi'!E31)+(('Sıvılaşma Potansiyeli Analizi'!E31-'Sıvılaşma Potansiyeli Analizi'!E30)/2),IF(AND(AM28=0,'Sıvılaşma Potansiyeli Analizi'!$AP$8<'Sıvılaşma Potansiyeli Analizi'!E31,'Sıvılaşma Potansiyeli Analizi'!$AP$8>='Sıvılaşma Potansiyeli Analizi'!E30),(('Sıvılaşma Potansiyeli Analizi'!E32-'Sıvılaşma Potansiyeli Analizi'!E31)/2)+('Sıvılaşma Potansiyeli Analizi'!E31-'Sıvılaşma Potansiyeli Analizi'!$AP$8),(('Sıvılaşma Potansiyeli Analizi'!E32-'Sıvılaşma Potansiyeli Analizi'!E31)/2)+(('Sıvılaşma Potansiyeli Analizi'!E31-'Sıvılaşma Potansiyeli Analizi'!E30)/2))))))","v":0},null,null,null,null,0,null,null,null,null,{"$f":"IF(E29=\"\",\"\",IF(L29=\"-\",\"-\",IF(L29>2,0,IF('Sıvılaşma Potansiyeli Analizi'!AY31>30,0,1.5*EXP(-0.369*SQRT('Sıvılaşma Potansiyeli Analizi'!AY31))*MIN(0.08,AH29)))))","v":2.4878031682723754E-3},null,null,null,null,0,null,null,null,{"$f":"IF(E29=\"\",\"\",IF(L29=\"-\",\"-\",(0.65*$EP$7*0.4*('Sıvılaşma Potansiyeli Analizi'!V31/'Sıvılaşma Potansiyeli Analizi'!Z31)*'Sıvılaşma Potansiyeli Analizi'!BQ31)/(2.5-0.2*$DS$7)))","v":0.20010202276416764},null,null,null,null,{"$f":"IF(E29=\"\",\"\",IF(L29=\"-\",\"-\",IF((BF29/'Sıvılaşma Potansiyeli Analizi'!AS31)>0.01,('Sıvılaşma Potansiyeli Analizi'!AS31^(-0.6)*10*0.01),\"-\")))","v":1.6722026147130902E-2},null,null,null,null,0,null,null,null,{"$f":"IF(E29=\"\",\"\",IF(L29=\"-\",\"-\",IF('Sıvılaşma Potansiyeli Analizi'!U31<10,1,IF('Sıvılaşma Potansiyeli Analizi'!U31<25,2,IF('Sıvılaşma Potansiyeli Analizi'!U31<50,4,5)))))","v":2},null,null,{"$f":"IF(E29=\"\",\"\",IF(L29=\"-\",\"-\",DEGREES(ATAN((I29/(12.2+(20.3*'Sıvılaşma Potansiyeli Analizi'!Z31/100)))^0.34))))","v":38.761014085328327},null,null,{"$f":"IF(E29=\"\",\"\",IF(L29>=1.1,\"-\",IF(((EXP(('Sıvılaşma Potansiyeli Analizi'!AS31+BT29)/16+(('Sıvılaşma Potansiyeli Analizi'!AS31+BT29-16)/21.2)^3-3))*(1+EXP(('Sıvılaşma Potansiyeli Analizi'!AS31+BT29)/2.4-6.6)))<=TAN(RADIANS(BW29)),((EXP(('Sıvılaşma Potansiyeli Analizi'!AS31+BT29)/16+(('Sıvılaşma Potansiyeli Analizi'!AS31+BT29-16)/21.2)^3-3))*(1+EXP(('Sıvılaşma Potansiyeli Analizi'!AS31+BT29)/2.4-6.6))),TAN(RADIANS(BW29)))))","v":"-"},null,null,null,{"$f":"IF(E29=\"\",\"\",IF(L29>=1.1,\"-\",IF(((EXP(('Sıvılaşma Potansiyeli Analizi'!AS31+BT29)/16+(('Sıvılaşma Potansiyeli Analizi'!AS31+BT29-16)/21.2)^3-3)))<=TAN(RADIANS(BW29)),((EXP(('Sıvılaşma Potansiyeli Analizi'!AS31+BT29)/16+(('Sıvılaşma Potansiyeli Analizi'!AS31+BT29-16)/21.2)^3-3))),TAN(RADIANS(BW29)))))","v":"-"},null,null,null,{"$f":"IF(E29=\"\",\"\",IF(L29=\"-\",\"-\",('Sıvılaşma Potansiyeli Analizi'!Z31*9.87*0.001)))","v":2.1887711999999997},null,null,null,{"$f":"IF(E29=\"\",\"\",IF(L29>=1.1,\"-\",EXP(-8.444+0.109*'Sıvılaşma Potansiyeli Analizi'!AS31+5.379*(CH29^0.1))*101.33))","v":"-"},null,null,null,null,null,{"$f":"IF(E29=\"\",\"\",IF(L29>=1.1,\"-\",(EXP((0.1292*'Sıvılaşma Potansiyeli Analizi'!AY31)+(4.322*('Sıvılaşma Potansiyeli Analizi'!Z31*0.01)^0.12)))*0.04788))","v":"-"},null,null,null,null,null,"-",null,null,null,null,null,null,null,null,null,null,null,null,null,null,null,null,null,null,null,null,null,null,null,null,null,null,null,null,null,null,null,null,null,null,null,null,null,null,null,null,null,null,null,null,null,null,null,null,null,null,null,null,null,null,null,null,null,null,null,null,null,null,null,null,null,null,null,null,null,null,null,null,null,null,null,null,"B",null,"Sıvılaşma hasarı oluşabilir"]
[null,{"$f":"+IF('Sıvılaşma Potansiyeli Analizi'!B32=\"\",\"\",'Sıvılaşma Potansiyeli Analizi'!B32)","v":""},null,null,{"$f":"+IF('Sıvılaşma Potansiyeli Analizi'!E32=\"\",\"\",'Sıvılaşma Potansiyeli Analizi'!E32)","v":""},null,null,null,{"$f":"+IF('Sıvılaşma Potansiyeli Analizi'!F32=\"\",\"\",'Sıvılaşma Potansiyeli Analizi'!F32)","v":""},null,null,{"$f":"+IF('Sıvılaşma Potansiyeli Analizi'!BY32=\"\",\"\",'Sıvılaşma Potansiyeli Analizi'!BY32)","v":""},{"$f":"+IF('Sıvılaşma Potansiyeli Analizi'!CC32=\"\",\"\",'Sıvılaşma Potansiyeli Analizi'!CC32)","v":""},null,null,null,null,null,null,null,null,null,null,{"$f":"IF(E30=\"\",\"\",IF(L30=\"-\",\"-\",IF('Sıvılaşma Potansiyeli Analizi'!AS32>30,0,MAX(0,MIN(0.5,1.859*(1.1-SQRT('Sıvılaşma Potansiyeli Analizi'!AY32/46))^3)))))","v":""},null,null,null,null,{"$f":"IF(E30=\"\",\"\", IF(L30=\"-\",\"-\",IF('Sıvılaşma Potansiyeli Analizi'!AY32>30,0,0.032+0.69*SQRT(MAX(7,'Sıvılaşma Potansiyeli Analizi'!AY32))-0.13*MAX(7,'Sıvılaşma Potansiyeli Analizi'!AY32))))","v":""},null,null,null,null,"",null,null,null,null,{"$f":"IF('Sıvılaşma Potansiyeli Analizi'!E32=\"\",\"\",IF('Sıvılaşma Potansiyeli Analizi'!BY32=\"-\",\"-\",IF('Sıvılaşma Potansiyeli Analizi'!BY32>1.1,0,IF('Sıvılaşma Potansiyeli Analizi'!E33=\"\",('Sıvılaşma Potansiyeli Analizi'!$E$34-'Sıvılaşma Potansiyeli Analizi'!E32)+(('Sıvılaşma Potansiyeli Analizi'!E32-'Sıvılaşma Potansiyeli Analizi'!E31)/2),IF(AND(AM29=0,'Sıvılaşma Potansiyeli Analizi'!$AP$8<'Sıvılaşma Potansiyeli Analizi'!E32,'Sıvılaşma Potansiyeli Analizi'!$AP$8>='Sıvılaşma Potansiyeli Analizi'!E31),(('Sıvılaşma Potansiyeli Analizi'!E33-'Sıvılaşma Potansiyeli Analizi'!E32)/2)+('Sıvılaşma Potansiyeli Analizi'!E32-'Sıvılaşma Potansiyeli Analizi'!$AP$8),(('Sıvılaşma Potansiyeli Analizi'!E33-'Sıvılaşma Potansiyeli Analizi'!E32)/2)+(('Sıvılaşma Potansiyeli Analizi'!E32-'Sıvılaşma Potansiyeli Analizi'!E31)/2))))))","v":""},null,null,null,null,"",null,null,null,null,{"$f":"IF(E30=\"\",\"\",IF(L30=\"-\",\"-\",IF(L30>2,0,IF('Sıvılaşma Potansiyeli Analizi'!AY32>30,0,1.5*EXP(-0.369*SQRT('Sıvılaşma Potansiyeli Analizi'!AY32))*MIN(0.08,AH30)))))","v":""},null,null,null,null,"",null,null,null,{"$f":"IF(E30=\"\",\"\",IF(L30=\"-\",\"-\",(0.65*$EP$7*0.4*('Sıvılaşma Potansiyeli Analizi'!V32/'Sıvılaşma Potansiyeli Analizi'!Z32)*'Sıvılaşma Potansiyeli Analizi'!BQ32)/(2.5-0.2*$DS$7)))","v":""},null,null,null,null,{"$f":"IF(E30=\"\",\"\",IF(L30=\"-\",\"-\",IF((BF30/'Sıvılaşma Potansiyeli Analizi'!AS32)>0.01,('Sıvılaşma Potansiyeli Analizi'!AS32^(-0.6)*10*0.01),\"-\")))","v":""},null,null,null,null,"",null,null,null,{"$f":"IF(E30=\"\",\"\",IF(L30=\"-\",\"-\",IF('Sıvılaşma Potansiyeli Analizi'!U32<10,1,IF('Sıvılaşma Potansiyeli Analizi'!U32<25,2,IF('Sıvılaşma Potansiyeli Analizi'!U32<50,4,5)))))","v":""},null,null,{"$f":"IF(E30=\"\",\"\",IF(L30=\"-\",\"-\",DEGREES(ATAN((I30/(12.2+(20.3*'Sıvılaşma Potansiyeli Analizi'!Z32/100)))^0.34))))","v":""},null,null,{"$f":"IF(E30=\"\",\"\",IF(L30>=1.1,\"-\",IF(((EXP(('Sıvılaşma Potansiyeli Analizi'!AS32+BT30)/16+(('Sıvılaşma Potansiyeli Analizi'!AS32+BT30-16)/21.2)^3-3))*(1+EXP(('Sıvılaşma Potansiyeli Analizi'!AS32+BT30)/2.4-6.6)))<=TAN(RADIANS(BW30)),((EXP(('Sıvılaşma Potansiyeli Analizi'!AS32+BT30)/16+(('Sıvılaşma Potansiyeli Analizi'!AS32+BT30-16)/21.2)^3-3))*(1+EXP(('Sıvılaşma Potansiyeli Analizi'!AS32+BT30)/2.4-6.6))),TAN(RADIANS(BW30)))))","v":""},null,null,null,{"$f":"IF(E30=\"\",\"\",IF(L30>=1.1,\"-\",IF(((EXP(('Sıvılaşma Potansiyeli Analizi'!AS32+BT30)/16+(('Sıvılaşma Potansiyeli Analizi'!AS32+BT30-16)/21.2)^3-3)))<=TAN(RADIANS(BW30)),((EXP(('Sıvılaşma Potansiyeli Analizi'!AS32+BT30)/16+(('Sıvılaşma Potansiyeli Analizi'!AS32+BT30-16)/21.2)^3-3))),TAN(RADIANS(BW30)))))","v":""},null,null,null,{"$f":"IF(E30=\"\",\"\",IF(L30=\"-\",\"-\",('Sıvılaşma Potansiyeli Analizi'!Z32*9.87*0.001)))","v":""},null,null,null,{"$f":"IF(E30=\"\",\"\",IF(L30>=1.1,\"-\",EXP(-8.444+0.109*'Sıvılaşma Potansiyeli Analizi'!AS32+5.379*(CH30^0.1))*101.33))","v":""},null,null,null,null,null,{"$f":"IF(E30=\"\",\"\",IF(L30>=1.1,\"-\",(EXP((0.1292*'Sıvılaşma Potansiyeli Analizi'!AY32)+(4.322*('Sıvılaşma Potansiyeli Analizi'!Z32*0.01)^0.12)))*0.04788))","v":""},null,null,null,null,null,"-",null,null,null,null,null,null,null,null,null,null,null,null,null,null,null,null,null,null,null,null,"Abak No:2",null,null,null,null,null,null,null,null,null,null,null,null,null,null,null,null,null,null,null,null,null,null,null,null,null,null,null,null,null,null,null,null,null,null,null,null,null,null,null,null,null,null,null,null,null,null,null,null,null,null,null,null,null,null,null,"C",null,"Sıvılaşma hasarı yok"]
[null,"Þ",null,null,{"$f":"+IF('Sıvılaşma Potansiyeli Analizi'!$E$34=\"\",\"\",'Sıvılaşma Potansiyeli Analizi'!$E$34)","v":19.5},null,null,null,"Ü",null,"Sıvılaşmanın Bittiği Zemin Tabakası Başlangıç Derinliği, m",null,null,null,null,null,null,null,null,null,null,null,null,null,null,null,null,null,null,null,null,null,null,null,null,null,null,null,{"$f":"+SUM(AR16:AV30)","v":6.4616551289261084},null,null,null,null,null,null,null,null,null,{"$f":"+SUM(BB16:BE30)","v":0.56396374586487918},null,null,null,null,null,null,null,null,null,null,null,null,null,{"$f":"+SUM(BP16:BS30)","v":0.4140819796670614},null,null,null,null,null,null,null,null,null,null,null,null,null,null,null,null,null,null,null,null,null,null,null,null,null,null,null,null,null,null,null,null,null,null,null,null,null,null,{"$f":"+SUM(CX16:DD30)","v":16.549999999999997},null,null,null,null,null,null,null,null,"[Abakları kullanarak seçiminizi yapınız]",null,null,null,null,null,null,null,null,null,null,null,null,null,null,null,null,null,null,null,null,null,null,null,null,null,null,null,null,null,null,null,null,null,null,null,null,null,null,null,null,null,null,null,null,null,null,null,null,null,null,null,null,null,null,null,null,null,null,null,null,null,null,null,null,null,null,null,"Abak-2 için açıklama"]
[]
[null,"NOTLAR : Hesaplamaların sorumluluğu kullanıcıya ait olup, Sıvılaşma Sonrası Oturma, Yanal Yayılma ve Kayma Dayanımı Kaybı hesap cetveline ait telif hakları, 5846 sayılı Fikir ve Sanat Eserleri Kanunu gereğince TMMOB Jeoloji Mühendisleri Odasına ait olup, izin almaksızın içeriğinde herhangi bir değişiklik yapılamaz. Hesap cetveli JMO logolu kullanılmak kaydıyla  ücretsiz olarak herkesin kullanımına açıktır. Ancak Oda logosunun hesap cetvelinden çıkarılarak kullanılmasının tespit edilmesi durumunda 5846 sayılı kanun gereğince ilgili kişi hakkında gerekli hukuki yollara başvurulur."]
[]
[null,null,null,"*- Bu Excel sayfasında yatay zemin yüzeyi, serbest zemin koşulları varsayımı ile sıvılaşma kaynaklı oturmalar, yanal deformasyonlar değerlendirilmektedir. Bu nedenle özellikle sahada topoğrafik eğimin olduğu durumda da yanal yayılma değerlendirilmeli, sıvılaşma kaynaklı şev duraylılığı değerlendirilmeli, yapıların olduğu durumlarda ise sıvılaşma kaynaklı temel-zemin göçmesi değerlendirmeleri ayrıca yapılmalıdır."]
[]
[]
[]
[]
[null,null,null,null,null,null,null,null,null,null,null,null,null,null,null,null,null,null,null,null,null,null,null,null,null,null,null,null,null,null,null,null,null,null,null,null,null,null,null,null,null,null,null,null,null,null,null,null,null,null,null,null,null,null,null,null,null,null,null,null,null,null,null,null,null,null,null,null,null,null,null,null,null,null,null,null,null,null,null,null,null,null,null,null,null,null,null,null,null,null,null,null,null,null,null,null,null,null,null,null,null,{"$f":"IF(CX31>10,10,CX31)","v":10}]

{"sheet":"Killerin sıvılaşma duyarlılığı","index":2,"n_rows":50,"n_cols":20,"rows_kept":50,"cut":false,"hidden":false,"merged":[[29,5,36,5],[47,11,47,13],[19,6,19,14],[49,8,49,15]]}
["Numune Derinliği         m","Doğal su içeriği, wn","Likit Limit, \nLL","Plastisite İndisi,\n PI","wn / LL"]
[1,30,40,18,{"$f":"IF(A2=\"\",0,B2/C2)","v":0.75},null,null,null,null,null,null,null,null,null,null,"IP>20",null,null,0,0.8]
[3,35,46,16,{"$f":"IF(A3=\"\",0,B3/C3)","v":0.76086956521739135},null,null,null,null,null,null,null,null,null,null,null,null,null,18,0.8]
[6,42,42,12,1,null,null,null,null,null,null,null,null,null,null,null,null,null,18,1.4]
[8,43,45,10,0.9555555555555556]
[10,35,41,15,0.85365853658536583,null,null,null,null,null,null,null,null,null,null,null,null,null,"PI","wn/LL"]
[12,23,38,17,0.60526315789473684,null,null,null,null,null,null,null,null,null,null,null,null,null,0,0.85]
[15,25,40,10,0.625,null,null,null,null,null,null,null,null,null,null,null,null,null,12,0.85]
[null,null,null,null,0,null,null,null,null,null,null,null,null,null,null,null,null,null,12,1.4]
[null,null,null,null,0,null,null,null,null,null,null,null,null,null,null,"12<IP≤20       wn/LL ≥ 0.80"]
[null,null,null,null,0,null,null,null,null,null,null,null,null,null,null,"Sıvılaşmaya kısmen hassas olup deneysel çalışma gerekli"]
[null,null,null,null,0]
[null,null,null,null,0]
[null,null,null,null,0,null,null,null,null,null,null,null,null,null,null,"IP<12          wn/LL ≥ 0.80"]
[null,null,null,null,0]
[null,null,null,null,0]
[null,null,null,null,0]
[null,null,null,null,0]
[null,null,null,null,0]
[null,null,null,null,0,null,"İnce taneli zeminlerin sıvılaşmaya karşı duyarlılığının değerlendirilmesi"]
[null,null,null,null,0,null,"Bray ve Sancio (2006)",null,null,"(Robertson ve Cabal, 2015)"]
["Turuncu kutucuklara veri girişini elle yapınız.",null,null,null,null,null,null,null,null,null,null,null,"PI","wn/LL"]
[]
[]
[]
[]
[]
[]
[]
[null,null,null,null,null,"Plastisite İndisi (Ip)"]
[]
[]
[]
[]
[]
[]
[]
[]
[]
[]
[]
[]
[null,null,null,null,null,null,null,null,null,null,null,null,null,null,null,null,null,null,"Gösterim"]
[null,null,null,null,null,null,null,null,null,null,null,null,null,null,null,null,null,null,null,"LL"]
[]
[]
[]
[null,null,null,null,null,null,null,null,null,null,null,"Likit Limit (LL)"]
[null,null,null,null,null,null,"İnce taneli zemin karışımlarında Seed vd. (2003) tarafından önerilen sıvılaşabilirlik koşulu (Seed vd., 2003)"]
[null,null,null,null,null,null,null,null,"Kullanılan Numunelerin Plastisite Kartındaki Yeri, Seed ve diğ. (2003)"]

{"sheet":"Tablolar","index":3,"n_rows":57,"n_cols":22,"rows_kept":57,"cut":false,"hidden":true,"merged":[[0,0,0,1],[1,2,1,5],[2,2,2,5],[0,2,0,5],[3,2,3,5],[4,2,4,5],[19,2,19,5],[1,0,5,1],[17,0,19,1],[5,2,5,5],[6,0,8,1],[8,2,8,5],[9,0,12,1],[12,2,12,5],[13,0,16,1],[17,2,17,5],[18,2,18,5]]}
["Düzeltme Katsayıları",null,"Değişken",null,null,null,"Değer",null,null,null,"USCS",null,null,"USCS",null,null,null,null,null,"14688-2"]
["CR",null,"3m ile 4m aralığında",null,null,null,0.75,null,null,null,"W","İyi Derecelenmiş",null,"G","Çakıl",null,null,null,null,"Gr",null,"Sıvılaşma hasarı var."]
[null,null,"4m ile 6m aralığında",null,null,null,0.85,null,null,null,"P","Kötü Derecelenmiş",null,"GW","İyi Derecelenmiş Çakıl",null,null,null,null,"saGr",null,"Sıvılaşma hasarı oluşabilir."]
[null,null,"6m ile 10m aralığında",null,null,null,0.95,null,null,null,"L","Düşük Plastisiteli",null,"GP","Kötü Derecelenmiş Çakıl",null,null,null,null,"siGr",null,"Sıvılaşma hasarı yok."]
[null,null,"10m'den derin",null,null,null,1,null,null,null,"H","Yüksek Plastisiteli",null,"GM","Siltli Çakıl",null,null,null,null,"clGr"]
[null,null,null,null,null,null,null,null,null,null,"O","Organik",null,"GC","Killi Çakıl",null,null,null,null,"sasiGr"]
["CS",null,"Standart (iç tüpü olan)",null,null,null,1,null,null,null,"Pt","Bataklık Turba",null,"SW","İyi Derecelenmiş Kum",null,null,null,null,"saclGr",null,"Görülür"]
[null,null,"İç tüpü olmayan",null,null,null,1.2,null,null,null,null,null,null,"SP","Kötü Derecelenmiş Kum",null,null,null,null,"Sa",null,"Görülmez"]
[null,null,null,null,null,null,null,null,null,null,null,null,null,"SM","Siltli Kum",null,null,null,null,"grSa"]
["CB",null,"Çap 65mm-115mm arasında",null,null,null,1,null,null,null,null,null,null,"SC","Killi Kum",null,null,null,null,"siSa"]
[null,null,"Çap 150mm",null,null,null,1.05,null,null,null,null,null,null,"SW-SC",null,null,null,null,null,"clSa"]
[null,null,"Çap 200mm",null,null,null,1.1499999999999999,null,null,null,null,null,null,"SW-SM",null,null,null,null,null,"grsiSa"]
[null,null,null,null,null,null,null,null,null,null,null,null,null,"SP-SC",null,null,null,null,null,"grclSa"]
["CE",null,"Güvenli tokmak",null,null,null,0.89,null,null,null,null,null,null,"SP-SM",null,null,null,null,null,"Si"]
[null,null,"Halkalı tokmak",null,null,null,0.75,null,null,null,null,null,null,"GM-GC",null,null,null,null,null,"clSi"]
[null,null,"Otomatik darbeli tokmak",null,null,null,1.25,null,null,null,null,null,null,"GW-GC",null,null,null,null,null,"grSi"]
[null,null,null,null,null,null,null,null,null,null,null,null,null,"GW-GM",null,null,null,null,null,"grclSi"]
["CN",null,"Kohezyon Var",null,null,null,null,null,null,null,null,null,null,"GP-GC",null,null,null,null,null,"saSi"]
[null,null,"Kohezyon Yok",null,null,null,null,null,null,null,null,null,null,"GP-GM",null,null,null,null,null,"saclSi"]
[null,null,null,null,null,null,null,null,null,null,null,null,null,"ML","Düşük Plastisiteli Silt",null,null,null,null,"sagrSİ"]
[null,null,null,null,null,null,null,null,null,null,null,null,null,"CL","Düşük Plastisiteli Kil",null,null,null,null,"grsaSi"]
["tanf",{"$f":"+TAN(('Oturma-Yanal Yay. ve Muk. Kaybı'!BW16)*(PI()/180))","v":{"$error":"#VALUE!"}},null,null,null,null,null,null,null,null,null,null,null,"OL","Organik Siltler",null,null,null,null,"Cl"]
[null,null,null,null,null,null,null,null,null,null,null,null,null,"MH","Yüksek Plastisiteli Silt",null,null,null,null,"siCl"]
[null,null,null,null,null,null,null,null,null,null,null,null,null,"CH","Yüksek Plastisiteli Kil",null,null,null,null,"sasiCl"]
[null,null,null,null,null,null,null,null,null,null,null,null,null,"OH","Ortadan Yükseğe Plastisiteli Organik Killer",null,null,null,null,"saCl"]
[null,null,null,null,null,null,null,null,null,null,null,null,null,"Pt","Turba",null,null,null,null,"grCl"]
["ZD",null,null,null,null,null,null,null,null,null,null,null,null,"SM-SC",null,null,null,null,null,"grsiCl"]
["ZE",null,null,null,null,null,null,null,null,null,null,null,null,"-",null,null,null,null,null,"sagrCl"]
["ZF",null,null,null,null,null,null,null,null,null,null,null,null,null,null,null,null,null,null,"grsaCl"]
[null,null,null,null,null,null,null,null,null,null,null,null,null,null,null,null,null,null,null,"grsasiS"]
[null,null,null,null,null,null,null,null,null,null,null,null,null,null,null,null,null,null,null,"grsaclS"]
["DTS - 1",null,null,null,null,null,null,null,null,null,null,null,null,null,null,null,null,null,null,"sagrsiS"]
["DTS - 1a",null,null,null,null,null,null,null,null,null,null,null,null,null,null,null,null,null,null,"sagrclS"]
["DTS - 2",null,null,null,null,null,null,null,null,null,null,null,null,null,null,null,null,null,null,"Mg"]
["DTS - 2a",null,null,null,null,null,null,null,null,null,null,null,null,null,null,null,null,null,null,"saOr"]
["DTS - 3",null,null,null,null,null,null,null,null,null,null,null,null,null,null,null,null,null,null,"siOr"]
["DTS - 3a",null,null,null,null,null,null,null,null,null,null,null,null,null,null,null,null,null,null,"clOr"]
["DTS - 4",null,null,null,null,null,null,null,null,null,null,null,null,null,null,null,null,null,null,"orSi"]
["DTS - 4a",null,null,null,null,null,null,null,null,null,null,null,null,null,null,null,null,null,null,"orCl"]
["-",null,null,null,null,null,null,null,null,null,null,null,null,null,null,null,null,null,null,"orSa"]
[null,null,null,null,null,null,null,null,null,null,null,null,null,null,null,null,null,null,null,"Bo"]
[null,null,null,null,null,null,null,null,null,null,null,null,null,null,null,null,null,null,null,"Co"]
[null,null,null,null,null,null,null,null,null,null,null,null,null,null,null,null,null,null,null,"boCo"]
[null,null,null,null,null,null,null,null,null,null,null,null,null,null,null,null,null,null,null,"saCo"]
["ED 50-3°",null,null,null,null,null,null,null,null,null,null,null,null,null,null,null,null,null,null,"grCo"]
["ED 50-6°",null,null,null,null,null,null,null,null,null,null,null,null,null,null,null,null,null,null,"coBo"]
["WGS 84",null,null,null,null,null,null,null,null,null,null,null,null,null,null,null,null,null,null,"sagrCo"]
["ITRF-3°",null,null,null,null,null,null,null,null,null,null,null,null,null,null,null,null,null,null,"-"]
["ITRF-6°"]
[]
[]
["amax = 0,2g için"]
[]
[]
["(Vs)30 değeri ile"]
["(N60)30 değeri ile"]
["(Cu)30 değeri ile"]